Workbook

Sheet Data
B1: Volcanos: http://www.volcano.si.edu/world/largeeruptions.cfm | C1: Age | D1: MagAll | E1: Mag_5 | F1: Mag_6 | G1: 1.55-kyr Peaks | J1: Notes | K1: Begin 6.37 | L1: 6.37-Center | M1: Volcanic | N1: 19.1 Avr | O1: 57.3 Avr | P1: 3-9 BP | Q1: 1-9 BP | S1: 57.3-yr Model | T1: Lag (yr) | U1: Cycle # | V1: 3-9 BP Correl | X1: Notes | Y1: Begin 19.1 | Z1: 19.1-Center | AA1: Volcanic | AB1: 57.3 Avr | AC1: 172 Avr | AD1: 3-9 BP | AE1: 1-9 BP | AG1: 172-yr Model | AH1: Lag (yr) | AI1: Cycle # | AJ1: 3-9 BP Correl | AL1: Notes | AM1: Begin 57.3 | AN1: 57.3-Center | AO1: Volcanic | AP1: 172 Avr | AQ1: 516 Avr | AR1: 3-9 BP | AS1: 1-9 BP | AU1: 516-yr Model | AV1: Lag (yr) | AW1: Cycle # | AX1: 3-9 BP Correl | AZ1: Notes | BA1: Begin 172 | BB1: 172-Center | BC1: Volcanic | BD1: 516 Avr | BE1: 1.55k Avr | BF1: 3-9 BP | BG1: 1-9 BP | BI1: 1.55-Kyr Model | BJ1: Lag (yr) | BK1: Cycle # | BL1: 1-9 BP Correl
B2: TONGARIRO New Zealand T 9650 BC (?) 5 | C2: -9650 | D2: 2 | E2: =IF(D2>1, D2,"0") -> 2 | F2: =IF(D2>2, D2,"0") -> 0 | J2: Δt | K2: =L2-(6.3651232648644/2) -> -1.539707632 | L2: 1.642854 | M2: =SUMIFS(MagAll,Age,">"&K2,Age,"<="&K3) -> 0 | S2: =SIN((2*PI()*(L2-2000+T2)/57.2861093837796) + 0.840686201) -> -0.08965020859 | T2: 15.14 | U2: -4 | V2: =CORREL(P209:P317,S213:S321) -> -0.41430321 | X2: Δt | Y2: =Z2-(19.0953697945932/2) -> -9918.401785 | Z2: -9908.8541 | AA2: =SUMIFS(Mag_5,Age,">"&Y2,Age,"<="&Y3) -> 0 | AG2: =SIN((2*PI()*(Z2-2000+AH2)/171.858328151339) + 3.421821408) -> 0.2394795339 | AH2: -36.35 | AI2: -4 | AJ2: =CORREL(AD161:AD626,AG165:AG630) -> -0.2089150564 | AL2: Δt | AM2: =AN2-(57.2861093837796/2) -> -9937.497155 | AN2: -9908.8541 | AO2: =SUMIFS(Mag_5,Age,">"&AM2,Age,"<="&AM3) -> 0 | AU2: =SIN((2*PI()*(AN2-2000+AV2)/515.574984454017) + 2.187804708) -> -0.4641475762 | AV2: -168.5 | AW2: -4 | AX2: =CORREL(AR55:AR210,AU59:AU214) -> -0.3480182152 | AZ2: Δt | BA2: =BB2-(171.858328151339/2) -> -9994.783264 | BB2: -9908.8541 | BC2: =SUMIFS(MagAll,Age,">"&BA2,Age,"<="&BA3) -> 0 | BI2: =SIN((2*PI()*(BB2-2000+BJ2)/1546.72495336205) + 1.776465808) -> -0.7270734502 | BJ2: 71.5 | BK2: -4 | BL2: =CORREL(BG6:BG71,BI10:BI75) -> -0.2321077088
B3: KHANGAR Kamchatka Peninsula (Russia) G 9500 BC ± 300 years P | C3: -9500 | D3: 1 | E3: =IF(D3>1, D3,"0") -> 0 | F3: =IF(D3>2, D3,"0") -> 0 | J3: 6.37-yr bins | K3: =K2+6.3651232648644 -> 4.825415632 | L3: =L2+6.3651232648644 -> 8.007977265 | M3: 1 | S3: =SIN((2*PI()*(L3-2000+T3)/57.2861093837796) + 0.840686201) -> -0.7088753493 | T3: =T2 -> 15.14 | U3: -3 | V3: =CORREL(P209:P317,S212:S320) -> -0.218023037 | X3: 19.1-yr bins | Y3: =Y2+19.0953697945932 -> -9899.306415 | Z3: =Z2+19.0953697945932 -> -9889.75873 | AA3: 0 | AG3: =SIN((2*PI()*(Z3-2000+AH3)/171.858328151339) + 3.421821408) -> 0.8075353644 | AH3: =AH2 -> -36.35 | AI3: -3 | AJ3: =CORREL(AD161:AD626,AG164:AG629) -> -0.111303294 | AL3: 57.3-yr bins | AM3: =AM2+57.2861093837796 -> -9880.211045 | AN3: =AN2+57.2861093837796 -> -9851.567991 | AO3: 0 | AU3: =SIN((2*PI()*(AN3-2000+AV3)/515.574984454017) + 2.187804708) -> 0.2137965209 | AV3: =AV2 -> -168.5 | AW3: -3 | AX3: =CORREL(AR55:AR210,AU58:AU213) -> -0.1851116195 | AZ3: 172-yr bins | BA3: =BA2+171.858328151339 -> -9822.924936 | BB3: =BB2+171.858328151339 -> -9736.995772 | BC3: 0 | BI3: =SIN((2*PI()*(BB3-2000+BJ3)/1546.72495336205) + 1.776465808) -> -0.9982826337 | BJ3: =BJ2 -> 71.5 | BK3: -3 | BL3: =CORREL(BG6:BG71,BI9:BI74) -> -0.1232492567
B4: TAUPO New Zealand G 9460 BC ± 200 years 5 | C4: -9460 | D4: 2 | E4: 2 | F4: 0 | K4: =K3+6.3651232648644 -> 11.1905389 | L4: =L3+6.3651232648644 -> 14.37310053 | M4: 0 | S4: -0.9964098357 | T4: =T3 -> 15.14 | U4: -2 | V4: =CORREL(P209:P317,S211:S319) -> 0.07702746102 | Y4: =Y3+19.0953697945932 -> -9880.211045 | Z4: =Z3+19.0953697945932 -> -9870.66336 | AA4: 0 | AG4: 0.9977364231 | AH4: =AH3 -> -36.35 | AI4: -2 | AJ4: =CORREL(AD161:AD626,AG163:AG628) -> 0.03866164396 | AM4: =AM3+57.2861093837796 -> -9822.924936 | AN4: =AN3+57.2861093837796 -> -9794.281881 | AO4: 0 | AU4: 0.7917028498 | AV4: =AV3 -> -168.5 | AW4: -2 | AX4: =CORREL(AR55:AR210,AU57:AU212) -> 0.06314754921 | BA4: =BA3+171.858328151339 -> -9651.066608 | BB4: =BB3+171.858328151339 -> -9565.137444 | BC4: 3 | BI4: -0.8023842781 | BJ4: =BJ3 -> 71.5 | BK4: -2 | BL4: =CORREL(BG6:BG71,BI8:BI73) -> 0.0453264063
B5: TONGARIRO New Zealand G 9450 BC (?) 5 | C5: -9450 | D5: 2 | E5: 2 | F5: 0 | K5: 17.55566216 | L5: 20.73822379 | M5: 1 | S5: =SIN((2*PI()*(L5-2000+T5)/57.2861093837796) + 0.840686201) -> -0.8177130862 | T5: 15.14 | U5: -1 | V5: =CORREL(P209:P317,S210:S318) -> 0.3360243531 | Y5: -9861.115676 | Z5: =Z4+19.0953697945932 -> -9851.567991 | AA5: 0 | AG5: 0.7210855209 | AH5: -36.35 | AI5: -1 | AJ5: =CORREL(AD161:AD626,AG162:AG627) -> 0.1706602168 | AM5: -9765.638827 | AN5: -9736.995772 | AO5: 0 | AU5: 0.9991626165 | AV5: -168.5 | AW5: -1 | AX5: =CORREL(AR55:AR210,AU56:AU211) -> 0.2832651223 | BA5: -9479.20828 | BB5: -9393.279116 | BC5: 6 | BI5: -0.2310414013 | BJ5: 71.5 | BK5: -1 | BL5: =CORREL(BG6:BG71,BI7:BI72) -> 0.1897905434
B6: TONGARIRO New Zealand T 9350 BC (?) 5 | C6: -9350 | D6: 2 | E6: 2 | F6: 0 | G6: -9393 | K6: 23.92078543 | L6: 27.10334706 | M6: 0 | S6: -0.2563992958 | T6: 15.14 | U6: 0 | V6: =CORREL(P209:P317,S209:S317) -> 0.4410442822 | Y6: -9842.020306 | Z6: -9832.472621 | AA6: 0 | AG6: 0.1070306894 | AH6: -36.35 | AI6: 0 | AJ6: =CORREL(AD161:AD626,AG161:AG626) -> 0.2224076317 | AM6: -9708.352717 | AN6: -9679.709662 | AO6: 0 | AP6: =AVERAGE(AO5:AO7) -> 0.6666666667 | AQ6: =AVERAGE(AO2:AO10) -> 0.6666666667 | AR6: =AP6-AQ6 -> 0 | AS6: =AO6-AQ6 -> -0.6666666667 | AU6: 0.7391030905 | AV6: -168.5 | AW6: 0 | AX6: =CORREL(AR55:AR210,AU55:AU210) -> 0.3707010991 | BA6: -9307.349951 | BB6: -9221.420787 | BC6: 4 | BD6: =AVERAGE(BC5:BC7) -> 3.333333333 | BE6: =AVERAGE(BC2:BC10) -> 2.222222222 | BF6: =BD6-BE6 -> 1.111111111 | BG6: =BC6-BE6 -> 1.777777778 | BI6: 0.4484083149 | BJ6: 71.5 | BK6: 0 | BL6: =CORREL(BG6:BG71,BI6:BI71) -> 0.2463197223
B7: TAUPO New Zealand G 9240 BC ± 75 years 5 | C7: -9240 | D7: 2 | E7: 2 | F7: 0 | K7: 30.28590869 | L7: 33.46847032 | M7: 0 | S7: 0.4248865747 | T7: 15.14 | U7: 1 | V7: =CORREL(P209:P317,S208:S316) -> 0.3364499947 | Y7: -9822.924936 | Z7: -9813.377251 | AA7: 0 | AG7: =SIN((2*PI()*(Z7-2000+AH7)/171.858328151339) + 3.421821408) -> -0.5571049911 | AH7: -36.35 | AI7: 1 | AJ7: =CORREL(AD161:AD626,AG160:AG625) -> 0.1703617656 | AM7: -9651.066608 | AN7: -9622.423553 | AO7: 2 | AP7: 0.6666666667 | AQ7: 0.6666666667 | AR7: 0 | AS7: 1.333333333 | AU7: =SIN((2*PI()*(AN7-2000+AV7)/515.574984454017) + 2.187804708) -> 0.1332090142 | AV7: -168.5 | AW7: 1 | AX7: =CORREL(AR55:AR210,AU54:AU209) -> 0.2834118682 | BA7: -9135.491623 | BB7: -9049.562459 | BC7: 0 | BD7: 2 | BE7: 2.444444444 | BF7: -0.4444444444 | BG7: -2.444444444 | BI7: 0.9180427971 | BJ7: 71.5 | BK7: 1 | BL7: =CORREL(BG6:BG71,BI5:BI70) -> 0.1896186884
B8: TAUPO New Zealand T 9210 BC (?) 4 | C8: -9210 | D8: 1 | E8: 0 | F8: 0 | K8: 36.65103196 | L8: 39.83359359 | M8: 1 | S8: 0.9073632948 | T8: 15.14 | U8: 2 | V8: =CORREL(P209:P317,S207:S315) -> 0.0744301198 | Y8: -9803.829566 | Z8: -9794.281881 | AA8: 0 | AG8: -0.9605650548 | AH8: -36.35 | AI8: 2 | AJ8: =CORREL(AD161:AD626,AG159:AG624) -> 0.03872531099 | AM8: -9593.780498 | AN8: -9565.137444 | AO8: 0 | AP8: 0.6666666667 | AQ8: 0.8888888889 | AR8: -0.2222222222 | AS8: -0.8888888889 | AU8: -0.5350150403 | AV8: -168.5 | AW8: 2 | AX8: =CORREL(AR55:AR210,AU53:AU208) -> 0.06492133794 | BA8: -8963.633295 | BB8: -8877.704131 | BC8: 2 | BD8: 2 | BE8: 3.444444444 | BF8: -1.444444444 | BG8: -1.444444444 | BI8: 0.9581148516 | BJ8: 71.5 | BK8: 2 | BL8: =CORREL(BG6:BG71,BI4:BI69) -> 0.04129564419
B9: KUJU Kyushu (Japan) G 9160 BC ± 1000 years 4 | C9: -9160 | D9: 1 | E9: 0 | F9: 0 | J9: Oxy Observ | K9: 43.01615522 | L9: 46.19871685 | M9: 0 | N9: =AVERAGE(M8:M10) -> 2.333333333 | O9: =AVERAGE(M5:M13) -> 1.666666667 | P9: =N9-O9 -> 0.6666666667 | Q9: =M9-O9 -> -1.666666667 | S9: 0.965274645 | T9: 15.14 | U9: 3 | V9: =CORREL(P209:P317,S206:S314) -> -0.21919174 | X9: Oxy Observ | Y9: -9784.734196 | Z9: -9775.186511 | AA9: 0 | AB9: =AVERAGE(AA8:AA10) -> 0 | AC9: =AVERAGE(AA5:AA13) -> 0 | AD9: =AB9-AC9 -> 0 | AE9: =AA9-AC9 -> 0 | AG9: -0.9145660538 | AH9: -36.35 | AI9: 3 | AJ9: =CORREL(AD161:AD626,AG158:AG623) -> -0.1114285754 | AL9: Oxy Observ | AM9: -9536.494389 | AN9: -9507.851334 | AO9: 0 | AP9: =AVERAGE(AO8:AO10) -> 1.333333333 | AQ9: =AVERAGE(AO5:AO13) -> 0.8888888889 | AR9: =AP9-AQ9 -> 0.4444444444 | AS9: =AO9-AQ9 -> -0.8888888889 | AU9: -0.9528996114 | AV9: -168.5 | AW9: 3 | AX9: =CORREL(AR55:AR210,AU52:AU207) -> -0.1840867888 | AZ9: Oxy Observ | BA9: -8791.774967 | BB9: -8705.845803 | BC9: 4 | BD9: =AVERAGE(BC8:BC10) -> 2.333333333 | BE9: =AVERAGE(BC5:BC13) -> 3.777777778 | BF9: =BD9-BE9 -> -1.444444444 | BG9: =BC9-BE9 -> 0.2222222222 | BI9: 0.5498743188 | BJ9: 71.5 | BK9: 3 | BL9: =CORREL(BG6:BG71,BI3:BI68) -> -0.1254682504
B10: ASKJA Northeastern Iceland G 8910 BC ± 200 years 5 | C10: -8910 | D10: 2 | E10: 2 | F10: 0 | G10: -8878 | H10: ** | J10: =COUNT(M2:M1000) -> 316 | K10: 49.38127849 | L10: 52.56384012 | M10: 6 | N10: =AVERAGE(M9:M11) -> 3.333333333 | O10: =AVERAGE(M6:M14) -> 2 | P10: =N10-O10 -> 1.333333333 | Q10: =M10-O10 -> 4 | S10: 0.571523261 | T10: 15.14 | U10: 4 | V10: =CORREL(P209:P317,S205:S313) -> -0.413458225 | X10: =COUNT(AA2:AA1000) -> 625 | Y10: -9765.638827 | Z10: -9756.091142 | AA10: 0 | AB10: =AVERAGE(AA9:AA11) -> 0 | AC10: =AVERAGE(AA6:AA14) -> 0 | AD10: =AB10-AC10 -> 0 | AE10: =AA10-AC10 -> 0 | AG10: -0.440631432 | AH10: -36.35 | AI10: 4 | AJ10: =CORREL(AD161:AD626,AG157:AG622) -> -0.2091696433 | AL10: =COUNT(AO2:AO1000) -> 209 | AM10: -9479.20828 | AN10: -9450.565225 | AO10: 4 | AP10: =AVERAGE(AO9:AO11) -> 1.333333333 | AQ10: =AVERAGE(AO6:AO14) -> 1.111111111 | AR10: =AP10-AQ10 -> 0.2222222222 | AS10: =AO10-AQ10 -> 2.888888889 | AU10: -0.924911864 | AV10: -168.5 | AW10: 4 | AX10: =CORREL(AR55:AR210,AU51:AU206) -> -0.3482303532 | AZ10: =COUNT(BC2:BC1000) -> 70 | BA10: -8619.916639 | BB10: -8533.987475 | BC10: 1 | BD10: =AVERAGE(BC9:BC11) -> 2.333333333 | BE10: =AVERAGE(BC6:BC14) -> 3.666666667 | BF10: =BD10-BE10 -> -1.333333333 | BG10: =BC10-BE10 -> -2.666666667 | BI10: -0.1156585189 | BJ10: 71.5 | BK10: 4 | BL10: =CORREL(BG6:BG71,BI2:BI67) -> -0.2315257935
B11: ULREUNG Korea G 8750 BC (?) 6 | C11: -8750 | D11: 4 | E11: 4 | F11: 4 | K11: 55.74640175 | L11: 58.92896338 | M11: 4 | N11: 3.333333333 | O11: 2 | P11: 1.333333333 | Q11: 2 | S11: -0.08965020859 | T11: 15.14 | Y11: -9746.543457 | Z11: -9736.995772 | AA11: 0 | AB11: 0 | AC11: 0 | AD11: 0 | AE11: 0 | AG11: 0.2394795339 | AH11: -36.35 | AM11: -9421.92217 | AN11: -9393.279116 | AO11: 0 | AP11: 2 | AQ11: 1.111111111 | AR11: 0.8888888889 | AS11: -1.111111111 | AU11: -0.4641475762 | AV11: -168.5 | BA11: -8448.058311 | BB11: -8362.129147 | BC11: 2 | BD11: 4 | BE11: 4 | BF11: 0 | BG11: -2 | BI11: -0.7270734502 | BJ11: 71.5
B12: CAMPI FLEGREI Italy G 8480 BC ± 100 years 4 | C12: -8480 | D12: 1 | E12: 0 | F12: 0 | J12: BP Observ | K12: 62.11152502 | L12: 65.29408665 | M12: 0 | N12: 2.333333333 | O12: 2.111111111 | P12: 0.2222222222 | Q12: -2.111111111 | S12: -0.7088753493 | T12: 15.14 | V12: 11.5 cycles | X12: BP Observ | Y12: -9727.448087 | Z12: -9717.900402 | AA12: 0 | AB12: 0 | AC12: 0.2222222222 | AD12: -0.2222222222 | AE12: -0.2222222222 | AG12: 0.8075353644 | AH12: -36.35 | AJ12: 51 cycles | AL12: BP Observ | AM12: -9364.636061 | AN12: -9335.993006 | AO12: 2 | AP12: 0.6666666667 | AQ12: 0.8888888889 | AR12: -0.2222222222 | AS12: 1.111111111 | AU12: 0.2137965209 | AV12: -168.5 | AX12: 17 cycles | AZ12: BP Observ | BA12: -8276.199983 | BB12: -8190.270818 | BC12: 9 | BD12: 5.666666667 | BE12: 6.555555556 | BF12: -0.8888888889 | BG12: 2.444444444 | BI12: -0.9982826337 | BJ12: 71.5 | BL12: 7.3 cycles
B13: SHIVELUCH Kamchatka Peninsula (Russia) T 8350 BC (?) 4 | C13: -8350 | D13: 1 | E13: 0 | F13: 0 | G13: -8362 | J13: =COUNT(Q2:Q1000) -> 305 | K13: 68.47664828 | L13: =L12+6.3651232648644 -> 71.65920991 | M13: 3 | N13: 2.333333333 | O13: 2.222222222 | P13: 0.1111111111 | Q13: 0.7777777778 | S13: -0.9964098357 | T13: 15.14 | V13: 95% | X13: =COUNT(AE2:AE1000) -> 614 | Y13: -9708.352717 | Z13: -9698.805032 | AA13: 0 | AB13: 0 | AC13: 0.2222222222 | AD13: -0.2222222222 | AE13: -0.2222222222 | AG13: 0.9977364231 | AH13: -36.35 | AJ13: 95% | AL13: =COUNT(AS2:AS1000) -> 201 | AM13: -9307.349951 | AN13: -9278.706897 | AO13: 0 | AP13: 1.333333333 | AQ13: 0.8888888889 | AR13: 0.4444444444 | AS13: -0.8888888889 | AU13: 0.7917028498 | AV13: -168.5 | AX13: 95% | AZ13: =COUNT(BG2:BG1000) -> 66 | BA13: -8104.341654 | BB13: -8018.41249 | BC13: 6 | BD13: 6.666666667 | BE13: 7.111111111 | BF13: -0.4444444444 | BG13: -1.111111111 | BI13: -0.8023842781 | BJ13: 71.5 | BL13: 85%
B14: AKITA-KOMAGA-TAKE Honshu (Japan) T 8300 BC ± 300 years 4 | C14: -8300 | D14: 1 | E14: 0 | F14: 0 | K14: 74.84177155 | L14: 78.02433318 | M14: 4 | N14: 2.333333333 | O14: 2.222222222 | P14: 0.1111111111 | Q14: 1.777777778 | S14: -0.8177130862 | T14: 15.14 | V14: from 1319 | Y14: -9689.257347 | Z14: -9679.709662 | AA14: 0 | AB14: 0 | AC14: 0.2222222222 | AD14: -0.2222222222 | AE14: -0.2222222222 | AG14: 0.7210855209 | AH14: -36.35 | AJ14: from 6873 BC | AM14: -9250.063842 | AN14: -9221.420787 | AO14: 2 | AP14: 0.6666666667 | AQ14: 0.8888888889 | AR14: -0.2222222222 | AS14: 1.111111111 | AU14: 0.9991626165 | AV14: -168.5 | AX14: from 6873 BC | BA14: -7932.483326 | BB14: -7846.554162 | BC14: 5 | BD14: 6 | BE14: 7.111111111 | BF14: -1.111111111 | BG14: -2.111111111 | BI14: -0.2310414013 | BJ14: 71.5 | BL14: from 9221 BC
B15: NGOZI Eastern Africa G 8250 BC C | C15: -8250 | D15: 1 | E15: 0 | F15: 0 | K15: 81.20689481 | L15: 84.38945644 | M15: 0 | N15: 1.666666667 | O15: 1.555555556 | P15: 0.1111111111 | Q15: -1.555555556 | S15: -0.2563992958 | T15: 15.14 | V15: to 1981 | Y15: -9670.161978 | Z15: -9660.614293 | AA15: 0 | AB15: 0.6666666667 | AC15: 0.2222222222 | AD15: 0.4444444444 | AE15: -0.2222222222 | AG15: 0.1070306894 | AH15: -36.35 | AJ15: to 1930 | AM15: -9192.777733 | AN15: -9164.134678 | AO15: 0 | AP15: 0.6666666667 | AQ15: 0.6666666667 | AR15: 0 | AS15: -0.6666666667 | AU15: 0.7391030905 | AV15: -168.5 | AX15: to 1778 | BA15: -7760.624998 | BB15: -7674.695834 | BC15: 7 | BD15: 11.66666667 | BE15: 8 | BF15: 3.666666667 | BG15: -1 | BI15: 0.4484083149 | BJ15: 71.5 | BL15: to 1949
B16: GRIMSVOTN Northeastern Iceland G 8230 BC ± 50 years 6 | C16: -8230 | D16: 4 | E16: 4 | F16: 4 | K16: 87.57201808 | L16: 90.75457971 | M16: 1 | N16: 1 | O16: 1.111111111 | P16: -0.1111111111 | Q16: -0.1111111111 | S16: 0.4248865747 | T16: 15.14 | Y16: -9651.066608 | Z16: -9641.518923 | AA16: 2 | AB16: 0.6666666667 | AC16: 0.2222222222 | AD16: 0.4444444444 | AE16: 1.777777778 | AG16: -0.5571049911 | AH16: -36.35 | AM16: -9135.491623 | AN16: -9106.848569 | AO16: 0 | AP16: 0 | AQ16: 0.6666666667 | AR16: -0.6666666667 | AS16: -0.6666666667 | AU16: 0.1332090142 | AV16: -168.5 | BA16: -7588.76667 | BB16: -7502.837506 | BC16: 23 | BD16: 12.33333333 | BE16: 8.222222222 | BF16: 4.111111111 | BG16: 14.77777778 | BI16: 0.9180427971 | BJ16: 71.5
B17: PELEE West Indies G 8210 BC ± 200 years 4? | C17: -8210 | D17: 1 | E17: 0 | F17: 0 | K17: 93.93714134 | L17: 97.11970297 | M17: 2 | N17: 1 | O17: 1.111111111 | P17: -0.1111111111 | Q17: 0.8888888889 | S17: 0.9073632948 | T17: 15.14 | V17: This analysis | Y17: -9631.971238 | Z17: -9622.423553 | AA17: 0 | AB17: 0.6666666667 | AC17: 0.2222222222 | AD17: 0.4444444444 | AE17: -0.2222222222 | AG17: -0.9605650548 | AH17: -36.35 | AJ17: This analysis | AM17: -9078.205514 | AN17: -9049.562459 | AO17: 0 | AP17: 0 | AQ17: 0.4444444444 | AR17: -0.4444444444 | AS17: -0.4444444444 | AU17: -0.5350150403 | AV17: -168.5 | AX17: This analysis | BA17: -7416.908342 | BB17: -7330.979178 | BC17: 7 | BD17: 11.33333333 | BE17: 8.777777778 | BF17: 2.555555556 | BG17: -1.777777778 | BI17: 0.9581148516 | BJ17: 71.5 | BL17: This analysis
B18: SHIVELUCH Kamchatka Peninsula (Russia) T 8200 BC (?) 4 | C18: -8200 | D18: 1 | E18: 0 | F18: 0 | K18: 100.3022646 | L18: 103.4848262 | M18: 0 | N18: 0.6666666667 | O18: 1 | P18: -0.3333333333 | Q18: -1 | S18: 0.965274645 | T18: 15.14 | V18: only uses | Y18: =Y17+19.0953697945932 -> -9612.875868 | Z18: =Z17+19.0953697945932 -> -9603.328183 | AA18: 0 | AB18: 0 | AC18: 0.2222222222 | AD18: -0.2222222222 | AE18: -0.2222222222 | AG18: -0.9145660538 | AH18: -36.35 | AJ18: only uses | AM18: -9020.919405 | AN18: -8992.27635 | AO18: 0 | AP18: 0.6666666667 | AQ18: 0.8888888889 | AR18: -0.2222222222 | AS18: -0.8888888889 | AU18: -0.9528996114 | AV18: -168.5 | AX18: only uses | BA18: =BA17+171.858328151339 -> -7245.050014 | BB18: =BB17+171.858328151339 -> -7159.12085 | BC18: 4 | BD18: 6.666666667 | BE18: =AVERAGE(BC14:BC22) -> 9.444444444 | BF18: =BD18-BE18 -> -2.777777778 | BG18: =BC18-BE18 -> -5.444444444 | BI18: =SIN((2*PI()*(BB18-2000+BJ18)/1546.72495336205) + 1.776465808) -> 0.5498743188 | BJ18: =BJ17 -> 71.5 | BL18: only uses
B19: TAUPO New Zealand G 8130 BC ± 200 years 5 | C19: -8130 | D19: 2 | E19: 2 | F19: 0 | K19: 106.6673879 | L19: 109.8499495 | M19: 0 | N19: 0 | O19: 0.5555555556 | P19: -0.5555555556 | Q19: -0.5555555556 | S19: 0.571523261 | T19: 15.14 | V19: volcanoes with | Y19: -9593.780498 | Z19: -9584.232813 | AA19: 0 | AB19: 0 | AC19: 0.2222222222 | AD19: -0.2222222222 | AE19: -0.2222222222 | AG19: -0.440631432 | AH19: -36.35 | AJ19: volcanoes with | AM19: =AM18+57.2861093837796 -> -8963.633295 | AN19: =AN18+57.2861093837796 -> -8934.99024 | AO19: 2 | AP19: 0.6666666667 | AQ19: =AVERAGE(AO15:AO23) -> 0.6666666667 | AR19: =AP19-AQ19 -> 0 | AS19: =AO19-AQ19 -> 1.333333333 | AU19: =SIN((2*PI()*(AN19-2000+AV19)/515.574984454017) + 2.187804708) -> -0.924911864 | AV19: =AV18 -> -168.5 | AX19: volcanoes with | BA19: -7073.191686 | BB19: -6987.262521 | BC19: 9 | BD19: 5.666666667 | BE19: 9.333333333 | BF19: -3.666666667 | BG19: -0.3333333333 | BI19: -0.1156585189 | BJ19: 71.5 | BL19: volcanoes with
B20: SHIVELUCH Kamchatka Peninsula (Russia) T 8100 BC (?) 4 | C20: -8100 | D20: 1 | E20: 0 | F20: 0 | K20: 113.0325111 | L20: 116.2150728 | M20: 0 | N20: 0 | O20: 0.5555555556 | P20: -0.5555555556 | Q20: -0.5555555556 | S20: -0.08965020859 | T20: 15.14 | V20: magnitudes of | Y20: -9574.685129 | Z20: -9565.137444 | AA20: 0 | AB20: 0 | AC20: 0.2222222222 | AD20: -0.2222222222 | AE20: -0.2222222222 | AG20: 0.2394795339 | AH20: -36.35 | AJ20: magnitudes of | AM20: -8906.347186 | AN20: -8877.704131 | AO20: 0 | AP20: 0.6666666667 | AQ20: 0.6666666667 | AR20: 0 | AS20: -0.6666666667 | AU20: -0.4641475762 | AV20: -168.5 | AX20: magnitudes of | BA20: -6901.333357 | BB20: -6815.404193 | BC20: 4 | BD20: 9 | BE20: 10.44444444 | BF20: -1.444444444 | BG20: -6.444444444 | BI20: -0.7270734502 | BJ20: 71.5 | BL20: magnitudes of
B21: VESTMANNAEYJAR Southern Iceland T 8050 BC (?) 4 | C21: -8050 | D21: 1 | E21: 0 | F21: 0 | K21: 119.3976344 | L21: 122.580196 | M21: 0 | N21: 0.6666666667 | O21: 1 | P21: -0.3333333333 | Q21: -1 | S21: -0.7088753493 | T21: 15.14 | V21: 4 or higher. | Y21: -9555.589759 | Z21: -9546.042074 | AA21: 0 | AB21: 0 | AC21: 0 | AD21: 0 | AE21: 0 | AG21: 0.8075353644 | AH21: -36.35 | AJ21: 5 and higher. | AM21: -8849.061076 | AN21: -8820.418022 | AO21: 0 | AP21: 1.333333333 | AQ21: 0.6666666667 | AR21: 0.6666666667 | AS21: -0.6666666667 | AU21: 0.2137965209 | AV21: -168.5 | AX21: 5 and higher. | BA21: -6729.475029 | BB21: -6643.545865 | BC21: 14 | BD21: 10 | BE21: 8.777777778 | BF21: 1.222222222 | BG21: 5.222222222 | BI21: -0.9982826337 | BJ21: 71.5 | BL21: 4 and higher.
B22: KIZIMEN Kamchatka Peninsula (Russia) T 8050 BC (?) 5 | C22: -8050 | D22: 2 | E22: 2 | F22: 0 | K22: =K21+6.3651232648644 -> 125.7627577 | L22: =L21+6.3651232648644 -> 128.9453193 | M22: 2 | N22: =AVERAGE(M21:M23) -> 0.6666666667 | O22: =AVERAGE(M18:M26) -> 0.7777777778 | P22: =N22-O22 -> -0.1111111111 | Q22: =M22-O22 -> 1.222222222 | S22: =SIN((2*PI()*(L22-2000+T22)/57.2861093837796) + 0.840686201) -> -0.9964098357 | T22: 15.14 | Y22: -9536.494389 | Z22: -9526.946704 | AA22: 0 | AB22: 0 | AC22: 0.4444444444 | AD22: -0.4444444444 | AE22: -0.4444444444 | AG22: 0.9977364231 | AH22: -36.35 | AM22: -8791.774967 | AN22: =AN21+57.2861093837796 -> -8763.131912 | AO22: 4 | AP22: 1.333333333 | AQ22: 0.6666666667 | AR22: 0.6666666667 | AS22: 3.333333333 | AU22: 0.7917028498 | AV22: -168.5 | BA22: -6557.616701 | BB22: -6471.687537 | BC22: 12 | BD22: 10 | BE22: 9 | BF22: 1 | BG22: 3 | BI22: -0.8023842781 | BJ22: 71.5
B23: HACHIJO-JIMA Izu Islands (Japan) T 8020 BC ± 1000 years 4 | C23: -8020 | D23: 1 | E23: 0 | F23: =IF(D23>2, D23,"0") -> 0 | K23: 132.1278809 | L23: 135.3104426 | M23: 0 | N23: 0.6666666667 | O23: 0.8888888889 | P23: -0.2222222222 | Q23: -0.8888888889 | S23: -0.8177130862 | T23: 15.14 | Y23: -9517.399019 | Z23: -9507.851334 | AA23: 0 | AB23: 0 | AC23: 0.4444444444 | AD23: -0.4444444444 | AE23: -0.4444444444 | AG23: 0.7210855209 | AH23: -36.35 | AM23: -8734.488858 | AN23: -8705.845803 | AO23: 0 | AP23: 1.333333333 | AQ23: 0.6666666667 | AR23: 0.6666666667 | AS23: -0.6666666667 | AU23: 0.9991626165 | AV23: -168.5 | BA23: -6385.758373 | BB23: -6299.829209 | BC23: 4 | BD23: 11 | BE23: 10.33333333 | BF23: 0.6666666667 | BG23: -6.333333333 | BI23: -0.2310414013 | BJ23: 71.5
B24: SHIVELUCH Kamchatka Peninsula (Russia) T 7950 BC (?) 4 | C24: -7950 | D24: 1 | E24: 0 | F24: 0 | K24: 138.4930042 | L24: 141.6755658 | M24: 0 | N24: 1.666666667 | O24: 0.8888888889 | P24: 0.7777777778 | Q24: -0.8888888889 | S24: -0.2563992958 | T24: 15.14 | U24: Cycle # | V24: 3-9 BP Correl | Y24: -9498.303649 | Z24: -9488.755965 | AA24: 0 | AB24: 0 | AC24: 0.4444444444 | AD24: -0.4444444444 | AE24: -0.4444444444 | AG24: 0.1070306894 | AH24: -36.35 | AM24: -8677.202748 | AN24: -8648.559694 | AO24: 0 | AP24: 0 | AQ24: 0.4444444444 | AR24: -0.4444444444 | AS24: -0.4444444444 | AU24: 0.7391030905 | AV24: -168.5 | BA24: -6213.900045 | BB24: -6127.970881 | BC24: 17 | BD24: 9.666666667 | BE24: 9.888888889 | BF24: -0.2222222222 | BG24: 7.111111111 | BI24: 0.4484083149 | BJ24: 71.5
B25: KSUDACH Kamchatka Peninsula (Russia) G 7900 BC (?) 5 | C25: -7900 | D25: 2 | E25: 2 | F25: 0 | K25: 144.8581275 | L25: 148.0406891 | M25: 5 | N25: 1.666666667 | O25: 0.8888888889 | P25: 0.7777777778 | Q25: 4.111111111 | S25: 0.4248865747 | T25: 15.14 | U25: -4 | V25: =CORREL(P101:P209,S105:S213) -> 0.1616934539 | Y25: -9479.20828 | Z25: -9469.660595 | AA25: 0 | AB25: 1.333333333 | AC25: 0.4444444444 | AD25: 0.8888888889 | AE25: -0.4444444444 | AG25: -0.5571049911 | AH25: -36.35 | AM25: -8619.916639 | AN25: -8591.273584 | AO25: 0 | AP25: 0 | AQ25: 0.4444444444 | AR25: -0.4444444444 | AS25: -0.4444444444 | AU25: 0.1332090142 | AV25: -168.5 | BA25: -6042.041717 | BB25: -5956.112553 | BC25: 8 | BD25: 11.33333333 | BE25: 10.11111111 | BF25: 1.222222222 | BG25: -2.111111111 | BI25: 0.9180427971 | BJ25: 71.5
B26: AKITA-KOMAGA-TAKE Honshu (Japan) G 7850 BC ± 200 years 4 | C26: -7850 | D26: 1 | E26: 0 | F26: 0 | G26: -7847 | K26: 151.2232507 | L26: 154.4058124 | M26: 0 | N26: 2 | O26: 1 | P26: 1 | Q26: -1 | S26: 0.9073632948 | T26: 15.14 | U26: -3 | V26: =CORREL(P101:P209,S104:S212) -> 0.1224345873 | Y26: -9460.11291 | Z26: -9450.565225 | AA26: 4 | AB26: 1.333333333 | AC26: 0.4444444444 | AD26: 0.8888888889 | AE26: 3.555555556 | AG26: -0.9605650548 | AH26: -36.35 | AM26: -8562.630529 | AN26: -8533.987475 | AO26: 0 | AP26: 0 | AQ26: 0.4444444444 | AR26: -0.4444444444 | AS26: -0.4444444444 | AU26: -0.5350150403 | AV26: -168.5 | BA26: -5870.183388 | BB26: -5784.254224 | BC26: 9 | BD26: 11 | BE26: 9.888888889 | BF26: 1.111111111 | BG26: -0.8888888889 | BI26: 0.9581148516 | BJ26: 71.5
B27: RUAPEHU New Zealand C 7840 BC (in or before) 4 | C27: -7840 | D27: 1 | E27: 0 | F27: 0 | K27: 157.588374 | L27: 160.7709356 | M27: 1 | N27: 0.3333333333 | O27: 0.7777777778 | P27: -0.4444444444 | Q27: 0.2222222222 | S27: 0.965274645 | T27: 15.14 | U27: -2 | V27: =CORREL(P101:P209,S103:S211) -> 0.02669486603 | Y27: -9441.01754 | Z27: -9431.469855 | AA27: 0 | AB27: 1.333333333 | AC27: 0.6666666667 | AD27: 0.6666666667 | AE27: -0.6666666667 | AG27: -0.9145660538 | AH27: -36.35 | AM27: -8505.34442 | AN27: -8476.701365 | AO27: 0 | AP27: 0 | AQ27: 0.4444444444 | AR27: -0.4444444444 | AS27: -0.4444444444 | AU27: -0.9528996114 | AV27: -168.5 | BA27: -5698.32506 | BB27: -5612.395896 | BC27: 16 | BD27: 10 | BE27: 8.777777778 | BF27: 1.222222222 | BG27: 7.222222222 | BI27: 0.5498743188 | BJ27: 71.5
B28: TOLIMA, NEVADO DEL Colombia C 7800 BC ± 300 years P | C28: -7800 | D28: 1 | E28: 0 | F28: 0 | K28: 163.9534973 | L28: 167.1360589 | M28: 0 | N28: 0.3333333333 | O28: 0.8888888889 | P28: -0.5555555556 | Q28: -0.8888888889 | S28: 0.571523261 | T28: 15.14 | U28: -1 | V28: =CORREL(P101:P209,S102:S210) -> -0.08153856893 | Y28: -9421.92217 | Z28: -9412.374485 | AA28: 0 | AB28: 0 | AC28: 0.6666666667 | AD28: -0.6666666667 | AE28: -0.6666666667 | AG28: -0.440631432 | AH28: -36.35 | AM28: -8448.058311 | AN28: -8419.415256 | AO28: 0 | AP28: 0 | AQ28: 0.4444444444 | AR28: -0.4444444444 | AS28: -0.4444444444 | AU28: -0.924911864 | AV28: -168.5 | BA28: -5526.466732 | BB28: -5440.537568 | BC28: 5 | BD28: 9 | BE28: 9.111111111 | BF28: -0.1111111111 | BG28: -4.111111111 | BI28: -0.1156585189 | BJ28: 71.5
B29: TUNGURAHUA Ecuador C 7750 BC (?) 4 | C29: -7750 | D29: 1 | E29: 0 | F29: 0 | K29: 170.3186205 | L29: 173.5011822 | M29: 0 | N29: 0.3333333333 | O29: 1 | P29: -0.6666666667 | Q29: -1 | S29: -0.08965020859 | T29: 15.14 | U29: 0 | V29: =CORREL(P101:P209,S101:S209) -> -0.152424613 | Y29: -9402.8268 | Z29: -9393.279116 | AA29: 0 | AB29: 0 | AC29: 0.6666666667 | AD29: -0.6666666667 | AE29: -0.6666666667 | AG29: 0.2394795339 | AH29: -36.35 | AM29: -8390.772201 | AN29: -8362.129147 | AO29: 0 | AP29: 0 | AQ29: 0.6666666667 | AR29: -0.6666666667 | AS29: -0.6666666667 | AU29: -0.4641475762 | AV29: -168.5 | BA29: -5354.608404 | BB29: -5268.67924 | BC29: 6 | BD29: 7.666666667 | BE29: 7.888888889 | BF29: -0.2222222222 | BG29: -1.888888889 | BI29: -0.7270734502 | BJ29: 71.5
B30: SHIVELUCH Kamchatka Peninsula (Russia) T 7700 BC (?) 4 | C30: -7700 | D30: 1 | E30: 0 | F30: 0 | K30: 176.6837438 | L30: 179.8663054 | M30: 1 | N30: 0.3333333333 | O30: 0.5555555556 | P30: -0.2222222222 | Q30: 0.4444444444 | S30: -0.7088753493 | T30: 15.14 | U30: 1 | V30: =CORREL(P101:P209,S100:S208) -> -0.1511793041 | Y30: -9383.731431 | Z30: -9374.183746 | AA30: 0 | AB30: 0.6666666667 | AC30: 0.6666666667 | AD30: 0 | AE30: -0.6666666667 | AG30: 0.8075353644 | AH30: -36.35 | AM30: -8333.486092 | AN30: -8304.843037 | AO30: 0 | AP30: 1.333333333 | AQ30: 0.8888888889 | AR30: 0.4444444444 | AS30: -0.8888888889 | AU30: 0.2137965209 | AV30: -168.5 | BA30: -5182.750076 | BB30: -5096.820912 | BC30: 12 | BD30: 6.666666667 | BE30: 9.333333333 | BF30: -2.666666667 | BG30: 2.666666667 | BI30: -0.9982826337 | BJ30: 71.5
B31: SHASTA California (USA) C 7650 BC ± 100 years 4 | C31: -7650 | D31: 1 | E31: 0 | F31: 0 | K31: 183.048867 | L31: 186.2314287 | M31: 0 | N31: 0.6666666667 | O31: 0.5555555556 | P31: 0.1111111111 | Q31: -0.5555555556 | S31: -0.9964098357 | T31: 15.14 | U31: 2 | V31: =CORREL(P101:P209,S99:S207) -> -0.07920315986 | Y31: -9364.636061 | Z31: -9355.088376 | AA31: 2 | AB31: 0.6666666667 | AC31: 0.2222222222 | AD31: 0.4444444444 | AE31: 1.777777778 | AG31: 0.9977364231 | AH31: -36.35 | AM31: -8276.199983 | AN31: -8247.556928 | AO31: 4 | AP31: 1.333333333 | AQ31: 0.8888888889 | AR31: 0.4444444444 | AS31: 3.111111111 | AU31: 0.7917028498 | AV31: -168.5 | BA31: -5010.891748 | BB31: -4924.962584 | BC31: 2 | BD31: 7 | BE31: 8.666666667 | BF31: -1.666666667 | BG31: -6.666666667 | BI31: -0.8023842781 | BJ31: 71.5
B32: SHIVELUCH Kamchatka Peninsula (Russia) T 7630 BC (?) 4 | C32: -7630 | D32: 1 | E32: 0 | F32: 0 | K32: 189.4139903 | L32: 192.5965519 | M32: 1 | N32: 0.6666666667 | O32: 0.4444444444 | P32: 0.2222222222 | Q32: 0.5555555556 | S32: -0.8177130862 | T32: 15.14 | U32: 3 | V32: =CORREL(P101:P209,S98:S206) -> 0.02903400542 | Y32: =Y31+19.0953697945932 -> -9345.540691 | Z32: =Z31+19.0953697945932 -> -9335.993006 | AA32: 0 | AB32: 0.6666666667 | AC32: =AVERAGE(AA28:AA36) -> 0.2222222222 | AD32: =AB32-AC32 -> 0.4444444444 | AE32: =AA32-AC32 -> -0.2222222222 | AG32: =SIN((2*PI()*(Z32-2000+AH32)/171.858328151339) + 3.421821408) -> 0.7210855209 | AH32: =AH31 -> -36.35 | AM32: -8218.913873 | AN32: -8190.270818 | AO32: 0 | AP32: 2 | AQ32: 0.8888888889 | AR32: 1.111111111 | AS32: -0.8888888889 | AU32: 0.9991626165 | AV32: -168.5 | BA32: -4839.03342 | BB32: -4753.104255 | BC32: 7 | BD32: 5 | BE32: 8 | BF32: -3 | BG32: -1 | BI32: -0.2310414013 | BJ32: 71.5
B33: SHIVELUCH Kamchatka Peninsula (Russia) T 7600 BC (?) 4 | C33: -7600 | D33: 1 | E33: 0 | F33: 0 | K33: 195.7791136 | L33: 198.9616752 | M33: 1 | N33: 1 | O33: 0.4444444444 | P33: 0.5555555556 | Q33: 0.5555555556 | S33: -0.2563992958 | T33: 15.14 | U33: 4 | V33: =CORREL(P101:P209,S97:S205) -> 0.124488733 | Y33: -9326.445321 | Z33: -9316.897636 | AA33: 0 | AB33: 0 | AC33: 0.4444444444 | AD33: -0.4444444444 | AE33: -0.4444444444 | AG33: 0.1070306894 | AH33: -36.35 | AM33: -8161.627764 | AN33: -8132.984709 | AO33: 2 | AP33: 1.333333333 | AQ33: 1.111111111 | AR33: 0.2222222222 | AS33: 0.8888888889 | AU33: 0.7391030905 | AV33: -168.5 | BA33: -4667.175091 | BB33: -4581.245927 | BC33: 6 | BD33: 11.33333333 | BE33: 8.111111111 | BF33: 3.222222222 | BG33: -2.111111111 | BI33: 0.4484083149 | BJ33: 71.5
B34: ROUNDTOP Aleutian Islands T 7600 BC ± 500 years 5? | C34: -7600 | D34: 2 | E34: 2 | F34: 0 | K34: 202.1442368 | L34: 205.3267985 | M34: 1 | N34: 0.6666666667 | O34: 0.8888888889 | P34: -0.2222222222 | Q34: 0.1111111111 | S34: 0.4248865747 | T34: 15.14 | Y34: -9307.349951 | Z34: -9297.802267 | AA34: 0 | AB34: 0 | AC34: 0.4444444444 | AD34: -0.4444444444 | AE34: -0.4444444444 | AG34: -0.5571049911 | AH34: -36.35 | AM34: -8104.341654 | AN34: -8075.6986 | AO34: 2 | AP34: 1.333333333 | AQ34: 1.111111111 | AR34: 0.2222222222 | AS34: 0.8888888889 | AU34: 0.1332090142 | AV34: -168.5 | BA34: -4495.316763 | BB34: -4409.387599 | BC34: =SUMIFS(MagAll,Age,">"&BA34,Age,"<="&BA35) -> 21 | BD34: 10 | BE34: 8 | BF34: 2 | BG34: 13 | BI34: 0.9180427971 | BJ34: 71.5
B35: OKATAINA New Zealand G 7560 BC ± 18 years 5 | C35: -7560 | D35: 2 | E35: 2 | F35: 0 | K35: 208.5093601 | L35: 211.6919217 | M35: 0 | N35: 0.3333333333 | O35: 1.222222222 | P35: -0.8888888889 | Q35: -1.222222222 | S35: 0.9073632948 | T35: 15.14 | V35: 12 cycles | Y35: -9288.254582 | Z35: -9278.706897 | AA35: 0 | AB35: 0 | AC35: 0.4444444444 | AD35: -0.4444444444 | AE35: -0.4444444444 | AG35: -0.9605650548 | AH35: -36.35 | AM35: -8047.055545 | AN35: -8018.41249 | AO35: 0 | AP35: 0.6666666667 | AQ35: 1.111111111 | AR35: -0.4444444444 | AS35: -1.111111111 | AU35: -0.5350150403 | AV35: -168.5 | BA35: -4323.458435 | BB35: -4237.529271 | BC35: 3 | BD35: 11.33333333 | BE35: 8.333333333 | BF35: 3 | BG35: -5.333333333 | BI35: 0.9581148516 | BJ35: 71.5
B36: TOWADA Honshu (Japan) T 7550 BC (?) 5 | C36: -7550 | D36: 2 | E36: 2 | F36: 0 | K36: 214.8744834 | L36: 218.057045 | M36: 0 | N36: 0 | O36: 1.222222222 | P36: -1.222222222 | Q36: -1.222222222 | S36: 0.965274645 | T36: 15.14 | V36: 50% | Y36: -9269.159212 | Z36: -9259.611527 | AA36: 0 | AB36: 0.6666666667 | AC36: 0.2222222222 | AD36: 0.4444444444 | AE36: -0.2222222222 | AG36: -0.9145660538 | AH36: -36.35 | AM36: -7989.769436 | AN36: -7961.126381 | AO36: 0 | AP36: 0.6666666667 | AQ36: 0.6666666667 | AR36: 0 | AS36: -0.6666666667 | AU36: -0.9528996114 | AV36: -168.5 | BA36: -4151.600107 | BB36: -4065.670943 | BC36: 10 | BD36: 6.333333333 | BE36: 8.777777778 | BF36: -2.444444444 | BG36: 1.222222222 | BI36: 0.5498743188 | BJ36: 71.5
B37: ELOVSKY Kamchatka Peninsula (Russia) T 7550 BC ± 500 years 4 | C37: -7550 | D37: 1 | E37: 0 | F37: 0 | K37: 221.2396066 | L37: 224.4221683 | M37: 0 | N37: 1.333333333 | O37: 1.222222222 | P37: 0.1111111111 | Q37: -1.222222222 | S37: 0.571523261 | T37: 15.14 | V37: from 632 | Y37: -9250.063842 | Z37: -9240.516157 | AA37: 2 | AB37: 0.6666666667 | AC37: 0.2222222222 | AD37: 0.4444444444 | AE37: 1.777777778 | AG37: -0.440631432 | AH37: -36.35 | AM37: -7932.483326 | AN37: -7903.840272 | AO37: 2 | AP37: 0.6666666667 | AQ37: 0.6666666667 | AR37: 0 | AS37: 1.333333333 | AU37: -0.924911864 | AV37: -168.5 | BA37: -3979.741779 | BB37: -3893.812615 | BC37: 6 | BD37: 7 | BE37: 9 | BF37: -2 | BG37: -3 | BI37: -0.1156585189 | BJ37: 71.5
B38: PAKA Eastern Africa R 7550 BC ± 1000 years C | C38: -7550 | D38: 1 | E38: 0 | F38: 0 | K38: 227.6047299 | L38: 230.7872915 | M38: 4 | N38: 2.666666667 | O38: 1.111111111 | P38: 1.555555556 | Q38: 2.888888889 | S38: -0.08965020859 | T38: 15.14 | V38: to 1319 | Y38: -9230.968472 | Z38: -9221.420787 | AA38: 0 | AB38: 0.6666666667 | AC38: 0.2222222222 | AD38: 0.4444444444 | AE38: -0.2222222222 | AG38: 0.2394795339 | AH38: -36.35 | AM38: -7875.197217 | AN38: -7846.554162 | AO38: 0 | AP38: 0.6666666667 | AQ38: 0.6666666667 | AR38: 0 | AS38: -0.6666666667 | AU38: -0.4641475762 | AV38: -168.5 | BA38: -3807.883451 | BB38: -3721.954287 | BC38: 5 | BD38: 8.666666667 | BE38: 9.555555556 | BF38: -0.8888888889 | BG38: -4.555555556 | BI38: -0.7270734502 | BJ38: 71.5
B39: SHIVELUCH Kamchatka Peninsula (Russia) T 7500 BC (?) 4+ | C39: -7500 | D39: 1 | E39: 0 | F39: 0 | K39: 233.9698532 | L39: 237.1524148 | M39: 4 | N39: 2.666666667 | O39: 1.111111111 | P39: 1.555555556 | Q39: 2.888888889 | S39: -0.7088753493 | T39: 15.14 | Y39: -9211.873102 | Z39: -9202.325418 | AA39: 0 | AB39: 0 | AC39: 0.2222222222 | AD39: -0.2222222222 | AE39: -0.2222222222 | AG39: 0.8075353644 | AH39: -36.35 | AM39: -7817.911107 | AN39: -7789.268053 | AO39: 0 | AP39: 0 | AQ39: 0.8888888889 | AR39: -0.8888888889 | AS39: -0.8888888889 | AU39: 0.2137965209 | AV39: -168.5 | BA39: -3636.025122 | BB39: -3550.095958 | BC39: 15 | BD39: 8.666666667 | BE39: 8 | BF39: 0.6666666667 | BG39: 7 | BI39: -0.9982826337 | BJ39: 71.5
B40: LVINAYA PAST Kuril Islands C 7480 BC ± 50 years 6+ | C40: -7480 | D40: 4 | E40: 4 | F40: 4 | K40: 240.3349764 | L40: 243.5175381 | M40: 0 | N40: 1.666666667 | O40: 1.111111111 | P40: 0.5555555556 | Q40: -1.111111111 | S40: -0.9964098357 | T40: 15.14 | V40: This analysis | Y40: -9192.777733 | Z40: -9183.230048 | AA40: 0 | AB40: 0 | AC40: 0.2222222222 | AD40: -0.2222222222 | AE40: -0.2222222222 | AG40: 0.9977364231 | AH40: -36.35 | AM40: -7760.624998 | AN40: -7731.981943 | AO40: 0 | AP40: 0 | AQ40: 1.333333333 | AR40: -1.333333333 | AS40: -1.333333333 | AU40: 0.7917028498 | AV40: -168.5 | BA40: -3464.166794 | BB40: -3378.23763 | BC40: 6 | BD40: 10 | BE40: 9 | BF40: 1 | BG40: -3 | BI40: -0.8023842781 | BJ40: 71.5
B41: PINATUBO Luzon (Philippines) G 7460 BC ± 150 years 6? | C41: -7460 | D41: 4 | E41: 4 | F41: 4 | K41: 246.7000997 | L41: 249.8826613 | M41: 1 | N41: 0.3333333333 | O41: 1.111111111 | P41: -0.7777777778 | Q41: -0.1111111111 | S41: -0.8177130862 | T41: 15.14 | V41: only uses | Y41: -9173.682363 | Z41: -9164.134678 | AA41: 0 | AB41: 0 | AC41: 0.2222222222 | AD41: -0.2222222222 | AE41: -0.2222222222 | AG41: 0.7210855209 | AH41: -36.35 | AM41: -7703.338889 | AN41: -7674.695834 | AO41: 0 | AP41: 0.6666666667 | AQ41: 2.444444444 | AR41: -1.777777778 | AS41: -2.444444444 | AU41: 0.9991626165 | AV41: -168.5 | BA41: -3292.308466 | BB41: -3206.379302 | BC41: 9 | BD41: 8.666666667 | BE41: 9.111111111 | BF41: -0.4444444444 | BG41: -0.1111111111 | BI41: -0.2310414013 | BJ41: 71.5
B42: USHISHUR Kuril Islands C 7450 BC ± 50 years C | C42: -7450 | D42: 1 | E42: 0 | F42: 0 | K42: 253.065223 | L42: 256.2477846 | M42: 0 | N42: 0.6666666667 | O42: 1.111111111 | P42: -0.4444444444 | Q42: -1.111111111 | S42: -0.2563992958 | T42: 15.14 | V42: volcanoes with | Y42: -9154.586993 | Z42: -9145.039308 | AA42: 0 | AB42: 0 | AC42: 0 | AD42: 0 | AE42: 0 | AG42: 0.1070306894 | AH42: -36.35 | AM42: -7646.052779 | AN42: -7617.409725 | AO42: 2 | AP42: 2 | AQ42: 2.666666667 | AR42: -0.6666666667 | AS42: -0.6666666667 | AU42: 0.7391030905 | AV42: -168.5 | BA42: -3120.450138 | BB42: -3034.520974 | BC42: 11 | BD42: 9 | BE42: 9.777777778 | BF42: -0.7777777778 | BG42: 1.222222222 | BI42: 0.4484083149 | BJ42: 71.5
B43: BURNEY, MONTE Southern Chile G 7450 BC ± 500 years 5 | C43: -7450 | D43: 2 | E43: 2 | F43: 0 | K43: 259.4303462 | L43: 262.6129079 | M43: 1 | N43: 0.3333333333 | O43: 0.6666666667 | P43: -0.3333333333 | Q43: 0.3333333333 | S43: 0.4248865747 | T43: 15.14 | V43: magnitudes of | Y43: -9135.491623 | Z43: -9125.943938 | AA43: 0 | AB43: 0 | AC43: 0 | AD43: 0 | AE43: 0 | AG43: -0.5571049911 | AH43: -36.35 | AM43: -7588.76667 | AN43: -7560.123615 | AO43: 4 | AP43: 3.333333333 | AQ43: 2.666666667 | AR43: 0.6666666667 | AS43: 1.333333333 | AU43: 0.1332090142 | AV43: -168.5 | BA43: -2948.59181 | BB43: -2862.662646 | BC43: 7 | BD43: 10 | BE43: 10.44444444 | BF43: -0.4444444444 | BG43: -3.444444444 | BI43: 0.9180427971 | BJ43: 71.5
B44: FISHER Aleutian Islands C 7420 BC ± 200 years 6? | C44: -7420 | D44: 4 | E44: 4 | F44: 4 | K44: 265.7954695 | L44: 268.9780311 | M44: 0 | N44: 0.3333333333 | O44: 0.2222222222 | P44: 0.1111111111 | Q44: -0.2222222222 | S44: 0.9073632948 | T44: 15.14 | V44: 4 or higher. | Y44: -9116.396254 | Z44: -9106.848569 | AA44: 0 | AB44: 0 | AC44: 0 | AD44: 0 | AE44: 0 | AG44: -0.9605650548 | AH44: -36.35 | AM44: -7531.480561 | AN44: -7502.837506 | AO44: 4 | AP44: 6 | AQ44: 2.888888889 | AR44: 3.111111111 | AS44: 1.111111111 | AU44: -0.5350150403 | AV44: -168.5 | BA44: -2776.733482 | BB44: -2690.804318 | BC44: 12 | BD44: 10 | BE44: 11.44444444 | BF44: -1.444444444 | BG44: 0.5555555556 | BI44: 0.9581148516 | BJ44: 71.5
B45: CHAITEN Southern Chile C 7420 BC ± 75 years C | C45: -7420 | D45: 1 | E45: 0 | F45: 0 | K45: 272.1605928 | L45: 275.3431544 | M45: 0 | N45: 0 | O45: 0.4444444444 | P45: -0.4444444444 | Q45: -0.4444444444 | S45: 0.965274645 | T45: 15.14 | Y45: -9097.300884 | Z45: -9087.753199 | AA45: 0 | AB45: 0 | AC45: 0 | AD45: 0 | AE45: 0 | AG45: -0.9145660538 | AH45: -36.35 | AM45: -7474.194451 | AN45: -7445.551396 | AO45: 10 | AP45: 6 | AQ45: 2.888888889 | AR45: 3.111111111 | AS45: 7.111111111 | AU45: -0.9528996114 | AV45: -168.5 | BA45: -2604.875154 | BB45: -2518.945989 | BC45: 11 | BD45: 11.66666667 | BE45: 13.66666667 | BF45: -2 | BG45: -2.666666667 | BI45: 0.5498743188 | BJ45: 71.5
B46: SHIVELUCH Kamchatka Peninsula (Russia) G 7400 BC ± 150 years 5 | C46: -7400 | D46: 2 | E46: 2 | F46: 0 | K46: 278.525716 | L46: 281.7082777 | M46: 0 | N46: 0 | O46: 0.5555555556 | P46: -0.5555555556 | Q46: -0.5555555556 | S46: 0.571523261 | T46: 15.14 | Y46: -9078.205514 | Z46: -9068.657829 | AA46: 0 | AB46: 0 | AC46: 0 | AD46: 0 | AE46: 0 | AG46: -0.440631432 | AH46: -36.35 | AM46: -7416.908342 | AN46: -7388.265287 | AO46: 4 | AP46: 4.666666667 | AQ46: 3.111111111 | AR46: 1.555555556 | AS46: 0.8888888889 | AU46: -0.924911864 | AV46: -168.5 | BA46: -2433.016825 | BB46: -2347.087661 | BC46: 12 | BD46: 11.33333333 | BE46: 14.66666667 | BF46: -3.333333333 | BG46: -2.666666667 | BI46: -0.1156585189 | BJ46: 71.5
B47: CHICHINAUTZIN México G 7370 BC ± 300 years 4 | C47: -7370 | D47: 1 | E47: 0 | F47: 0 | K47: 284.8908393 | L47: 288.0734009 | M47: 0 | N47: 0 | O47: 0.5555555556 | P47: -0.5555555556 | Q47: -0.5555555556 | S47: -0.08965020859 | T47: 15.14 | Y47: -9059.110144 | Z47: -9049.562459 | AA47: 0 | AB47: 0 | AC47: 0 | AD47: 0 | AE47: 0 | AG47: 0.2394795339 | AH47: -36.35 | AM47: -7359.622232 | AN47: -7330.979178 | AO47: 0 | AP47: 2 | AQ47: 2.888888889 | AR47: -0.8888888889 | AS47: -2.888888889 | AU47: -0.4641475762 | AV47: -168.5 | BA47: -2261.158497 | BB47: -2175.229333 | BC47: 11 | BD47: 15.66666667 | BE47: 15.22222222 | BF47: 0.4444444444 | BG47: -4.222222222 | BI47: -0.7270734502 | BJ47: 71.5
B48: SEGUAM Aleutian Islands R 7300 BC ± 1000 years 5? | C48: -7370 | D48: 2 | E48: 2 | F48: 0 | K48: 291.2559626 | L48: 294.4385242 | M48: 0 | N48: 0.6666666667 | O48: 0.4444444444 | P48: 0.2222222222 | Q48: -0.4444444444 | S48: -0.7088753493 | T48: 15.14 | Y48: -9040.014774 | Z48: -9030.467089 | AA48: 0 | AB48: 0 | AC48: 0 | AD48: 0 | AE48: 0 | AG48: 0.8075353644 | AH48: -36.35 | AM48: -7302.336123 | AN48: -7273.693068 | AO48: 2 | AP48: 0.6666666667 | AQ48: 2.666666667 | AR48: -2 | AS48: -0.6666666667 | AU48: 0.2137965209 | AV48: -168.5 | BA48: -2089.300169 | BB48: -2003.371005 | BC48: 24 | BD48: 20.33333333 | BE48: 16.11111111 | BF48: 4.222222222 | BG48: 7.888888889 | BI48: -0.9982826337 | BJ48: 71.5
B49: SHIVELUCH Kamchatka Peninsula (Russia) T 7300 BC (?) 5 | C49: -7300 | D49: 2 | E49: 2 | F49: 0 | G49: -7331 | H49: ** | K49: 297.6210858 | L49: 300.8036474 | M49: 2 | N49: 1.333333333 | O49: 0.4444444444 | P49: 0.8888888889 | Q49: 1.555555556 | S49: -0.9964098357 | T49: 15.14 | Y49: -9020.919405 | Z49: -9011.37172 | AA49: 0 | AB49: 0 | AC49: 0 | AD49: 0 | AE49: 0 | AG49: 0.9977364231 | AH49: -36.35 | AM49: -7245.050014 | AN49: -7216.406959 | AO49: 0 | AP49: 1.333333333 | AQ49: 2.222222222 | AR49: -0.8888888889 | AS49: -2.222222222 | AU49: 0.7917028498 | AV49: -168.5 | BA49: -1917.441841 | BB49: -1831.512677 | BC49: 26 | BD49: 22.66666667 | BE49: 15.66666667 | BF49: 7 | BG49: 10.33333333 | BI49: -0.8023842781 | BJ49: 71.5
B50: POPOCATEPETL México C 7150 BC (?) P | C50: -7150 | D50: 1 | E50: 0 | F50: 0 | K50: 303.9862091 | L50: 307.1687707 | M50: 2 | N50: 1.333333333 | O50: 0.4444444444 | P50: 0.8888888889 | Q50: 1.555555556 | S50: -0.8177130862 | T50: 15.14 | Y50: -9001.824035 | Z50: -8992.27635 | AA50: 0 | AB50: 0 | AC50: 0.2222222222 | AD50: -0.2222222222 | AE50: -0.2222222222 | AG50: 0.7210855209 | AH50: -36.35 | AM50: -7187.763904 | AN50: -7159.12085 | AO50: 2 | AP50: 0.6666666667 | AQ50: 1.555555556 | AR50: -0.8888888889 | AS50: 0.4444444444 | AU50: 0.9991626165 | AV50: -168.5 | BA50: -1745.583513 | BB50: -1659.654349 | BC50: 18 | BD50: 20 | BE50: 17.55555556 | BF50: 2.444444444 | BG50: 0.4444444444 | BI50: -0.2310414013 | BJ50: 71.5
B51: SHIVELUCH Kamchatka Peninsula (Russia) T 7150 BC (?) 5 | C51: -7150 | D51: 2 | E51: 2 | F51: 0 | K51: 310.3513323 | L51: 313.533894 | M51: 0 | N51: 0.6666666667 | O51: 0.7777777778 | P51: -0.1111111111 | Q51: -0.7777777778 | S51: -0.2563992958 | T51: 15.14 | Y51: -8982.728665 | Z51: -8973.18098 | AA51: 0 | AB51: 0 | AC51: 0.2222222222 | AD51: -0.2222222222 | AE51: -0.2222222222 | AG51: 0.1070306894 | AH51: -36.35 | AM51: -7130.477795 | AN51: -7101.83474 | AO51: 0 | AP51: 1.333333333 | AQ51: 1.333333333 | AR51: 0 | AS51: -1.333333333 | AU51: 0.7391030905 | AV51: -168.5 | BA51: -1573.725185 | BB51: -1487.796021 | BC51: 16 | BD51: 16.33333333 | BE51: 17.44444444 | BF51: -1.111111111 | BG51: -1.444444444 | BI51: 0.4484083149 | BJ51: 71.5
B52: KARKAR Northeast of New Guinea C 7140 BC ± 150 years C | C52: -7140 | D52: 1 | E52: 0 | F52: 0 | K52: 316.7164556 | L52: 319.8990172 | M52: 0 | N52: 0 | O52: 0.7777777778 | P52: -0.7777777778 | Q52: -0.7777777778 | S52: 0.4248865747 | T52: 15.14 | Y52: -8963.633295 | Z52: -8954.08561 | AA52: 0 | AB52: 0 | AC52: 0.2222222222 | AD52: -0.2222222222 | AE52: -0.2222222222 | AG52: -0.5571049911 | AH52: -36.35 | AM52: -7073.191686 | AN52: -7044.548631 | AO52: 2 | AP52: 0.6666666667 | AQ52: 1.555555556 | AR52: -0.8888888889 | AS52: 0.4444444444 | AU52: 0.1332090142 | AV52: -168.5 | BA52: -1401.866857 | BB52: -1315.937692 | BC52: 15 | BD52: 13 | BE52: 17.33333333 | BF52: -4.333333333 | BG52: -2.333333333 | BI52: 0.9180427971 | BJ52: 71.5
B53: AKAN Hokkaido (Japan) C 7050 BC (?) 4 | C53: -7050 | D53: 1 | E53: 0 | F53: 0 | K53: 323.0815789 | L53: 326.2641405 | M53: 0 | N53: 0 | O53: 1 | P53: -1 | Q53: -1 | S53: 0.9073632948 | T53: 15.14 | Y53: -8944.537925 | Z53: -8934.99024 | AA53: 0 | AB53: 0.6666666667 | AC53: 0.2222222222 | AD53: 0.4444444444 | AE53: -0.2222222222 | AG53: -0.9605650548 | AH53: -36.35 | AM53: -7015.905576 | AN53: -6987.262521 | AO53: 0 | AP53: 2 | AQ53: 1.333333333 | AR53: 0.6666666667 | AS53: -1.333333333 | AU53: -0.5350150403 | AV53: -168.5 | BA53: -1230.008528 | BB53: -1144.079364 | BC53: 8 | BD53: 17 | BE53: 15.77777778 | BF53: 1.222222222 | BG53: -7.777777778 | BI53: 0.9581148516 | BJ53: 71.5
B54: ZHELTOVSKY Kamchatka Peninsula (Russia) T 7050 BC ± 1000 years 5 | C54: -7050 | D54: 2 | E54: 2 | F54: 0 | K54: 329.4467021 | L54: 332.6292638 | M54: 0 | N54: 1 | O54: 0.7777777778 | P54: 0.2222222222 | Q54: -0.7777777778 | S54: 0.965274645 | T54: 15.14 | Y54: -8925.442556 | Z54: -8915.894871 | AA54: 2 | AB54: 0.6666666667 | AC54: 0.2222222222 | AD54: 0.4444444444 | AE54: 1.777777778 | AG54: -0.9145660538 | AH54: -36.35 | AM54: -6958.619467 | AN54: -6929.976412 | AO54: 4 | AP54: 2 | AQ54: 1.555555556 | AR54: 0.4444444444 | AS54: 2.444444444 | AU54: -0.9528996114 | AV54: -168.5 | BA54: -1058.1502 | BB54: -972.2210361 | BC54: 28 | BD54: 15.66666667 | BE54: 15.33333333 | BF54: 0.3333333333 | BG54: 12.66666667 | BI54: 0.5498743188 | BJ54: 71.5
B55: ORIZABA, PICO DE México C 7030 BC ± 50 years 4 | C55: -7030 | D55: 1 | E55: 0 | F55: 0 | K55: 335.8118254 | L55: 338.994387 | M55: 3 | N55: 1 | O55: 0.5555555556 | P55: 0.4444444444 | Q55: 2.444444444 | S55: 0.571523261 | T55: 15.14 | Y55: -8906.347186 | Z55: -8896.799501 | AA55: 0 | AB55: 0.6666666667 | AC55: 0.2222222222 | AD55: 0.4444444444 | AE55: -0.2222222222 | AG55: -0.440631432 | AH55: -36.35 | AM55: -6901.333357 | AN55: -6872.690303 | AO55: 2 | AP55: 2.666666667 | AQ55: 1.777777778 | AR55: 0.8888888889 | AS55: 0.2222222222 | AU55: -0.924911864 | AV55: -168.5 | BA55: -886.2918721 | BB55: -800.362708 | BC55: 11 | BD55: 16.33333333 | BE55: 15.66666667 | BF55: 0.6666666667 | BG55: -4.666666667 | BI55: -0.1156585189 | BJ55: 71.5
B56: SHIKOTSU Hokkaido (Japan) C 6950 BC (?) 5 | C56: -6950 | D56: 2 | E56: 2 | F56: 0 | K56: 342.1769487 | L56: 345.3595103 | M56: 0 | N56: 1.666666667 | O56: 0.5555555556 | P56: 1.111111111 | Q56: -0.5555555556 | S56: -0.08965020859 | T56: 15.14 | Y56: -8887.251816 | Z56: -8877.704131 | AA56: 0 | AB56: 0 | AC56: 0.2222222222 | AD56: -0.2222222222 | AE56: -0.2222222222 | AG56: 0.2394795339 | AH56: -36.35 | AM56: -6844.047248 | AN56: -6815.404193 | AO56: 2 | AP56: 1.333333333 | AQ56: 2.222222222 | AR56: -0.8888888889 | AS56: -0.2222222222 | AU56: -0.4641475762 | AV56: -168.5 | BA56: -714.4335439 | BB56: -628.5043798 | BC56: 10 | BD56: 10.33333333 | BE56: 16.66666667 | BF56: -6.333333333 | BG56: -6.666666667 | BI56: -0.7270734502 | BJ56: 71.5
B57: VESUVIUS Italy G 6940 BC ± 100 years 5 | C57: -6940 | D57: 2 | E57: 2 | F57: 0 | K57: 348.5420719 | L57: 351.7246336 | M57: 2 | N57: 0.6666666667 | O57: 0.6666666667 | P57: 0 | Q57: 1.333333333 | S57: -0.7088753493 | T57: 15.14 | Y57: -8868.156446 | Z57: -8858.608761 | AA57: 0 | AB57: 0 | AC57: 0.2222222222 | AD57: -0.2222222222 | AE57: -0.2222222222 | AG57: 0.8075353644 | AH57: -36.35 | AM57: -6786.761139 | AN57: -6758.118084 | AO57: 0 | AP57: 1.333333333 | AQ57: 2 | AR57: -0.6666666667 | AS57: -2 | AU57: 0.2137965209 | AV57: -168.5 | BA57: -542.5752158 | BB57: -456.6460517 | BC57: 10 | BD57: 14 | BE57: 17.66666667 | BF57: -3.666666667 | BG57: -7.666666667 | BI57: -0.9982826337 | BJ57: 71.5
B58: ATACAZO Ecuador C 6910 BC (in or before) P | C58: -6910 | D58: 1 | E58: 0 | F58: 0 | K58: 354.9071952 | L58: 358.0897568 | M58: 0 | N58: 0.6666666667 | O58: 0.6666666667 | P58: 0 | Q58: -0.6666666667 | S58: -0.9964098357 | T58: 15.14 | Y58: -8849.061076 | Z58: -8839.513392 | AA58: 0 | AB58: 0 | AC58: 0.2222222222 | AD58: -0.2222222222 | AE58: -0.2222222222 | AG58: 0.9977364231 | AH58: -36.35 | AM58: -6729.475029 | AN58: -6700.831975 | AO58: 2 | AP58: 2 | AQ58: 2 | AR58: 0 | AS58: 0 | AU58: 0.7917028498 | AV58: -168.5 | BA58: -370.7168876 | BB58: -284.7877235 | BC58: 22 | BD58: 17.66666667 | BE58: 18.77777778 | BF58: -1.111111111 | BG58: 3.222222222 | BI58: -0.8023842781 | BJ58: 71.5
B59: LLAIMA Central Chile C 6880 BC ± 75 years 5 | C59: -6880 | D59: 2 | E59: 2 | F59: 0 | K59: 361.2723185 | L59: 364.4548801 | M59: 0 | N59: 0 | O59: 0.6666666667 | P59: -0.6666666667 | Q59: -0.6666666667 | S59: -0.8177130862 | T59: 15.14 | Y59: -8829.965707 | Z59: -8820.418022 | AA59: 0 | AB59: 0 | AC59: 0.4444444444 | AD59: -0.4444444444 | AE59: -0.4444444444 | AG59: 0.7210855209 | AH59: -36.35 | AM59: -6672.18892 | AN59: -6643.545865 | AO59: 4 | AP59: 3.333333333 | AQ59: 2.666666667 | AR59: 0.6666666667 | AS59: 1.333333333 | AU59: 0.9991626165 | AV59: -168.5 | BA59: -198.8585594 | BB59: -112.9293954 | BC59: 21 | BD59: 22.66666667 | BE59: 18.44444444 | BF59: 4.222222222 | BG59: 2.555555556 | BI59: -0.2310414013 | BJ59: 71.5
B60: SHIVELUCH Kamchatka Peninsula (Russia) T 6800 BC (?) 5? | C60: -6800 | D60: 2 | E60: 2 | F60: 0 | G60: -6815 | K60: 367.6374417 | L60: 370.8200034 | M60: 0 | N60: 0.3333333333 | O60: 0.3333333333 | P60: 0 | Q60: -0.3333333333 | S60: -0.2563992958 | T60: 15.14 | Y60: -8810.870337 | Z60: -8801.322652 | AA60: 0 | AB60: 0 | AC60: 0.4444444444 | AD60: -0.4444444444 | AE60: -0.4444444444 | AG60: 0.1070306894 | AH60: -36.35 | AM60: -6614.90281 | AN60: -6586.259756 | AO60: 4 | AP60: 2.666666667 | AQ60: 2.444444444 | AR60: 0.2222222222 | AS60: 1.555555556 | AU60: 0.7391030905 | AV60: -168.5 | BA60: -27.0002313 | BB60: 58.92893278 | BC60: 25 | BD60: 23.33333333 | BE60: 21.11111111 | BF60: 2.222222222 | BG60: 3.888888889 | BI60: 0.4484083149 | BJ60: 71.5
B61: ORIZABA, PICO DE México C 6710 BC ± 150 years 5? | C61: -6710 | D61: 2 | E61: 2 | F61: 0 | K61: 374.002565 | L61: 377.1851266 | M61: 1 | N61: 0.3333333333 | O61: 0.6666666667 | P61: -0.3333333333 | Q61: 0.3333333333 | S61: 0.4248865747 | T61: 15.14 | Y61: -8791.774967 | Z61: -8782.227282 | AA61: 0 | AB61: 0 | AC61: 0.4444444444 | AD61: -0.4444444444 | AE61: -0.4444444444 | AG61: -0.5571049911 | AH61: -36.35 | AM61: -6557.616701 | AN61: -6528.973646 | AO61: 0 | AP61: 1.333333333 | AQ61: 2.222222222 | AR61: -0.8888888889 | AS61: -2.222222222 | AU61: 0.1332090142 | AV61: -168.5 | BA61: 144.8580969 | BB61: 230.7872609 | BC61: 24 | BD61: 22.33333333 | BE61: 24.44444444 | BF61: -2.111111111 | BG61: -0.4444444444 | BI61: 0.9180427971 | BJ61: 71.5
B62: VILLARRICA Central Chile C 6690 BC (?) P | C62: -6690 | D62: 1 | E62: 0 | F62: 0 | K62: 380.3676883 | L62: 383.5502499 | M62: 0 | N62: 0.3333333333 | O62: 0.4444444444 | P62: -0.1111111111 | Q62: -0.4444444444 | S62: 0.9073632948 | T62: 15.14 | Y62: -8772.679597 | Z62: -8763.131912 | AA62: 0 | AB62: 1.333333333 | AC62: 0.4444444444 | AD62: 0.8888888889 | AE62: -0.4444444444 | AG62: -0.9605650548 | AH62: -36.35 | AM62: -6500.330592 | AN62: -6471.687537 | AO62: 0 | AP62: 3.333333333 | AQ62: 2.222222222 | AR62: 1.111111111 | AS62: -2.222222222 | AU62: -0.5350150403 | AV62: -168.5 | BA62: 316.716425 | BB62: 402.6455891 | BC62: 18 | BD62: 22.33333333 | BE62: 25.77777778 | BF62: -3.444444444 | BG62: -7.777777778 | BI62: 0.9581148516 | BJ62: 71.5
B63: CAMPI FLEGREI Italy C 6650 BC ± 100 years 4 | C63: -6650 | D63: 1 | E63: 0 | F63: 0 | K63: 386.7328115 | L63: 389.9153732 | M63: 0 | N63: 0 | O63: 0.5555555556 | P63: -0.5555555556 | Q63: -0.5555555556 | S63: 0.965274645 | T63: 15.14 | Y63: -8753.584227 | Z63: -8744.036543 | AA63: 4 | AB63: 1.333333333 | AC63: 0.4444444444 | AD63: 0.8888888889 | AE63: 3.555555556 | AG63: -0.9145660538 | AH63: -36.35 | AM63: -6443.044482 | AN63: -6414.401428 | AO63: 10 | AP63: 3.333333333 | AQ63: 2.444444444 | AR63: 0.8888888889 | AS63: 7.555555556 | AU63: -0.9528996114 | AV63: -168.5 | BA63: 488.5747532 | BB63: 574.5039172 | BC63: 25 | BD63: 26 | BE63: 25.55555556 | BF63: 0.4444444444 | BG63: -0.5555555556 | BI63: 0.5498743188 | BJ63: 71.5
B64: TOWADA Honshu (Japan) C 6650 BC ± 300 years 5? | C64: -6650 | D64: 2 | E64: 2 | F64: 0 | K64: 393.0979348 | L64: 396.2804964 | M64: 0 | N64: 1 | O64: 0.6666666667 | P64: 0.3333333333 | Q64: -0.6666666667 | S64: 0.571523261 | T64: 15.14 | Y64: -8734.488858 | Z64: -8724.941173 | AA64: 0 | AB64: 1.333333333 | AC64: 0.4444444444 | AD64: 0.8888888889 | AE64: -0.4444444444 | AG64: -0.440631432 | AH64: -36.35 | AM64: -6385.758373 | AN64: -6357.115318 | AO64: 0 | AP64: 3.333333333 | AQ64: 2.222222222 | AR64: 1.111111111 | AS64: -2.222222222 | AU64: -0.924911864 | AV64: -168.5 | BA64: 660.4330813 | BB64: 746.3622454 | BC64: 35 | BD64: 33.33333333 | BE64: 26.88888889 | BF64: 6.444444444 | BG64: 8.111111111 | BI64: -0.1156585189 | BJ64: 71.5
B65: SOCHE Ecuador C 6650 BC (?) 5? | C65: -6650 | D65: 2 | E65: 2 | F65: 0 | K65: 399.4630581 | L65: 402.6456197 | M65: 3 | N65: 1 | O65: 0.6666666667 | P65: 0.3333333333 | Q65: 2.333333333 | S65: -0.08965020859 | T65: 15.14 | Y65: -8715.393488 | Z65: -8705.845803 | AA65: 0 | AB65: 0 | AC65: 0.4444444444 | AD65: -0.4444444444 | AE65: -0.4444444444 | AG65: 0.2394795339 | AH65: -36.35 | AM65: -6328.472264 | AN65: -6299.829209 | AO65: 0 | AP65: 0 | AQ65: 2.666666667 | AR65: -2.666666667 | AS65: -2.666666667 | AU65: -0.4641475762 | AV65: -168.5 | BA65: 832.2914095 | BB65: 918.2205735 | BC65: 40 | BD65: 32.33333333 | BE65: 31.77777778 | BF65: 0.5555555556 | BG65: 8.222222222 | BI65: -0.7270734502 | BJ65: 71.5
B66: PELEE West Indies G 6610 BC ± 150 years 4? | C66: -6610 | D66: 1 | E66: 0 | F66: 0 | K66: 405.8281813 | L66: 409.010743 | M66: =SUMIFS(MagAll,Age,">"&K66,Age,"<="&K67) -> 0 | N66: 1.333333333 | O66: 0.5555555556 | P66: 0.7777777778 | Q66: -0.5555555556 | S66: -0.7088753493 | T66: 15.14 | Y66: -8696.298118 | Z66: -8686.750433 | AA66: =SUMIFS(Mag_5,Age,">"&Y66,Age,"<="&Y67) -> 0 | AB66: 0 | AC66: 0.4444444444 | AD66: -0.4444444444 | AE66: -0.4444444444 | AG66: 0.8075353644 | AH66: -36.35 | AM66: -6271.186154 | AN66: -6242.543099 | AO66: =SUMIFS(Mag_5,Age,">"&AM66,Age,"<="&AM67) -> 0 | AP66: 1.333333333 | AQ66: 2.666666667 | AR66: -1.333333333 | AS66: -2.666666667 | AU66: 0.2137965209 | AV66: -168.5 | BA66: 1004.149738 | BB66: 1090.078902 | BC66: =SUMIFS(MagAll,Age,">"&BA66,Age,"<="&BA67) -> 22 | BD66: 27.33333333 | BE66: 37.66666667 | BF66: -10.33333333 | BG66: -15.66666667 | BI66: -0.9982826337 | BJ66: 71.5
B67: SHIVELUCH Kamchatka Peninsula (Russia) T 6600 BC (?) 4 | C67: -6600 | D67: 1 | E67: =IF(D67>1, D67,"0") -> 0 | F67: 0 | K67: 412.1933046 | L67: 415.3758662 | M67: 1 | N67: 0.6666666667 | O67: 0.5555555556 | P67: 0.1111111111 | Q67: 0.4444444444 | S67: -0.9964098357 | T67: 15.14 | Y67: -8677.202748 | Z67: -8667.655063 | AA67: 0 | AB67: 0 | AC67: 0.4444444444 | AD67: -0.4444444444 | AE67: -0.4444444444 | AG67: 0.9977364231 | AH67: -36.35 | AM67: -6213.900045 | AN67: -6185.25699 | AO67: 4 | AP67: 2 | AQ67: 2.888888889 | AR67: -0.8888888889 | AS67: 1.111111111 | AU67: 0.7917028498 | AV67: -168.5 | BA67: 1176.008066 | BB67: 1261.93723 | BC67: 20 | BD67: 25 | BE67: 48.55555556 | BF67: -23.55555556 | BG67: -28.55555556 | BI67: -0.8023842781 | BJ67: 71.5
B68: KARYMSKY Kamchatka Peninsula (Russia) G 6600 BC (?) 6 | C68: -6600 | D68: 4 | E68: 4 | F68: 4 | K68: 418.5584278 | L68: 421.7409895 | M68: 1 | N68: 0.6666666667 | O68: 1.111111111 | P68: -0.4444444444 | Q68: -0.1111111111 | S68: -0.8177130862 | T68: =T67 -> 15.14 | Y68: -8658.107378 | Z68: -8648.559694 | AA68: 0 | AB68: 0 | AC68: 0 | AD68: 0 | AE68: 0 | AG68: 0.7210855209 | AH68: -36.35 | AM68: -6156.613935 | AN68: -6127.970881 | AO68: 2 | AP68: 4.666666667 | AQ68: 2.222222222 | AR68: 2.444444444 | AS68: -0.2222222222 | AU68: 0.9991626165 | AV68: -168.5 | BA68: 1347.866394 | BB68: 1433.795558 | BC68: 33 | BD68: 40.66666667 | BE68: 51.5 | BF68: -10.83333333 | BG68: -18.5 | BI68: -0.2310414013 | BJ68: 71.5
B69: MIYAKE-JIMA Izu Islands (Japan) T 6450 BC ± 500 years 4 | C69: -6450 | D69: 1 | E69: 0 | F69: 0 | K69: 424.9235511 | L69: 428.1061127 | M69: 0 | N69: 0.3333333333 | O69: 1.111111111 | P69: -0.7777777778 | Q69: -1.111111111 | S69: -0.2563992958 | T69: 15.14 | Y69: -8639.012009 | Z69: -8629.464324 | AA69: 0 | AB69: 0 | AC69: 0 | AD69: 0 | AE69: 0 | AG69: 0.1070306894 | AH69: -36.35 | AM69: -6099.327826 | AN69: -6070.684771 | AO69: 8 | AP69: 3.333333333 | AQ69: 2.444444444 | AR69: 0.8888888889 | AS69: 5.555555556 | AU69: 0.7391030905 | AV69: -168.5 | BA69: 1519.724722 | BB69: 1605.653886 | BC69: 69 | BD69: =AVERAGE(BC68:BC70) -> 59.66666667 | BE69: =AVERAGE(BC65:BC73) -> 53.85714286 | BF69: =BD69-BE69 -> 5.80952381 | BG69: =BC69-BE69 -> 15.14285714 | BI69: 0.4484083149 | BJ69: 71.5
B70: KURILE LAKE Kamchatka Peninsula (Russia) G 6440 BC ± 25 years 7 | C70: -6440 | D70: 8 | E70: 8 | F70: 8 | K70: 431.2886744 | L70: 434.471236 | M70: 0 | N70: 0 | O70: 0.7777777778 | P70: -0.7777777778 | Q70: -0.7777777778 | S70: 0.4248865747 | T70: 15.14 | Y70: -8619.916639 | Z70: -8610.368954 | AA70: 0 | AB70: 0 | AC70: 0 | AD70: 0 | AE70: 0 | AG70: -0.5571049911 | AH70: -36.35 | AM70: -6042.041717 | AN70: -6013.398662 | AO70: 0 | AP70: 3.333333333 | AQ70: 2.444444444 | AR70: 0.8888888889 | AS70: -2.444444444 | AU70: 0.1332090142 | AV70: -168.5 | BA70: 1691.58305 | BB70: 1777.512214 | BC70: 77 | BD70: 87.33333333 | BE70: 56.16666667 | BF70: 31.16666667 | BG70: 20.83333333 | BI70: 0.9180427971 | BJ70: 71.5
B71: KIZIMEN Kamchatka Peninsula (Russia) C 6400 BC ± 50 years 5 | C71: -6400 | D71: 2 | E71: 2 | F71: 0 | K71: 437.6537976 | L71: 440.8363593 | M71: 0 | N71: 1.666666667 | O71: 0.7777777778 | P71: 0.8888888889 | Q71: -0.7777777778 | S71: 0.9073632948 | T71: 15.14 | Y71: -8600.821269 | Z71: -8591.273584 | AA71: 0 | AB71: 0 | AC71: 0 | AD71: 0 | AE71: 0 | AG71: -0.9605650548 | AH71: -36.35 | AM71: -5984.755607 | AN71: -5956.112553 | AO71: 2 | AP71: 2 | AQ71: 2.888888889 | AR71: -0.8888888889 | AS71: -0.8888888889 | AU71: -0.5350150403 | AV71: -168.5 | BA71: 1863.441378 | BB71: 1949.370542 | BC71: 116 | BD71: 96.5 | BE71: 63 | BF71: 33.5 | BG71: 53 | BI71: 0.9581148516 | BJ71: 71.5
B72: SHIVELUCH Kamchatka Peninsula (Russia) G 6400 BC ± 150 years 4 | C72: -6400 | D72: 1 | E72: 0 | F72: 0 | K72: 444.0189209 | L72: 447.2014825 | M72: 5 | N72: 1.666666667 | O72: 0.8888888889 | P72: 0.7777777778 | Q72: 4.111111111 | S72: 0.965274645 | T72: 15.14 | Y72: -8581.725899 | Z72: -8572.178214 | AA72: 0 | AB72: 0 | AC72: 0 | AD72: 0 | AE72: 0 | AG72: -0.9145660538 | AH72: -36.35 | AM72: -5927.469498 | AN72: -5898.826443 | AO72: 4 | AP72: 2.666666667 | AQ72: 3.333333333 | AR72: -0.6666666667 | AS72: 0.6666666667 | AU72: -0.9528996114 | AV72: -168.5 | BA72: 2035.299707 | BB72: 2121.228871 | BI72: 0.5498743188 | BJ72: 71.5
B73: SHIVELUCH Kamchatka Peninsula (Russia) T 6380 BC (?) 4 | C73: -6380 | D73: 1 | E73: 0 | F73: 0 | K73: 450.3840442 | L73: 453.5666058 | M73: 0 | N73: 1.666666667 | O73: 0.7777777778 | P73: 0.8888888889 | Q73: -0.7777777778 | S73: 0.571523261 | T73: 15.14 | Y73: -8562.630529 | Z73: -8553.082845 | AA73: 0 | AB73: 0 | AC73: 0 | AD73: 0 | AE73: 0 | AG73: -0.440631432 | AH73: -36.35 | AM73: -5870.183388 | AN73: -5841.540334 | AO73: 2 | AP73: 2 | AQ73: 3.111111111 | AR73: -1.111111111 | AS73: -1.111111111 | AU73: -0.924911864 | AV73: -168.5 | BA73: 2207.158035 | BB73: 2293.087199 | BI73: -0.1156585189 | BJ73: 71.5
B74: SHIVELUCH Kamchatka Peninsula (Russia) T 6350 BC (?) 4 | C74: -6350 | D74: 1 | E74: 0 | F74: 0 | K74: 456.7491674 | L74: 459.9317291 | M74: 0 | N74: 0 | O74: 0.7777777778 | P74: -0.7777777778 | Q74: -0.7777777778 | S74: -0.08965020859 | T74: 15.14 | Y74: -8543.53516 | Z74: -8533.987475 | AA74: 0 | AB74: =AVERAGE(AA73:AA75) -> 0 | AC74: 0 | AD74: 0 | AE74: 0 | AG74: 0.2394795339 | AH74: -36.35 | AM74: -5812.897279 | AN74: -5784.254224 | AO74: 0 | AP74: =AVERAGE(AO73:AO75) -> 2 | AQ74: 3.111111111 | AR74: -1.111111111 | AS74: -3.111111111 | AU74: -0.4641475762 | AV74: -168.5 | BA74: 2379.016363 | BB74: 2464.945527 | BI74: -0.7270734502 | BJ74: 71.5
B75: OKMOK Aleutian Islands C 6310 BC ± 500 years P | C75: -6310 | D75: 1 | E75: 0 | F75: 0 | G75: -6300 | K75: 463.1142907 | L75: 466.2968523 | M75: 0 | N75: 0.6666666667 | O75: 0.8888888889 | P75: -0.2222222222 | Q75: -0.8888888889 | S75: -0.7088753493 | T75: 15.14 | Y75: -8524.43979 | Z75: -8514.892105 | AA75: 0 | AB75: 0 | AC75: 0 | AD75: 0 | AE75: 0 | AG75: 0.8075353644 | AH75: -36.35 | AM75: -5755.61117 | AN75: -5726.968115 | AO75: 4 | AP75: 4 | AQ75: 3.333333333 | AR75: 0.6666666667 | AS75: 0.6666666667 | AU75: 0.2137965209 | AV75: -168.5 | BA75: 2550.874691 | BB75: 2636.803855 | BI75: -0.9982826337 | BJ75: 71.5
B76: PELEE West Indies G 6220 BC ± 200 years P | C76: -6220 | D76: 1 | E76: 0 | F76: 0 | K76: 469.479414 | L76: 472.6619756 | M76: 2 | N76: 0.6666666667 | O76: 1 | P76: -0.3333333333 | Q76: 1 | S76: -0.9964098357 | T76: 15.14 | Y76: -8505.34442 | Z76: -8495.796735 | AA76: 0 | AB76: 0 | AC76: 0 | AD76: 0 | AE76: 0 | AG76: 0.9977364231 | AH76: -36.35 | AM76: -5698.32506 | AN76: -5669.682006 | AO76: 8 | AP76: 4 | AQ76: 3.111111111 | AR76: 0.8888888889 | AS76: 4.888888889 | AU76: 0.7917028498 | AV76: -168.5 | BA76: 2722.733019 | BB76: 2808.662183 | BI76: -0.8023842781 | BJ76: 71.5
B77: SAKURA-JIMA Kyushu (Japan) C 6200 BC ± 1000 years 6 | C77: -6200 | D77: 4 | E77: 4 | F77: 4 | K77: 475.8445372 | L77: 479.0270989 | M77: 0 | N77: 0.6666666667 | O77: 0.4444444444 | P77: 0.2222222222 | Q77: -0.4444444444 | S77: -0.8177130862 | T77: 15.14 | Y77: -8486.24905 | Z77: -8476.701365 | AA77: 0 | AB77: 0 | AC77: 0 | AD77: 0 | AE77: 0 | AG77: 0.7210855209 | AH77: -36.35 | AM77: -5641.038951 | AN77: -5612.395896 | AO77: 0 | AP77: 5.333333333 | AQ77: 2.888888889 | AR77: 2.444444444 | AS77: -2.888888889 | AU77: 0.9991626165 | AV77: -168.5 | BA77: 2894.591347 | BB77: 2980.520511 | BI77: -0.2310414013 | BJ77: 71.5
B78: QUILL, THE West Indies C 6140 BC ± 200 years P | C78: -6140 | D78: 1 | E78: 0 | F78: 0 | K78: 482.2096605 | L78: 485.3922221 | M78: 0 | N78: 0.3333333333 | O78: 0.5555555556 | P78: -0.2222222222 | Q78: -0.5555555556 | S78: -0.2563992958 | T78: 15.14 | Y78: -8467.153681 | Z78: -8457.605996 | AA78: 0 | AB78: 0 | AC78: 0 | AD78: 0 | AE78: 0 | AG78: 0.1070306894 | AH78: -36.35 | AM78: -5583.752842 | AN78: -5555.109787 | AO78: 8 | AP78: 3.333333333 | AQ78: 2.666666667 | AR78: 0.6666666667 | AS78: 5.333333333 | AU78: 0.7391030905 | AV78: -168.5 | BA78: 3066.449675 | BB78: 3152.37884 | BI78: 0.4484083149 | BJ78: 71.5
B79: MAKUSHIN Aleutian Islands C 6100 BC ± 50 years 5 | C79: -6100 | D79: 2 | E79: 2 | F79: 0 | K79: 488.5747838 | L79: 491.7573454 | M79: 1 | N79: 0.6666666667 | O79: 0.7777777778 | P79: -0.1111111111 | Q79: 0.2222222222 | S79: 0.4248865747 | T79: 15.14 | Y79: -8448.058311 | Z79: -8438.510626 | AA79: 0 | AB79: 0 | AC79: 0 | AD79: 0 | AE79: 0 | AG79: -0.5571049911 | AH79: -36.35 | AM79: -5526.466732 | AN79: -5497.823677 | AO79: 2 | AP79: 3.333333333 | AQ79: 3.111111111 | AR79: 0.2222222222 | AS79: -1.111111111 | AU79: 0.1332090142 | AV79: -168.5 | BA79: 3238.308004 | BB79: 3324.237168 | BI79: 0.9180427971 | BJ79: 71.5
B80: OKATAINA New Zealand G 6060 BC ± 50 years 5 | C80: -6060 | D80: 2 | E80: 2 | F80: 0 | K80: 494.939907 | L80: 498.1224687 | M80: 1 | N80: 0.6666666667 | O80: 0.7777777778 | P80: -0.1111111111 | Q80: 0.2222222222 | S80: 0.9073632948 | T80: 15.14 | Y80: -8428.962941 | Z80: -8419.415256 | AA80: 0 | AB80: 0 | AC80: 0 | AD80: 0 | AE80: 0 | AG80: -0.9605650548 | AH80: -36.35 | AM80: -5469.180623 | AN80: -5440.537568 | AO80: 0 | AP80: 1.333333333 | AQ80: 2.888888889 | AR80: -1.555555556 | AS80: -2.888888889 | AU80: -0.5350150403 | AV80: -168.5 | BA80: 3410.166332 | BB80: 3496.095496 | BI80: 0.9581148516 | BJ80: 71.5
B81: MENENGAI Eastern Africa C 6050 BC (?) 6+ | C81: -6050 | D81: 4 | E81: 4 | F81: 4 | K81: 501.3050303 | L81: 504.4875919 | M81: 0 | N81: 0.6666666667 | O81: 0.5555555556 | P81: 0.1111111111 | Q81: -0.5555555556 | S81: 0.965274645 | T81: 15.14 | Y81: -8409.867571 | Z81: -8400.319886 | AA81: 0 | AB81: 0 | AC81: 0 | AD81: 0 | AE81: 0 | AG81: -0.9145660538 | AH81: -36.35 | AM81: -5411.894513 | AN81: -5383.251459 | AO81: 2 | AP81: 0.6666666667 | AQ81: 2.444444444 | AR81: -1.777777778 | AS81: -0.4444444444 | AU81: -0.9528996114 | AV81: -168.5 | BA81: 3582.02466 | BB81: 3667.953824 | BI81: 0.5498743188 | BJ81: 71.5
B82: SAKURA-JIMA Kyushu (Japan) C 6050 BC (?) 5 | C82: -6050 | D82: 2 | E82: 2 | F82: 0 | K82: 507.6701536 | L82: 510.8527152 | M82: 1 | N82: 1 | O82: 0.5555555556 | P82: 0.4444444444 | Q82: 0.4444444444 | S82: 0.571523261 | T82: 15.14 | Y82: -8390.772201 | Z82: -8381.224516 | AA82: 0 | AB82: 0 | AC82: 0 | AD82: 0 | AE82: 0 | AG82: -0.440631432 | AH82: -36.35 | AM82: -5354.608404 | AN82: -5325.965349 | AO82: 0 | AP82: 2 | AQ82: 2.666666667 | AR82: -0.6666666667 | AS82: -2.666666667 | AU82: -0.924911864 | AV82: -168.5 | BA82: =BA81+171.858328151339 -> 3753.882988 | BB82: =BB81+171.858328151339 -> 3839.812152 | BI82: =SIN((2*PI()*(BB82-2000+BJ82)/1546.72495336205) + 1.776465808) -> -0.1156585189 | BJ82: =BJ81 -> 71.5
B83: BARVA Costa Rica T 6050 BC ± 1000 years P | C83: -6050 | D83: 1 | E83: 0 | F83: 0 | K83: 514.0352768 | L83: 517.2178385 | M83: 2 | N83: 1 | O83: 1 | P83: 0 | Q83: 1 | S83: -0.08965020859 | T83: 15.14 | Y83: -8371.676832 | Z83: -8362.129147 | AA83: 0 | AB83: 0 | AC83: 0 | AD83: 0 | AE83: 0 | AG83: 0.2394795339 | AH83: -36.35 | AM83: =AM82+57.2861093837796 -> -5297.322295 | AN83: =AN82+57.2861093837796 -> -5268.67924 | AO83: 4 | AP83: 2 | AQ83: =AVERAGE(AO79:AO87) -> 2 | AR83: =AP83-AQ83 -> 0 | AS83: =AO83-AQ83 -> 2 | AU83: =SIN((2*PI()*(AN83-2000+AV83)/515.574984454017) + 2.187804708) -> -0.4641475762 | AV83: =AV82 -> -168.5 | BA83: 3925.741316 | BB83: 4011.67048 | BI83: -0.7270734502 | BJ83: 71.5
B84: MEIDOB VOLC FIELD Northern Africa N 6050 BC ± 1000 years P | C84: -6050 | D84: 1 | E84: 0 | F84: 0 | K84: 520.4004001 | L84: 523.5829617 | M84: 0 | N84: 0.6666666667 | O84: 1.444444444 | P84: -0.7777777778 | Q84: -1.444444444 | S84: -0.7088753493 | T84: 15.14 | Y84: -8352.581462 | Z84: -8343.033777 | AA84: 0 | AB84: 0 | AC84: 0 | AD84: 0 | AE84: 0 | AG84: 0.8075353644 | AH84: -36.35 | AM84: -5240.036185 | AN84: -5211.393131 | AO84: 2 | AP84: 3.333333333 | AQ84: 1.777777778 | AR84: 1.555555556 | AS84: 0.2222222222 | AU84: 0.2137965209 | AV84: -168.5 | BA84: 4097.599644 | BB84: 4183.528808 | BI84: -0.9982826337 | BJ84: 71.5
B85: KRASHENINNIKOV Kamchatka Peninsula (Russia) C 6000 BC ± 50 years 4 | C85: -6000 | D85: 1 | E85: 0 | F85: 0 | K85: 526.7655234 | L85: 529.948085 | M85: 0 | N85: 0 | O85: 1.333333333 | P85: -1.333333333 | Q85: -1.333333333 | S85: -0.9964098357 | T85: 15.14 | Y85: -8333.486092 | Z85: -8323.938407 | AA85: 0 | AB85: 0 | AC85: 0 | AD85: 0 | AE85: 0 | AG85: 0.9977364231 | AH85: -36.35 | AM85: -5182.750076 | AN85: -5154.107021 | AO85: 4 | AP85: 2.666666667 | AQ85: 2 | AR85: 0.6666666667 | AS85: 2 | AU85: 0.7917028498 | AV85: -168.5
B86: AVACHINSKY Kamchatka Peninsula (Russia) G 5980 BC ± 100 years 5+ | C86: -5980 | D86: 2 | E86: 2 | F86: 0 | K86: =K85+6.3651232648644 -> 533.1306466 | L86: =L85+6.3651232648644 -> 536.3132082 | M86: 0 | N86: =AVERAGE(M85:M87) -> 1.333333333 | O86: =AVERAGE(M82:M90) -> 1.333333333 | P86: =N86-O86 -> 0 | Q86: =M86-O86 -> -1.333333333 | S86: =SIN((2*PI()*(L86-2000+T86)/57.2861093837796) + 0.840686201) -> -0.8177130862 | T86: 15.14 | Y86: -8314.390722 | Z86: -8304.843037 | AA86: 0 | AB86: 0 | AC86: 0.4444444444 | AD86: -0.4444444444 | AE86: -0.4444444444 | AG86: 0.7210855209 | AH86: -36.35 | AM86: -5125.463966 | AN86: -5096.820912 | AO86: 2 | AP86: 2.666666667 | AQ86: 1.777777778 | AR86: 0.8888888889 | AS86: 0.2222222222 | AU86: 0.9991626165 | AV86: -168.5
B87: ROMERAL Colombia C 5950 BC ± 500 years P | C87: -5950 | D87: 1 | E87: 0 | F87: =IF(D87>2, D87,"0") -> 0 | K87: 539.4957699 | L87: 542.6783315 | M87: 4 | N87: 3 | O87: 1.222222222 | P87: 1.777777778 | Q87: 2.777777778 | S87: -0.2563992958 | T87: 15.14 | Y87: -8295.295352 | Z87: -8285.747667 | AA87: 0 | AB87: 0 | AC87: 0.4444444444 | AD87: -0.4444444444 | AE87: -0.4444444444 | AG87: 0.1070306894 | AH87: -36.35 | AM87: -5068.177857 | AN87: -5039.534802 | AO87: 2 | AP87: 1.333333333 | AQ87: 1.777777778 | AR87: -0.4444444444 | AS87: 0.2222222222 | AU87: 0.7391030905 | AV87: -168.5
B88: CRATER LAKE Oregon (USA) G 5900 BC ± 50 years 6 | C88: -5900 | D88: 4 | E88: 4 | F88: 4 | K88: 545.8608931 | L88: 549.0434548 | M88: 5 | N88: 3 | O88: 1 | P88: 2 | Q88: 4 | S88: 0.4248865747 | T88: 15.14 | Y88: -8276.199983 | Z88: -8266.652298 | AA88: 0 | AB88: 0 | AC88: 0.4444444444 | AD88: -0.4444444444 | AE88: -0.4444444444 | AG88: -0.5571049911 | AH88: -36.35 | AM88: -5010.891748 | AN88: -4982.248693 | AO88: 0 | AP88: 1.333333333 | AQ88: 1.555555556 | AR88: -0.2222222222 | AS88: -1.555555556 | AU88: 0.1332090142 | AV88: -168.5
B89: MERU Eastern Africa C 5850 BC (?) P | C89: -5850 | D89: 1 | E89: 0 | F89: 0 | K89: 552.2260164 | L89: 555.408578 | M89: 0 | N89: 1.666666667 | O89: 1.111111111 | P89: 0.5555555556 | Q89: -1.111111111 | S89: 0.9073632948 | T89: 15.14 | Y89: -8257.104613 | Z89: -8247.556928 | AA89: 0 | AB89: 1.333333333 | AC89: 0.4444444444 | AD89: 0.8888888889 | AE89: -0.4444444444 | AG89: -0.9605650548 | AH89: -36.35 | AM89: -4953.605638 | AN89: -4924.962584 | AO89: 2 | AP89: 0.6666666667 | AQ89: 1.777777778 | AR89: -1.111111111 | AS89: 0.2222222222 | AU89: -0.5350150403 | AV89: -168.5
B90: COTOPAXI Ecuador C 5820 BC ± 75 years 5+ | C90: -5820 | D90: 2 | E90: 2 | F90: 0 | K90: 558.5911397 | L90: 561.7737013 | M90: 0 | N90: 0 | O90: 1.111111111 | P90: -1.111111111 | Q90: -1.111111111 | S90: 0.965274645 | T90: 15.14 | Y90: -8238.009243 | Z90: -8228.461558 | AA90: 4 | AB90: 1.333333333 | AC90: 0.4444444444 | AD90: 0.8888888889 | AE90: 3.555555556 | AG90: -0.9145660538 | AH90: -36.35 | AM90: -4896.319529 | AN90: -4867.676474 | AO90: 0 | AP90: 0.6666666667 | AQ90: 1.555555556 | AR90: -0.8888888889 | AS90: -1.555555556 | AU90: -0.9528996114 | AV90: -168.5
B91: KRASHENINNIKOV Kamchatka Peninsula (Russia) C 5800 BC ± 50 years 4 | C91: -5800 | D91: 1 | E91: 0 | F91: 0 | G91: -5784 | H91: **** | K91: 564.9562629 | L91: 568.1388246 | M91: 0 | N91: 0 | O91: 1.111111111 | P91: -1.111111111 | Q91: -1.111111111 | S91: 0.571523261 | T91: 15.14 | Y91: -8218.913873 | Z91: -8209.366188 | AA91: 0 | AB91: 1.333333333 | AC91: 0.6666666667 | AD91: 0.6666666667 | AE91: -0.6666666667 | AG91: -0.440631432 | AH91: -36.35 | AM91: -4839.03342 | AN91: -4810.390365 | AO91: 0 | AP91: 0.6666666667 | AQ91: 1.555555556 | AR91: -0.8888888889 | AS91: -1.555555556 | AU91: -0.924911864 | AV91: -168.5
B92: ILYINSKY Kamchatka Peninsula (Russia) T 5700 BC ± 50 years C | C92: -5700 | D92: 1 | E92: 0 | F92: 0 | K92: 571.3213862 | L92: 574.5039478 | M92: 0 | N92: 0.3333333333 | O92: 1.111111111 | P92: -0.7777777778 | Q92: -1.111111111 | S92: -0.08965020859 | T92: 15.14 | Y92: -8199.818503 | Z92: -8190.270818 | AA92: 0 | AB92: 0 | AC92: 0.6666666667 | AD92: -0.6666666667 | AE92: -0.6666666667 | AG92: 0.2394795339 | AH92: -36.35 | AM92: -4781.74731 | AN92: -4753.104255 | AO92: 2 | AP92: 2 | AQ92: 1.333333333 | AR92: 0.6666666667 | AS92: 0.6666666667 | AU92: -0.4641475762 | AV92: -168.5
B93: KHANGAR Kamchatka Peninsula (Russia) G 5700 BC ± 16 years 6 | C93: -5700 | D93: 4 | E93: 4 | F93: 4 | K93: 577.6865095 | L93: 580.8690711 | M93: 1 | N93: 0.3333333333 | O93: 0.5555555556 | P93: -0.2222222222 | Q93: 0.4444444444 | S93: -0.7088753493 | T93: 15.14 | Y93: -8180.723134 | Z93: -8171.175449 | AA93: 0 | AB93: 0 | AC93: 0.6666666667 | AD93: -0.6666666667 | AE93: -0.6666666667 | AG93: 0.8075353644 | AH93: -36.35 | AM93: -4724.461201 | AN93: -4695.818146 | AO93: 4 | AP93: 2.666666667 | AQ93: 1.333333333 | AR93: 1.333333333 | AS93: 2.666666667 | AU93: 0.2137965209 | AV93: -168.5
B94: CRATER LAKE Oregon (USA) I 5677 BC ± 150 years Oct 15 ± 45 days 7 | C94: -5677 | D94: 8 | E94: 8 | F94: 8 | K94: 584.0516327 | L94: 587.2341944 | M94: 0 | N94: 0.3333333333 | O94: 0.7777777778 | P94: -0.4444444444 | Q94: -0.7777777778 | S94: -0.9964098357 | T94: 15.14 | Y94: -8161.627764 | Z94: -8152.080079 | AA94: 0 | AB94: 0.6666666667 | AC94: 0.6666666667 | AD94: 0 | AE94: -0.6666666667 | AG94: 0.9977364231 | AH94: -36.35 | AM94: -4667.175091 | AN94: -4638.532037 | AO94: 2 | AP94: 2.666666667 | AQ94: 1.333333333 | AR94: 1.333333333 | AS94: 0.6666666667 | AU94: 0.7917028498 | AV94: -168.5
B95: TAO-RUSYR CALDERA Kuril Islands C 5550 BC ± 75 years 6 | C95: -5550 | D95: 4 | E95: 4 | F95: 4 | K95: 590.416756 | L95: 593.5993176 | M95: 0 | N95: 1.333333333 | O95: 0.7777777778 | P95: 0.5555555556 | Q95: -0.7777777778 | S95: -0.8177130862 | T95: 15.14 | Y95: -8142.532394 | Z95: -8132.984709 | AA95: 2 | AB95: 0.6666666667 | AC95: 0.4444444444 | AD95: 0.2222222222 | AE95: 1.555555556 | AG95: 0.7210855209 | AH95: -36.35 | AM95: -4609.888982 | AN95: -4581.245927 | AO95: 2 | AP95: 1.333333333 | AQ95: 2.888888889 | AR95: -1.555555556 | AS95: -0.8888888889 | AU95: 0.9991626165 | AV95: -168.5
B96: MASHU Hokkaido (Japan) G 5550 BC ± 100 years 6 | C96: -5550 | D96: 4 | E96: 4 | F96: 4 | K96: 596.7818793 | L96: 599.9644409 | M96: 4 | N96: 1.333333333 | O96: 0.7777777778 | P96: 0.5555555556 | Q96: 3.222222222 | S96: -0.2563992958 | T96: 15.14 | Y96: =Y95+19.0953697945932 -> -8123.437024 | Z96: =Z95+19.0953697945932 -> -8113.889339 | AA96: 0 | AB96: 0.6666666667 | AC96: =AVERAGE(AA92:AA100) -> 0.4444444444 | AD96: =AB96-AC96 -> 0.2222222222 | AE96: =AA96-AC96 -> -0.4444444444 | AG96: =SIN((2*PI()*(Z96-2000+AH96)/171.858328151339) + 3.421821408) -> 0.1070306894 | AH96: =AH95 -> -36.35 | AM96: -4552.602873 | AN96: -4523.959818 | AO96: 0 | AP96: 0.6666666667 | AQ96: 2.888888889 | AR96: -2.222222222 | AS96: -2.888888889 | AU96: 0.7391030905 | AV96: -168.5
B97: SHIVELUCH Kamchatka Peninsula (Russia) T 5500 BC (?) 5 | C97: -5500 | D97: 2 | E97: 2 | F97: 0 | K97: 603.1470025 | L97: 606.3295642 | M97: 0 | N97: 2 | O97: 0.7777777778 | P97: 1.222222222 | Q97: -0.7777777778 | S97: 0.4248865747 | T97: 15.14 | Y97: -8104.341654 | Z97: -8094.79397 | AA97: 0 | AB97: 0 | AC97: 0.4444444444 | AD97: -0.4444444444 | AE97: -0.4444444444 | AG97: -0.5571049911 | AH97: -36.35 | AM97: -4495.316763 | AN97: -4466.673709 | AO97: 0 | AP97: 0.6666666667 | AQ97: 2.666666667 | AR97: -2 | AS97: -2.666666667 | AU97: 0.1332090142 | AV97: -168.5
B98: PELEE West Indies G 5500 BC ± 200 years P | C98: -5500 | D98: 1 | E98: 0 | F98: 0 | K98: 609.5121258 | L98: 612.6946874 | M98: 2 | N98: 0.6666666667 | O98: 0.6666666667 | P98: 0 | Q98: 1.333333333 | S98: 0.9073632948 | T98: 15.14 | Y98: -8085.246285 | Z98: -8075.6986 | AA98: 0 | AB98: 0.6666666667 | AC98: 0.4444444444 | AD98: 0.2222222222 | AE98: -0.4444444444 | AG98: -0.9605650548 | AH98: -36.35 | AM98: -4438.030654 | AN98: -4409.387599 | AO98: 2 | AP98: 5.333333333 | AQ98: 2.444444444 | AR98: 2.888888889 | AS98: -0.4444444444 | AU98: -0.5350150403 | AV98: -168.5
B99: ICHINSKY Kamchatka Peninsula (Russia) T 5400 BC (?) 5 | C99: -5400 | D99: 2 | E99: 2 | F99: 0 | K99: 615.8772491 | L99: 619.0598107 | M99: 0 | N99: 0.6666666667 | O99: 0.6666666667 | P99: 0 | Q99: -0.6666666667 | S99: 0.965274645 | T99: 15.14 | Y99: -8066.150915 | Z99: -8056.60323 | AA99: 2 | AB99: 0.6666666667 | AC99: 0.4444444444 | AD99: 0.2222222222 | AE99: 1.555555556 | AG99: -0.9145660538 | AH99: -36.35 | AM99: -4380.744544 | AN99: -4352.10149 | AO99: 14 | AP99: 5.333333333 | AQ99: 2.222222222 | AR99: 3.111111111 | AS99: 11.77777778 | AU99: -0.9528996114 | AV99: -168.5
B100: ANIAKCHAK Alaska Peninsula T 5250 BC ± 1000 years 6? | C100: -5250 | D100: 4 | E100: 4 | F100: 4 | G100: -5269 | K100: 622.2423723 | L100: 625.424934 | M100: 0 | N100: 0 | O100: 1 | P100: -1 | Q100: -1 | S100: 0.571523261 | T100: 15.14 | Y100: -8047.055545 | Z100: -8037.50786 | AA100: 0 | AB100: 0.6666666667 | AC100: 0.2222222222 | AD100: 0.4444444444 | AE100: -0.2222222222 | AG100: -0.440631432 | AH100: -36.35 | AM100: -4323.458435 | AN100: -4294.81538 | AO100: 0 | AP100: 4.666666667 | AQ100: 2.444444444 | AR100: 2.222222222 | AS100: -2.444444444 | AU100: -0.924911864 | AV100: -168.5
B101: KSUDACH Kamchatka Peninsula (Russia) G 5200 BC (?) 5? | C101: -5200 | D101: 2 | E101: 2 | F101: 0 | K101: 628.6074956 | L101: 631.7900572 | M101: 0 | N101: 0 | O101: 0.6666666667 | P101: -0.6666666667 | Q101: -0.6666666667 | S101: -0.08965020859 | T101: 15.14 | Y101: -8027.960175 | Z101: -8018.41249 | AA101: 0 | AB101: 0 | AC101: 0.2222222222 | AD101: -0.2222222222 | AE101: -0.2222222222 | AG101: 0.2394795339 | AH101: -36.35 | AM101: -4266.172326 | AN101: -4237.529271 | AO101: 0 | AP101: 0.6666666667 | AQ101: 2.888888889 | AR101: -2.222222222 | AS101: -2.888888889 | AU101: -0.4641475762 | AV101: -168.5
B102: POPOCATEPETL México C 5150 BC (?) P | C102: -5150 | D102: 1 | E102: 0 | F102: 0 | K102: 634.9726189 | L102: 638.1551805 | M102: 0 | N102: 0 | O102: 0.6666666667 | P102: -0.6666666667 | Q102: -0.6666666667 | S102: -0.7088753493 | T102: 15.14 | Y102: -8008.864805 | Z102: -7999.317121 | AA102: 0 | AB102: 0 | AC102: 0.2222222222 | AD102: -0.2222222222 | AE102: -0.2222222222 | AG102: 0.8075353644 | AH102: -36.35 | AM102: -4208.886216 | AN102: -4180.243162 | AO102: 2 | AP102: 0.6666666667 | AQ102: 2.888888889 | AR102: -2.222222222 | AS102: -0.8888888889 | AU102: 0.2137965209 | AV102: -168.5
B103: TAVUI New Britain N 5150 BC ± 1000 years 5 | C103: -5150 | D103: 2 | E103: 2 | F103: 0 | K103: 641.3377421 | L103: 644.5203038 | M103: 0 | N103: 1 | O103: 0.4444444444 | P103: 0.5555555556 | Q103: -0.4444444444 | S103: -0.9964098357 | T103: 15.14 | Y103: -7989.769436 | Z103: -7980.221751 | AA103: 0 | AB103: 0 | AC103: 0.4444444444 | AD103: -0.4444444444 | AE103: -0.4444444444 | AG103: 0.9977364231 | AH103: -36.35 | AM103: -4151.600107 | AN103: -4122.957052 | AO103: 0 | AP103: 2 | AQ103: 2.888888889 | AR103: -0.8888888889 | AS103: -2.888888889 | AU103: 0.7917028498 | AV103: -168.5
B104: HEKLA Southern Iceland G 5150 BC (?) 5 | C104: -5150 | D104: 2 | E104: 2 | F104: 0 | K104: 647.7028654 | L104: 650.885427 | M104: 3 | N104: 1.333333333 | O104: 0.4444444444 | P104: 0.8888888889 | Q104: 2.555555556 | S104: -0.8177130862 | T104: 15.14 | Y104: -7970.674066 | Z104: -7961.126381 | AA104: 0 | AB104: 0 | AC104: 0.2222222222 | AD104: -0.2222222222 | AE104: -0.2222222222 | AG104: 0.7210855209 | AH104: -36.35 | AM104: -4094.313998 | AN104: -4065.670943 | AO104: 4 | AP104: 2.666666667 | AQ104: 1.555555556 | AR104: 1.111111111 | AS104: 2.444444444 | AU104: 0.9991626165 | AV104: -168.5
B105: PUYEHUE-CORDON CAULLE Central Chile G 5080 BC ± 150 years 5 | C105: -5080 | D105: 2 | E105: 2 | F105: 0 | K105: 654.0679886 | L105: 657.2505503 | M105: 1 | N105: 1.333333333 | O105: 0.6666666667 | P105: 0.6666666667 | Q105: 0.3333333333 | S105: -0.2563992958 | T105: 15.14 | Y105: -7951.578696 | Z105: -7942.031011 | AA105: 0 | AB105: 0 | AC105: 0.2222222222 | AD105: -0.2222222222 | AE105: -0.2222222222 | AG105: 0.1070306894 | AH105: -36.35 | AM105: -4037.027888 | AN105: -4008.384833 | AO105: 4 | AP105: 2.666666667 | AQ105: 1.555555556 | AR105: 1.111111111 | AS105: 2.444444444 | AU105: 0.7391030905 | AV105: -168.5
B106: MAYOR ISLAND New Zealand G 5060 BC ± 200 years 5 | C106: -5060 | D106: 2 | E106: 2 | F106: 0 | K106: 660.4331119 | L106: 663.6156735 | M106: 0 | N106: 0.3333333333 | O106: 1 | P106: -0.6666666667 | Q106: -1 | S106: 0.4248865747 | T106: 15.14 | Y106: -7932.483326 | Z106: -7922.935641 | AA106: 0 | AB106: 0.6666666667 | AC106: 0.2222222222 | AD106: 0.4444444444 | AE106: -0.2222222222 | AG106: -0.5571049911 | AH106: -36.35 | AM106: -3979.741779 | AN106: -3951.098724 | AO106: 0 | AP106: 2 | AQ106: 1.555555556 | AR106: 0.4444444444 | AS106: -1.555555556 | AU106: 0.1332090142 | AV106: -168.5
B107: ARENAL Costa Rica G 5060 BC ± 150 years 4? | C107: -5060 | D107: 1 | E107: 0 | F107: 0 | K107: 666.7982352 | L107: 669.9807968 | M107: 0 | N107: 0 | O107: 1 | P107: -1 | Q107: -1 | S107: 0.9073632948 | T107: 15.14 | Y107: -7913.387956 | Z107: -7903.840272 | AA107: 2 | AB107: 0.6666666667 | AC107: 0.2222222222 | AD107: 0.4444444444 | AE107: 1.777777778 | AG107: -0.9605650548 | AH107: -36.35 | AM107: -3922.455669 | AN107: -3893.812615 | AO107: 2 | AP107: 1.333333333 | AQ107: 1.555555556 | AR107: -0.2222222222 | AS107: 0.4444444444 | AU107: -0.5350150403 | AV107: -168.5
B108: ILIAMNA Southwestern Alaska C 5050 BC (?) P | C108: -5050 | D108: 1 | E108: 0 | F108: 0 | K108: 673.1633584 | L108: 676.3459201 | M108: 0 | N108: 0.6666666667 | O108: 1.666666667 | P108: -1 | Q108: -1.666666667 | S108: 0.965274645 | T108: 15.14 | Y108: -7894.292587 | Z108: -7884.744902 | AA108: 0 | AB108: 0.6666666667 | AC108: 0.2222222222 | AD108: 0.4444444444 | AE108: -0.2222222222 | AG108: -0.9145660538 | AH108: -36.35 | AM108: -3865.16956 | AN108: -3836.526505 | AO108: 2 | AP108: 1.333333333 | AQ108: 2.222222222 | AR108: -0.8888888889 | AS108: -0.2222222222 | AU108: -0.9528996114 | AV108: -168.5
B109: TOWADA Honshu (Japan) T 5050 BC (?) 4 | C109: -5050 | D109: 1 | E109: 0 | F109: 0 | K109: 679.5284817 | L109: 682.7110433 | M109: 2 | N109: 1.666666667 | O109: 1.777777778 | P109: -0.1111111111 | Q109: 0.2222222222 | S109: 0.571523261 | T109: 15.14 | Y109: -7875.197217 | Z109: -7865.649532 | AA109: 0 | AB109: 0 | AC109: 0.2222222222 | AD109: -0.2222222222 | AE109: -0.2222222222 | AG109: -0.440631432 | AH109: -36.35 | AM109: -3807.883451 | AN109: -3779.240396 | AO109: 0 | AP109: 0.6666666667 | AQ109: 2.222222222 | AR109: -1.555555556 | AS109: -2.222222222 | AU109: -0.924911864 | AV109: -168.5
B110: KSUDACH Kamchatka Peninsula (Russia) G 4900 BC (?) 5+ | C110: -4900 | D110: 2 | E110: 2 | F110: 0 | K110: 685.893605 | L110: 689.0761666 | M110: 3 | N110: 1.666666667 | O110: 1.666666667 | P110: 0 | Q110: 1.333333333 | S110: -0.08965020859 | T110: 15.14 | Y110: -7856.101847 | Z110: -7846.554162 | AA110: 0 | AB110: 0 | AC110: 0.2222222222 | AD110: -0.2222222222 | AE110: -0.2222222222 | AG110: 0.2394795339 | AH110: -36.35 | AM110: -3750.597341 | AN110: -3721.954287 | AO110: 0 | AP110: 0.6666666667 | AQ110: 2 | AR110: -1.333333333 | AS110: -2 | AU110: -0.4641475762 | AV110: -168.5
B111: MYOKO Honshu (Japan) G 4750 BC ± 300 years 5? | C111: -4750 | D111: 2 | E111: 2 | F111: 0 | G111: -4753 | K111: 692.2587282 | L111: 695.4412899 | M111: 0 | N111: 3 | O111: 1.777777778 | P111: 1.222222222 | Q111: -1.777777778 | S111: -0.7088753493 | T111: 15.14 | Y111: -7837.006477 | Z111: -7827.458792 | AA111: 0 | AB111: 0 | AC111: 0.2222222222 | AD111: -0.2222222222 | AE111: -0.2222222222 | AG111: 0.8075353644 | AH111: -36.35 | AM111: -3693.311232 | AN111: -3664.668177 | AO111: 2 | AP111: 2.666666667 | AQ111: 2.222222222 | AR111: 0.4444444444 | AS111: -0.2222222222 | AU111: 0.2137965209 | AV111: -168.5
B112: HUDSON, CERRO Southern Chile C 4750 BC (?) 6 | C112: -4700 | D112: 4 | E112: 4 | F112: 4 | K112: 698.6238515 | L112: 701.8064131 | M112: 6 | N112: 3.333333333 | O112: 2.111111111 | P112: 1.222222222 | Q112: 3.888888889 | S112: -0.9964098357 | T112: 15.14 | Y112: -7817.911107 | Z112: -7808.363423 | AA112: 0 | AB112: 0 | AC112: 0 | AD112: 0 | AE112: 0 | AG112: 0.9977364231 | AH112: -36.35 | AM112: -3636.025122 | AN112: -3607.382068 | AO112: 6 | AP112: 4 | AQ112: 2.222222222 | AR112: 1.777777778 | AS112: 3.777777778 | AU112: 0.7917028498 | AV112: -168.5
B113: TAUPO New Zealand G 4700 BC (?) 4 | C113: -4700 | D113: 1 | E113: 0 | F113: 0 | K113: 704.9889748 | L113: 708.1715364 | M113: 4 | N113: 3.333333333 | O113: 2.111111111 | P113: 1.222222222 | Q113: 1.888888889 | S113: -0.8177130862 | T113: 15.14 | Y113: -7798.815738 | Z113: -7789.268053 | AA113: 0 | AB113: 0 | AC113: 0 | AD113: 0 | AE113: 0 | AG113: 0.7210855209 | AH113: -36.35 | AM113: -3578.739013 | AN113: -3550.095958 | AO113: 4 | AP113: 4 | AQ113: 2 | AR113: 2 | AS113: 2 | AU113: 0.9991626165 | AV113: -168.5
B114: HACHIJO-JIMA Izu Islands (Japan) T 4650 BC (?) 5 | C114: -4650 | D114: 2 | E114: 2 | F114: 0 | K114: 711.354098 | L114: 714.5366597 | M114: 0 | N114: 1.666666667 | O114: 2 | P114: -0.3333333333 | Q114: -2 | S114: -0.2563992958 | T114: 15.14 | Y114: -7779.720368 | Z114: -7770.172683 | AA114: 0 | AB114: 0 | AC114: 0 | AD114: 0 | AE114: 0 | AG114: 0.1070306894 | AH114: -36.35 | AM114: -3521.452904 | AN114: -3492.809849 | AO114: 2 | AP114: 2.666666667 | AQ114: 2.222222222 | AR114: 0.4444444444 | AS114: -0.2222222222 | AU114: 0.7391030905 | AV114: -168.5
B115: KOMAGA-TAKE Hokkaido (Japan) G 4600 BC ± 50 years 5 | C115: -4600 | D115: 2 | E115: 2 | F115: 0 | K115: 717.7192213 | L115: 720.9017829 | M115: 1 | N115: 1.333333333 | O115: 1.666666667 | P115: -0.3333333333 | Q115: -0.6666666667 | S115: 0.4248865747 | T115: 15.14 | Y115: -7760.624998 | Z115: -7751.077313 | AA115: 0 | AB115: 0 | AC115: 0 | AD115: 0 | AE115: 0 | AG115: -0.5571049911 | AH115: -36.35 | AM115: -3464.166794 | AN115: -3435.52374 | AO115: 2 | AP115: 2 | AQ115: 2.444444444 | AR115: -0.4444444444 | AS115: -0.4444444444 | AU115: 0.1332090142 | AV115: -168.5
B116: TAKAHARA Honshu (Japan) G 4570 BC (?) 4? | C116: -4570 | D116: 1 | E116: 0 | F116: 0 | K116: 724.0843446 | L116: 727.2669062 | M116: 3 | N116: 1.333333333 | O116: 1.888888889 | P116: -0.5555555556 | Q116: 1.111111111 | S116: 0.9073632948 | T116: 15.14 | Y116: -7741.529628 | Z116: -7731.981943 | AA116: 0 | AB116: 0 | AC116: 0 | AD116: 0 | AE116: 0 | AG116: -0.9605650548 | AH116: -36.35 | AM116: -3406.880685 | AN116: -3378.23763 | AO116: 2 | AP116: 1.333333333 | AQ116: 2.444444444 | AR116: -1.111111111 | AS116: -0.4444444444 | AU116: -0.5350150403 | AV116: -168.5
B117: AVACHINSKY Kamchatka Peninsula (Russia) G 4550 BC ± 200 years 4 | C117: -4550 | D117: 1 | E117: 0 | F117: 0 | K117: 730.4494678 | L117: 733.6320295 | M117: 0 | N117: 1.333333333 | O117: 1.222222222 | P117: 0.1111111111 | Q117: -1.222222222 | S117: 0.965274645 | T117: 15.14 | Y117: -7722.434259 | Z117: -7712.886574 | AA117: 0 | AB117: 0 | AC117: 0 | AD117: 0 | AE117: 0 | AG117: -0.9145660538 | AH117: -36.35 | AM117: -3349.594576 | AN117: -3320.951521 | AO117: 0 | AP117: 1.333333333 | AQ117: 1.777777778 | AR117: -0.4444444444 | AS117: -1.777777778 | AU117: -0.9528996114 | AV117: -168.5
B118: AVACHINSKY Kamchatka Peninsula (Russia) G 4460 BC ± 100 years 4 | C118: -4460 | D118: 1 | E118: 0 | F118: 0 | K118: 736.8145911 | L118: 739.9971527 | M118: 1 | N118: 0.3333333333 | O118: 0.8888888889 | P118: -0.5555555556 | Q118: 0.1111111111 | S118: 0.571523261 | T118: 15.14 | Y118: -7703.338889 | Z118: -7693.791204 | AA118: 0 | AB118: 0 | AC118: 0 | AD118: 0 | AE118: 0 | AG118: -0.440631432 | AH118: -36.35 | AM118: -3292.308466 | AN118: -3263.665411 | AO118: 2 | AP118: 1.333333333 | AQ118: 1.555555556 | AR118: -0.2222222222 | AS118: 0.4444444444 | AU118: -0.924911864 | AV118: -168.5
B119: KIZIMEN Kamchatka Peninsula (Russia) T 4450 BC (?) 4 | C119: -4450 | D119: 1 | E119: 0 | F119: 0 | K119: 743.1797144 | L119: 746.362276 | M119: 0 | N119: 1 | O119: 1.111111111 | P119: -0.1111111111 | Q119: -1.111111111 | S119: -0.08965020859 | T119: 15.14 | Y119: -7684.243519 | Z119: -7674.695834 | AA119: 0 | AB119: 0 | AC119: 0.2222222222 | AD119: -0.2222222222 | AE119: -0.2222222222 | AG119: 0.2394795339 | AH119: -36.35 | AM119: -3235.022357 | AN119: -3206.379302 | AO119: 2 | AP119: 2 | AQ119: 1.555555556 | AR119: 0.4444444444 | AS119: 0.4444444444 | AU119: -0.4641475762 | AV119: -168.5
B120: SHIVELUCH Kamchatka Peninsula (Russia) G 4400 BC (?) 5 | C120: -4400 | D120: 2 | E120: 2 | F120: 0 | K120: 749.5448376 | L120: 752.7273993 | M120: 2 | N120: 0.6666666667 | O120: 1.222222222 | P120: -0.5555555556 | Q120: 0.7777777778 | S120: -0.7088753493 | T120: 15.14 | Y120: -7665.148149 | Z120: -7655.600464 | AA120: 0 | AB120: 0 | AC120: 0.2222222222 | AD120: -0.2222222222 | AE120: -0.2222222222 | AG120: 0.8075353644 | AH120: -36.35 | AM120: -3177.736247 | AN120: -3149.093193 | AO120: 2 | AP120: 1.333333333 | AQ120: 1.333333333 | AR120: 0 | AS120: 0.6666666667 | AU120: 0.2137965209 | AV120: -168.5
B121: MACAULEY ISLAND Kermadec Islands C 4360 BC ± 200 years 6? | C121: -4360 | D121: 4 | E121: 4 | F121: 4 | K121: 755.9099609 | L121: 759.0925225 | M121: 0 | N121: 1 | O121: 0.8888888889 | P121: 0.1111111111 | Q121: -0.8888888889 | S121: -0.9964098357 | T121: 15.14 | Y121: -7646.052779 | Z121: -7636.505094 | AA121: 0 | AB121: 0 | AC121: 0.4444444444 | AD121: -0.4444444444 | AE121: -0.4444444444 | AG121: 0.9977364231 | AH121: -36.35 | AM121: -3120.450138 | AN121: -3091.807083 | AO121: 0 | AP121: 1.333333333 | AQ121: 1.333333333 | AR121: 0 | AS121: -1.333333333 | AU121: 0.7917028498 | AV121: -168.5
B122: KOMAGA-TAKE Hokkaido (Japan) G 4350 BC (?) P | C122: -4350 | D122: 1 | E122: 0 | F122: 0 | K122: 762.2750842 | L122: 765.4576458 | M122: 1 | N122: 1 | O122: 1 | P122: 0 | Q122: 0 | S122: -0.8177130862 | T122: 15.14 | Y122: -7626.95741 | Z122: -7617.409725 | AA122: 0 | AB122: 0.6666666667 | AC122: 0.6666666667 | AD122: 0 | AE122: -0.6666666667 | AG122: 0.7210855209 | AH122: -36.35 | AM122: -3063.164029 | AN122: -3034.520974 | AO122: 2 | AP122: 1.333333333 | AQ122: 1.333333333 | AR122: 0 | AS122: 0.6666666667 | AU122: 0.9991626165 | AV122: -168.5
B123: COTOPAXI Ecuador C 4350 BC ± 75 years 5 | C123: -4350 | D123: 1 | E123: 0 | F123: 0 | K123: 768.6402074 | L123: 771.822769 | M123: 2 | N123: 1.666666667 | O123: 1.444444444 | P123: 0.2222222222 | Q123: 0.5555555556 | S123: -0.2563992958 | T123: 15.14 | Y123: -7607.86204 | Z123: -7598.314355 | AA123: 2 | AB123: 0.6666666667 | AC123: 0.6666666667 | AD123: 0 | AE123: 1.333333333 | AG123: 0.1070306894 | AH123: -36.35 | AM123: -3005.877919 | AN123: -2977.234865 | AO123: 2 | AP123: 1.333333333 | AQ123: 1.111111111 | AR123: 0.2222222222 | AS123: 0.8888888889 | AU123: 0.7391030905 | AV123: -168.5
B124: KIKAI Ryukyu Islands (Japan) C 4350 BC (?) 7 | C124: -4350 | D124: 8 | E124: 8 | F124: 8 | K124: 775.0053307 | L124: 778.1878923 | M124: 2 | N124: 1.333333333 | O124: 1.444444444 | P124: -0.1111111111 | Q124: 0.5555555556 | S124: 0.4248865747 | T124: 15.14 | Y124: -7588.76667 | Z124: -7579.218985 | AA124: 0 | AB124: 1.333333333 | AC124: 0.6666666667 | AD124: 0.6666666667 | AE124: -0.6666666667 | AG124: -0.5571049911 | AH124: -36.35 | AM124: -2948.59181 | AN124: -2919.948755 | AO124: 0 | AP124: 1.333333333 | AQ124: 1.333333333 | AR124: 0 | AS124: -1.333333333 | AU124: 0.1332090142 | AV124: -168.5
B125: KIRISHIMA Kyushu (Japan) C 4350 BC (?) 4 | C125: -4350 | D125: 1 | E125: 0 | F125: 0 | K125: 781.3704539 | L125: 784.5530156 | M125: 0 | N125: 1 | O125: 1.333333333 | P125: -0.3333333333 | Q125: -1.333333333 | S125: 0.9073632948 | T125: 15.14 | Y125: -7569.6713 | Z125: -7560.123615 | AA125: 2 | AB125: 1.333333333 | AC125: 1.111111111 | AD125: 0.2222222222 | AE125: 0.8888888889 | AG125: -0.9605650548 | AH125: -36.35 | AM125: -2891.3057 | AN125: -2862.662646 | AO125: 2 | AP125: 0.6666666667 | AQ125: 1.555555556 | AR125: -0.8888888889 | AS125: 0.4444444444 | AU125: -0.5350150403 | AV125: -168.5
B126: AVACHINSKY Kamchatka Peninsula (Russia) G 4340 BC ± 75 years 5 | C126: -4340 | D126: 2 | E126: 2 | F126: 0 | K126: 787.7355772 | L126: 790.9181388 | M126: 1 | N126: 2 | O126: 1.333333333 | P126: 0.6666666667 | Q126: -0.3333333333 | S126: 0.965274645 | T126: 15.14 | Y126: -7550.57593 | Z126: -7541.028245 | AA126: 2 | AB126: 1.333333333 | AC126: 1.555555556 | AD126: -0.2222222222 | AE126: 0.4444444444 | AG126: -0.9145660538 | AH126: -36.35 | AM126: -2834.019591 | AN126: -2805.376536 | AO126: 0 | AP126: 0.6666666667 | AQ126: 1.777777778 | AR126: -1.111111111 | AS126: -1.777777778 | AU126: -0.9528996114 | AV126: -168.5
B127: BRAVO, CERRO Colombia C 4280 BC ± 150 years 4 | C127: -4280 | D127: 1 | E127: 0 | F127: 0 | G127: -4237 | H127: ** | K127: 794.1007005 | L127: 797.2832621 | M127: 5 | N127: 2 | O127: 1.333333333 | P127: 0.6666666667 | Q127: 3.666666667 | S127: 0.571523261 | T127: 15.14 | Y127: -7531.480561 | Z127: -7521.932876 | AA127: 0 | AB127: 0.6666666667 | AC127: 1.777777778 | AD127: -1.111111111 | AE127: -1.777777778 | AG127: -0.440631432 | AH127: -36.35 | AM127: -2776.733482 | AN127: -2748.090427 | AO127: 0 | AP127: 1.333333333 | AQ127: 1.555555556 | AR127: -0.2222222222 | AS127: -1.555555556 | AU127: -0.924911864 | AV127: -168.5
B128: APOYEQUE Nicaragua C 4160 BC ± 30 years 5 | C128: -4160 | D128: 2 | E128: 2 | F128: 0 | K128: 800.4658237 | L128: 803.6483854 | M128: 0 | N128: 2 | O128: 1.111111111 | P128: 0.8888888889 | Q128: -1.111111111 | S128: -0.08965020859 | T128: 15.14 | Y128: -7512.385191 | Z128: -7502.837506 | AA128: 0 | AB128: 1.333333333 | AC128: 2 | AD128: -0.6666666667 | AE128: -2 | AG128: 0.2394795339 | AH128: -36.35 | AM128: -2719.447372 | AN128: -2690.804318 | AO128: 4 | AP128: 2.666666667 | AQ128: 1.555555556 | AR128: 1.111111111 | AS128: 2.444444444 | AU128: -0.4641475762 | AV128: -168.5
B129: MEIDOB VOLC FIELD Northern Africa T 4150 BC ± 1000 years P | C129: -4150 | D129: 1 | E129: 0 | F129: 0 | K129: 806.830947 | L129: 810.0135086 | M129: 1 | N129: 0.3333333333 | O129: 1 | P129: -0.6666666667 | Q129: 0 | S129: -0.7088753493 | T129: 15.14 | Y129: -7493.289821 | Z129: -7483.742136 | AA129: 4 | AB129: 2.666666667 | AC129: 2.222222222 | AD129: 0.4444444444 | AE129: 1.777777778 | AG129: 0.8075353644 | AH129: -36.35 | AM129: -2662.161263 | AN129: -2633.518208 | AO129: 4 | AP129: 3.333333333 | AQ129: 1.777777778 | AR129: 1.555555556 | AS129: 2.222222222 | AU129: 0.2137965209 | AV129: -168.5
B130: TAUPO New Zealand G 4100 BC (?) 4 | C130: -4100 | D130: 1 | E130: 0 | F130: 0 | K130: 813.1960703 | L130: 816.3786319 | M130: =SUMIFS(MagAll,Age,">"&K130,Age,"<="&K131) -> 0 | N130: 0.6666666667 | O130: 1.111111111 | P130: -0.4444444444 | Q130: -1.111111111 | S130: -0.9964098357 | T130: 15.14 | Y130: -7474.194451 | Z130: -7464.646766 | AA130: =SUMIFS(Mag_5,Age,">"&Y130,Age,"<="&Y131) -> 4 | AB130: 3.333333333 | AC130: 2 | AD130: 1.333333333 | AE130: 2 | AG130: 0.9977364231 | AH130: -36.35 | AM130: -2604.875154 | AN130: -2576.232099 | AO130: =SUMIFS(Mag_5,Age,">"&AM130,Age,"<="&AM131) -> 2 | AP130: 2 | AQ130: 2 | AR130: 0 | AS130: 0 | AU130: 0.7917028498 | AV130: -168.5
B131: MASAYA Nicaragua T 4050 BC (?) 6 | C131: -4050 | D131: 4 | E131: =IF(D131>1, D131,"0") -> 4 | F131: 4 | K131: 819.5611935 | L131: 822.7437552 | M131: 1 | N131: 0.3333333333 | O131: 1.333333333 | P131: -1 | Q131: -0.3333333333 | S131: -0.8177130862 | T131: 15.14 | Y131: -7455.099081 | Z131: -7445.551396 | AA131: 2 | AB131: 3.333333333 | AC131: 2 | AD131: 1.333333333 | AE131: 0 | AG131: 0.7210855209 | AH131: -36.35 | AM131: -2547.589044 | AN131: -2518.945989 | AO131: 0 | AP131: 1.333333333 | AQ131: 2.222222222 | AR131: -0.8888888889 | AS131: -2.222222222 | AU131: 0.9991626165 | AV131: -168.5
B132: PAGO New Britain G 4000 BC ± 200 years 6? | C132: -4000 | D132: 4 | E132: 4 | F132: 4 | K132: 825.9263168 | L132: 829.1088784 | M132: 0 | N132: 0.6666666667 | O132: 0.8888888889 | P132: -0.2222222222 | Q132: -0.8888888889 | S132: -0.2563992958 | T132: =T131 -> 15.14 | Y132: -7436.003712 | Z132: -7426.456027 | AA132: 4 | AB132: 2.666666667 | AC132: 2 | AD132: 0.6666666667 | AE132: 2 | AG132: 0.1070306894 | AH132: -36.35 | AM132: -2490.302935 | AN132: -2461.65988 | AO132: 2 | AP132: 1.333333333 | AQ132: 2.444444444 | AR132: -1.111111111 | AS132: -0.4444444444 | AU132: 0.7391030905 | AV132: -168.5
B133: ARENAL Costa Rica T 3900 BC (?) 4 | C133: -3900 | D133: 1 | E133: 0 | F133: 0 | K133: 832.2914401 | L133: 835.4740017 | M133: 1 | N133: 0.6666666667 | O133: 1.111111111 | P133: -0.4444444444 | Q133: -0.1111111111 | S133: 0.4248865747 | T133: 15.14 | Y133: -7416.908342 | Z133: -7407.360657 | AA133: 2 | AB133: 2 | AC133: 2 | AD133: 0 | AE133: 0 | AG133: -0.5571049911 | AH133: -36.35 | AM133: -2433.016825 | AN133: -2404.373771 | AO133: 2 | AP133: 2.666666667 | AQ133: 2.222222222 | AR133: 0.4444444444 | AS133: -0.2222222222 | AU133: 0.1332090142 | AV133: -168.5
B134: COTOPAXI Ecuador C 3880 BC ± 75 years 5+ | C134: -3880 | D134: 2 | E134: 2 | F134: 0 | K134: 838.6565633 | L134: 841.839125 | M134: 1 | N134: 1.666666667 | O134: 1.222222222 | P134: 0.4444444444 | Q134: -0.2222222222 | S134: 0.9073632948 | T134: 15.14 | Y134: -7397.812972 | Z134: -7388.265287 | AA134: 0 | AB134: 1.333333333 | AC134: 1.555555556 | AD134: -0.2222222222 | AE134: -1.555555556 | AG134: -0.9605650548 | AH134: -36.35 | AM134: -2375.730716 | AN134: -2347.087661 | AO134: 4 | AP134: 2.666666667 | AQ134: 2 | AR134: 0.6666666667 | AS134: 2 | AU134: -0.5350150403 | AV134: -168.5
B135: KAGUYAK Alaska Peninsula C 3850 BC (?) 5 | C135: -3850 | D135: 2 | E135: 2 | F135: 0 | K135: 845.0216866 | L135: 848.2042482 | M135: 3 | N135: 1.666666667 | O135: 1.333333333 | P135: 0.3333333333 | Q135: 1.666666667 | S135: 0.965274645 | T135: 15.14 | Y135: -7378.717602 | Z135: -7369.169917 | AA135: 2 | AB135: 0.6666666667 | AC135: 1.333333333 | AD135: -0.6666666667 | AE135: 0.6666666667 | AG135: -0.9145660538 | AH135: -36.35 | AM135: -2318.444607 | AN135: -2289.801552 | AO135: 2 | AP135: 2.666666667 | AQ135: 2.666666667 | AR135: 0 | AS135: -0.6666666667 | AU135: -0.9528996114 | AV135: -168.5
B136: PELEE West Indies C 3820 BC (?) P | C136: -3820 | D136: 1 | E136: 0 | F136: 0 | K136: 851.3868099 | L136: 854.5693715 | M136: 1 | N136: 2 | O136: 1.222222222 | P136: 0.7777777778 | Q136: -0.2222222222 | S136: 0.571523261 | T136: 15.14 | Y136: -7359.622232 | Z136: -7350.074548 | AA136: 0 | AB136: 0.6666666667 | AC136: 1.111111111 | AD136: -0.4444444444 | AE136: -1.111111111 | AG136: -0.440631432 | AH136: -36.35 | AM136: -2261.158497 | AN136: -2232.515443 | AO136: 2 | AP136: 2 | AQ136: 3.333333333 | AR136: -1.333333333 | AS136: -1.333333333 | AU136: -0.924911864 | AV136: -168.5
B137: AVACHINSKY Kamchatka Peninsula (Russia) G 3790 BC ± 100 years 4 | C137: -3790 | D137: 1 | E137: 0 | F137: 0 | K137: 857.7519331 | L137: 860.9344948 | M137: 2 | N137: 1.666666667 | O137: 1.666666667 | P137: 0 | Q137: 0.3333333333 | S137: -0.08965020859 | T137: 15.14 | Y137: -7340.526863 | Z137: -7330.979178 | AA137: 0 | AB137: 0 | AC137: 0.6666666667 | AD137: -0.6666666667 | AE137: -0.6666666667 | AG137: 0.2394795339 | AH137: -36.35 | AM137: -2203.872388 | AN137: -2175.229333 | AO137: 2 | AP137: 2 | AQ137: 3.111111111 | AR137: -1.111111111 | AS137: -1.111111111 | AU137: -0.4641475762 | AV137: -168.5
B138: KUJU Kyushu (Japan) G 3780 BC ± 500 years 4 | C138: -3780 | D138: 1 | E138: 0 | F138: 0 | G138: -3722 | K138: 864.1170564 | L138: 867.299618 | M138: 2 | N138: 1.666666667 | O138: 1.666666667 | P138: 0 | Q138: 0.3333333333 | S138: -0.7088753493 | T138: 15.14 | Y138: -7321.431493 | Z138: -7311.883808 | AA138: 0 | AB138: =AVERAGE(AA137:AA139) -> 0.6666666667 | AC138: 0.4444444444 | AD138: 0.2222222222 | AE138: -0.4444444444 | AG138: 0.8075353644 | AH138: -36.35 | AM138: -2146.586278 | AN138: -2117.943224 | AO138: 2 | AP138: =AVERAGE(AO137:AO139) -> 4 | AQ138: 4 | AR138: 0 | AS138: -2 | AU138: 0.2137965209 | AV138: -168.5
B139: SHIVELUCH Kamchatka Peninsula (Russia) G 3650 BC (?) 5 | C139: -3650 | D139: 2 | E139: 2 | F139: 0 | K139: 870.4821797 | L139: 873.6647413 | M139: 1 | N139: 1 | O139: 1.666666667 | P139: -0.6666666667 | Q139: -0.6666666667 | S139: -0.9964098357 | T139: 15.14 | Y139: -7302.336123 | Z139: -7292.788438 | AA139: 2 | AB139: 0.6666666667 | AC139: 0.4444444444 | AD139: 0.2222222222 | AE139: 1.555555556 | AG139: 0.9977364231 | AH139: -36.35 | AM139: -2089.300169 | AN139: -2060.657114 | AO139: 8 | AP139: 5.333333333 | AQ139: 4.222222222 | AR139: 1.111111111 | AS139: 3.777777778 | AU139: 0.7917028498 | AV139: -168.5
B140: MAKUSHIN Aleutian Islands T 3650 BC ± 1000 years P | C140: -3650 | D140: 1 | E140: 0 | F140: 0 | K140: 876.8473029 | L140: 880.0298646 | M140: 0 | N140: 1.666666667 | O140: 1.333333333 | P140: 0.3333333333 | Q140: -1.333333333 | S140: -0.8177130862 | T140: 15.14 | Y140: -7283.240753 | Z140: -7273.693068 | AA140: 0 | AB140: 0.6666666667 | AC140: 0.2222222222 | AD140: 0.4444444444 | AE140: -0.2222222222 | AG140: 0.7210855209 | AH140: -36.35 | AM140: -2032.01406 | AN140: -2003.371005 | AO140: 6 | AP140: 4.666666667 | AQ140: 4.666666667 | AR140: 0 | AS140: 1.333333333 | AU140: 0.9991626165 | AV140: -168.5
B141: TAAL Luzon (Philippines) C 3580 BC ± 200 years 6 | C141: -3580 | D141: 4 | E141: 4 | F141: 4 | K141: 883.2124262 | L141: 886.3949878 | M141: 4 | N141: 1.666666667 | O141: 1.555555556 | P141: 0.1111111111 | Q141: 2.444444444 | S141: -0.2563992958 | T141: 15.14 | Y141: -7264.145383 | Z141: -7254.597699 | AA141: 0 | AB141: 0 | AC141: 0.2222222222 | AD141: -0.2222222222 | AE141: -0.2222222222 | AG141: 0.1070306894 | AH141: -36.35 | AM141: -1974.72795 | AN141: -1946.084896 | AO141: 0 | AP141: 5.333333333 | AQ141: 4.666666667 | AR141: 0.6666666667 | AS141: -4.666666667 | AU141: 0.7391030905 | AV141: -168.5
B142: OKATAINA New Zealand G 3580 BC ± 50 years 5 | C142: -3580 | D142: 2 | E142: 2 | F142: 0 | K142: 889.5775494 | L142: 892.7601111 | M142: 1 | N142: 2 | O142: 1.444444444 | P142: 0.5555555556 | Q142: -0.4444444444 | S142: 0.4248865747 | T142: 15.14 | Y142: -7245.050014 | Z142: -7235.502329 | AA142: 0 | AB142: 0 | AC142: 0.4444444444 | AD142: -0.4444444444 | AE142: -0.4444444444 | AG142: -0.5571049911 | AH142: -36.35 | AM142: -1917.441841 | AN142: -1888.798786 | AO142: 10 | AP142: 5.333333333 | AQ142: 4.888888889 | AR142: 0.4444444444 | AS142: 5.111111111 | AU142: 0.1332090142 | AV142: -168.5
B143: MASHU Hokkaido (Japan) G 3550 BC ± 40 years 4 | C143: -3550 | D143: 1 | E143: 0 | F143: 0 | K143: 895.9426727 | L143: 899.1252343 | M143: 1 | N143: 0.6666666667 | O143: 1.222222222 | P143: -0.5555555556 | Q143: -0.2222222222 | S143: 0.9073632948 | T143: 15.14 | Y143: -7225.954644 | Z143: -7216.406959 | AA143: 0 | AB143: 0 | AC143: 0.4444444444 | AD143: -0.4444444444 | AE143: -0.4444444444 | AG143: -0.9605650548 | AH143: -36.35 | AM143: -1860.155732 | AN143: -1831.512677 | AO143: 6 | AP143: 7.333333333 | AQ143: 5.555555556 | AR143: 1.777777778 | AS143: 0.4444444444 | AU143: -0.5350150403 | AV143: -168.5
B144: PINATUBO Luzon (Philippines) G 3550 BC (?) 6 | C144: -3550 | D144: 4 | E144: 4 | F144: 4 | K144: 902.307796 | L144: 905.4903576 | M144: 0 | N144: 1.333333333 | O144: 1.666666667 | P144: -0.3333333333 | Q144: -1.666666667 | S144: 0.965274645 | T144: 15.14 | Y144: -7206.859274 | Z144: -7197.311589 | AA144: 0 | AB144: 0 | AC144: 0.2222222222 | AD144: -0.2222222222 | AE144: -0.2222222222 | AG144: -0.9145660538 | AH144: -36.35 | AM144: -1802.869622 | AN144: -1774.226568 | AO144: 6 | AP144: 4.666666667 | AQ144: 4.888888889 | AR144: -0.2222222222 | AS144: 1.111111111 | AU144: -0.9528996114 | AV144: -168.5
B145: SHIVELUCH Kamchatka Peninsula (Russia) G 3500 BC (?) 5 | C145: -3500 | D145: 2 | E145: 2 | F145: 0 | K145: 908.6729192 | L145: 911.8554809 | M145: 3 | N145: 1.333333333 | O145: 1.666666667 | P145: -0.3333333333 | Q145: 1.333333333 | S145: 0.571523261 | T145: 15.14 | Y145: -7187.763904 | Z145: -7178.216219 | AA145: 0 | AB145: 0.6666666667 | AC145: 0.2222222222 | AD145: 0.4444444444 | AE145: -0.2222222222 | AG145: -0.440631432 | AH145: -36.35 | AM145: -1745.583513 | AN145: -1716.940458 | AO145: 2 | AP145: 4 | AQ145: 5.111111111 | AR145: -1.111111111 | AS145: -3.111111111 | AU145: -0.924911864 | AV145: -168.5
B146: PELEE West Indies T 3500 BC ± 200 years P | C146: -3500 | D146: 1 | E146: 0 | F146: 0 | K146: 915.0380425 | L146: 918.2206041 | M146: 1 | N146: 1.333333333 | O146: 1.222222222 | P146: 0.1111111111 | Q146: -0.2222222222 | S146: -0.08965020859 | T146: 15.14 | Y146: -7168.668534 | Z146: -7159.12085 | AA146: 2 | AB146: 0.6666666667 | AC146: 0.2222222222 | AD146: 0.4444444444 | AE146: 1.777777778 | AG146: 0.2394795339 | AH146: -36.35 | AM146: -1688.297403 | AN146: -1659.654349 | AO146: 4 | AP146: 4.666666667 | AQ146: 5.111111111 | AR146: -0.4444444444 | AS146: -1.111111111 | AU146: -0.4641475762 | AV146: -168.5
B147: ATACAZO Ecuador C 3490 BC ± 100 years P | C147: -3490 | D147: 1 | E147: 0 | F147: 0 | K147: 921.4031658 | L147: 924.5857274 | M147: 0 | N147: 2 | O147: 1.333333333 | P147: 0.6666666667 | Q147: -1.333333333 | S147: -0.7088753493 | T147: 15.14 | Y147: -7149.573165 | Z147: -7140.02548 | AA147: 0 | AB147: 0.6666666667 | AC147: 0.2222222222 | AD147: 0.4444444444 | AE147: -0.2222222222 | AG147: 0.8075353644 | AH147: -36.35 | AM147: =AM146+57.2861093837796 -> -1631.011294 | AN147: =AN146+57.2861093837796 -> -1602.368239 | AO147: 8 | AP147: 4.666666667 | AQ147: =AVERAGE(AO143:AO151) -> 4.888888889 | AR147: =AP147-AQ147 -> -0.2222222222 | AS147: =AO147-AQ147 -> 3.111111111 | AU147: =SIN((2*PI()*(AN147-2000+AV147)/515.574984454017) + 2.187804708) -> 0.2137965209 | AV147: =AV146 -> -168.5
B148: TOWADA Honshu (Japan) C 3440 BC ± 150 years 5+ | C148: -3440 | D148: 2 | E148: 2 | F148: 0 | K148: 927.768289 | L148: 930.9508507 | M148: 5 | N148: 1.666666667 | O148: 1.222222222 | P148: 0.4444444444 | Q148: 3.777777778 | S148: -0.9964098357 | T148: 15.14 | Y148: -7130.477795 | Z148: -7120.93011 | AA148: 0 | AB148: 0 | AC148: 0.4444444444 | AD148: -0.4444444444 | AE148: -0.4444444444 | AG148: 0.9977364231 | AH148: -36.35 | AM148: -1573.725185 | AN148: -1545.08213 | AO148: 2 | AP148: 6 | AQ148: 4.444444444 | AR148: 1.555555556 | AS148: -2.444444444 | AU148: 0.7917028498 | AV148: -168.5
B149: PELEE West Indies G 3430 BC ± 75 years 4? | C149: -3430 | D149: 1 | E149: 0 | F149: 0 | K149: 934.1334123 | L149: 937.3159739 | M149: 0 | N149: 1.666666667 | O149: 1.222222222 | P149: 0.4444444444 | Q149: -1.222222222 | S149: -0.8177130862 | T149: 15.14 | Y149: -7111.382425 | Z149: -7101.83474 | AA149: 0 | AB149: 0 | AC149: 0.4444444444 | AD149: -0.4444444444 | AE149: -0.4444444444 | AG149: 0.7210855209 | AH149: -36.35 | AM149: -1516.439075 | AN149: -1487.796021 | AO149: 8 | AP149: 3.333333333 | AQ149: 4 | AR149: -0.6666666667 | AS149: 4 | AU149: 0.9991626165 | AV149: -168.5
B150: NUMAZAWA Honshu (Japan) G 3400 BC (?) 5 | C150: -3400 | D150: 2 | E150: 2 | F150: 0 | K150: =K149+6.3651232648644 -> 940.4985356 | L150: =L149+6.3651232648644 -> 943.6810972 | M150: 0 | N150: =AVERAGE(M149:M151) -> 0.6666666667 | O150: =AVERAGE(M146:M154) -> 1.111111111 | P150: =N150-O150 -> -0.4444444444 | Q150: =M150-O150 -> -1.111111111 | S150: =SIN((2*PI()*(L150-2000+T150)/57.2861093837796) + 0.840686201) -> -0.2563992958 | T150: 15.14 | Y150: -7092.287055 | Z150: -7082.73937 | AA150: 0 | AB150: 0 | AC150: 0.4444444444 | AD150: -0.4444444444 | AE150: -0.4444444444 | AG150: 0.1070306894 | AH150: -36.35 | AM150: -1459.152966 | AN150: -1430.509911 | AO150: 0 | AP150: 5.333333333 | AQ150: 3.777777778 | AR150: 1.555555556 | AS150: -3.777777778 | AU150: 0.7391030905 | AV150: -168.5
B151: ARENAL Costa Rica T 3350 BC (?) 4 | C151: -3350 | D151: 1 | E151: 0 | F151: =IF(D151>2, D151,"0") -> 0 | K151: 946.8636588 | L151: 950.0462205 | M151: 2 | N151: 0.6666666667 | O151: 1 | P151: -0.3333333333 | Q151: 1 | S151: 0.4248865747 | T151: 15.14 | Y151: -7073.191686 | Z151: -7063.644001 | AA151: 0 | AB151: 0.6666666667 | AC151: 0.2222222222 | AD151: 0.4444444444 | AE151: -0.2222222222 | AG151: -0.5571049911 | AH151: -36.35 | AM151: -1401.866857 | AN151: -1373.223802 | AO151: 8 | AP151: 3.333333333 | AQ151: 3.555555556 | AR151: -0.2222222222 | AS151: 4.444444444 | AU151: 0.1332090142 | AV151: -168.5
B152: COTOPAXI Ecuador T 3280 BC ± 500 years 5 | C152: -3280 | D152: 2 | E152: 2 | F152: 0 | K152: 953.2287821 | L152: 956.4113437 | M152: 0 | N152: 0.6666666667 | O152: 1 | P152: -0.3333333333 | Q152: -1 | S152: 0.9073632948 | T152: 15.14 | Y152: -7054.096316 | Z152: -7044.548631 | AA152: 2 | AB152: 0.6666666667 | AC152: 0.2222222222 | AD152: 0.4444444444 | AE152: 1.777777778 | AG152: -0.9605650548 | AH152: -36.35 | AM152: -1344.580747 | AN152: -1315.937692 | AO152: 2 | AP152: 4 | AQ152: 2.888888889 | AR152: 1.111111111 | AS152: -0.8888888889 | AU152: -0.5350150403 | AV152: -168.5
B153: KARYMSKY Kamchatka Peninsula (Russia) G 3200 BC (?) 4 | C153: -3200 | D153: 1 | E153: 0 | F153: 0 | G153: -3206 | K153: 959.5939054 | L153: 962.776467 | M153: 0 | N153: 0.6666666667 | O153: 0.4444444444 | P153: 0.2222222222 | Q153: -0.4444444444 | S153: 0.965274645 | T153: 15.14 | Y153: -7035.000946 | Z153: -7025.453261 | AA153: 0 | AB153: 0.6666666667 | AC153: 0.6666666667 | AD153: 0 | AE153: -0.6666666667 | AG153: -0.9145660538 | AH153: -36.35 | AM153: -1287.294638 | AN153: -1258.651583 | AO153: 2 | AP153: 1.333333333 | AQ153: 3.333333333 | AR153: -2 | AS153: -1.333333333 | AU153: -0.9528996114 | AV153: -168.5
B154: AVACHINSKY Kamchatka Peninsula (Russia) G 3200 BC ± 150 years 5 | C154: -3200 | D154: 2 | E154: 2 | F154: 0 | K154: 965.9590286 | L154: 969.1415903 | M154: 2 | N154: 0.6666666667 | O154: 0.4444444444 | P154: 0.2222222222 | Q154: 1.555555556 | S154: 0.571523261 | T154: 15.14 | Y154: -7015.905576 | Z154: -7006.357891 | AA154: 0 | AB154: 0 | AC154: 0.6666666667 | AD154: -0.6666666667 | AE154: -0.6666666667 | AG154: -0.440631432 | AH154: -36.35 | AM154: -1230.008528 | AN154: -1201.365474 | AO154: 0 | AP154: 1.333333333 | AQ154: 2.888888889 | AR154: -1.555555556 | AS154: -2.888888889 | AU154: -0.924911864 | AV154: -168.5
B155: SHIVELUCH Kamchatka Peninsula (Russia) T 3200 BC (?) 4+ | C155: -3200 | D155: 1 | E155: 0 | F155: 0 | K155: 972.3241519 | L155: 975.5067135 | M155: 0 | N155: 0.6666666667 | O155: 1.555555556 | P155: -0.8888888889 | Q155: -1.555555556 | S155: -0.08965020859 | T155: 15.14 | Y155: -6996.810206 | Z155: -6987.262521 | AA155: 0 | AB155: 0 | AC155: 0.6666666667 | AD155: -0.6666666667 | AE155: -0.6666666667 | AG155: 0.2394795339 | AH155: -36.35 | AM155: -1172.722419 | AN155: -1144.079364 | AO155: 2 | AP155: 1.333333333 | AQ155: 3.555555556 | AR155: -2.222222222 | AS155: -1.555555556 | AU155: -0.4641475762 | AV155: -168.5
B156: FISHER Aleutian Islands C 3170 BC ± 75 years 5 | C156: -3170 | D156: 2 | E156: 2 | F156: 0 | K156: 978.6892752 | L156: 981.8718368 | M156: 0 | N156: 0 | O156: 1.333333333 | P156: -1.333333333 | Q156: -1.333333333 | S156: -0.7088753493 | T156: 15.14 | Y156: -6977.714837 | Z156: -6968.167152 | AA156: 0 | AB156: 1.333333333 | AC156: 0.6666666667 | AD156: 0.6666666667 | AE156: -0.6666666667 | AG156: 0.8075353644 | AH156: -36.35 | AM156: -1115.43631 | AN156: -1086.793255 | AO156: 2 | AP156: 3.333333333 | AQ156: 2.666666667 | AR156: 0.6666666667 | AS156: -0.6666666667 | AU156: 0.2137965209 | AV156: -168.5
B157: TAUPO New Zealand G 3170 BC ± 200 years 4 | C157: -3170 | D157: 1 | E157: 0 | F157: 0 | K157: 985.0543984 | L157: 988.2369601 | M157: 0 | N157: 0 | O157: 1.333333333 | P157: -1.333333333 | Q157: -1.333333333 | S157: -0.9964098357 | T157: 15.14 | Y157: -6958.619467 | Z157: -6949.071782 | AA157: 4 | AB157: 1.333333333 | AC157: 0.6666666667 | AD157: 0.6666666667 | AE157: 3.333333333 | AG157: 0.9977364231 | AH157: -36.35 | AM157: -1058.1502 | AN157: -1029.507146 | AO157: 6 | AP157: 4 | AQ157: 2.666666667 | AR157: 1.333333333 | AS157: 3.333333333 | AU157: 0.7917028498 | AV157: -168.5
B158: TAUPO New Zealand G 3070 BC (?) 4 | C158: -3070 | D158: 1 | E158: 0 | F158: 0 | K158: 991.4195217 | L158: 994.6020833 | M158: 0 | N158: 3.333333333 | O158: 1.444444444 | P158: 1.888888889 | Q158: -1.444444444 | S158: -0.8177130862 | T158: 15.14 | Y158: -6939.524097 | Z158: -6929.976412 | AA158: 0 | AB158: 1.333333333 | AC158: 0.6666666667 | AD158: 0.6666666667 | AE158: -0.6666666667 | AG158: 0.7210855209 | AH158: -36.35 | AM158: -1000.864091 | AN158: -972.2210361 | AO158: 4 | AP158: 5.333333333 | AQ158: 2.444444444 | AR158: 2.888888889 | AS158: 1.555555556 | AU158: 0.9991626165 | AV158: -168.5
B159: MEIDOB VOLC FIELD Northern Africa T 3050 BC (?) P | C159: -3050 | D159: 1 | E159: 0 | F159: 0 | K159: 997.784645 | L159: 1000.967207 | M159: 10 | N159: 3.333333333 | O159: 1.222222222 | P159: 2.111111111 | Q159: 8.777777778 | S159: -0.2563992958 | T159: 15.14 | Y159: -6920.428727 | Z159: -6910.881042 | AA159: 0 | AB159: 0 | AC159: 0.6666666667 | AD159: -0.6666666667 | AE159: -0.6666666667 | AG159: 0.1070306894 | AH159: -36.35 | AM159: -943.5779814 | AN159: -914.9349267 | AO159: 6 | AP159: 3.333333333 | AQ159: 2.666666667 | AR159: 0.6666666667 | AS159: 3.333333333 | AU159: 0.7391030905 | AV159: -168.5
B160: ZHELTOVSKY Kamchatka Peninsula (Russia) C 3050 BC (?) 5 | C160: -3050 | D160: 2 | E160: 2 | F160: 0 | K160: 1004.149768 | L160: 1007.33233 | M160: 0 | N160: 3.333333333 | O160: 1.777777778 | P160: 1.555555556 | Q160: -1.777777778 | S160: 0.4248865747 | T160: 15.14 | Y160: =Y159+19.0953697945932 -> -6901.333357 | Z160: =Z159+19.0953697945932 -> -6891.785672 | AA160: 0 | AB160: 0.6666666667 | AC160: =AVERAGE(AA156:AA164) -> 0.6666666667 | AD160: =AB160-AC160 -> 0 | AE160: =AA160-AC160 -> -0.6666666667 | AG160: =SIN((2*PI()*(Z160-2000+AH160)/171.858328151339) + 3.421821408) -> -0.5571049911 | AH160: =AH159 -> -36.35 | AM160: -886.2918721 | AN160: -857.6488174 | AO160: 0 | AP160: 2.666666667 | AQ160: 2.444444444 | AR160: 0.2222222222 | AS160: -2.444444444 | AU160: 0.1332090142 | AV160: -168.5
B161: SAKURA-JIMA Kyushu (Japan) C 3050 BC (?) 4 | C161: -3050 | D161: 1 | E161: 0 | F161: 0 | K161: 1010.514891 | L161: 1013.697453 | M161: 0 | N161: 0.3333333333 | O161: 1.888888889 | P161: -1.555555556 | Q161: -1.888888889 | S161: 0.9073632948 | T161: 15.14 | Y161: -6882.237988 | Z161: -6872.690303 | AA161: 2 | AB161: 0.6666666667 | AC161: 0.8888888889 | AD161: -0.2222222222 | AE161: 1.111111111 | AG161: -0.9605650548 | AH161: -36.35 | AM161: -829.0057627 | AN161: -800.362708 | AO161: 2 | AP161: 0.6666666667 | AQ161: 2.666666667 | AR161: -2 | AS161: -0.6666666667 | AU161: -0.5350150403 | AV161: -168.5
B162: SETE CIDADES Azores T 3050 BC (?) 4 | C162: -3050 | D162: 1 | E162: 0 | F162: 0 | K162: 1016.880015 | L162: 1020.062576 | M162: 1 | N162: 0.3333333333 | O162: 1.888888889 | P162: -1.555555556 | Q162: -0.8888888889 | S162: 0.965274645 | T162: 15.14 | Y162: -6863.142618 | Z162: -6853.594933 | AA162: 0 | AB162: 0.6666666667 | AC162: 0.4444444444 | AD162: 0.2222222222 | AE162: -0.4444444444 | AG162: -0.9145660538 | AH162: -36.35 | AM162: -771.7196533 | AN162: -743.0765986 | AO162: 0 | AP162: 1.333333333 | AQ162: 2.222222222 | AR162: -0.8888888889 | AS162: -2.222222222 | AU162: -0.9528996114 | AV162: -168.5
B163: POPOCATEPETL México C 3010 BC ± 200 years P | C163: -3010 | D163: 1 | E163: 0 | F163: 0 | K163: 1023.245138 | L163: 1026.4277 | M163: 0 | N163: 2 | O163: 2 | P163: 0 | Q163: -2 | S163: 0.571523261 | T163: 15.14 | Y163: -6844.047248 | Z163: -6834.499563 | AA163: 0 | AB163: 0 | AC163: 0.4444444444 | AD163: -0.4444444444 | AE163: -0.4444444444 | AG163: -0.440631432 | AH163: -36.35 | AM163: -714.4335439 | AN163: -685.7904892 | AO163: 2 | AP163: 0.6666666667 | AQ163: 1.777777778 | AR163: -1.111111111 | AS163: 0.2222222222 | AU163: -0.924911864 | AV163: -168.5
B164: MEIDOB VOLC FIELD Northern Africa T 3000 BC (?) P | C164: -3000 | D164: 1 | E164: 0 | F164: 0 | K164: 1029.610261 | L164: 1032.792823 | M164: 5 | N164: 2 | O164: 0.8888888889 | P164: 1.111111111 | Q164: 4.111111111 | S164: -0.08965020859 | T164: 15.14 | Y164: -6824.951878 | Z164: -6815.404193 | AA164: 0 | AB164: 0.6666666667 | AC164: 0.4444444444 | AD164: 0.2222222222 | AE164: -0.4444444444 | AG164: 0.2394795339 | AH164: -36.35 | AM164: -657.1474345 | AN164: -628.5043798 | AO164: 0 | AP164: 2 | AQ164: 1.333333333 | AR164: 0.6666666667 | AS164: -1.333333333 | AU164: -0.4641475762 | AV164: -168.5
B165: KSUDACH Kamchatka Peninsula (Russia) T 3000 BC (?) 4 | C165: -3000 | D165: 1 | E165: 0 | F165: 0 | K165: 1035.975385 | L165: 1039.157946 | M165: 1 | N165: 2 | O165: 0.8888888889 | P165: 1.111111111 | Q165: 0.1111111111 | S165: -0.7088753493 | T165: 15.14 | Y165: -6805.856508 | Z165: -6796.308823 | AA165: 2 | AB165: 0.6666666667 | AC165: 0.4444444444 | AD165: 0.2222222222 | AE165: 1.555555556 | AG165: 0.8075353644 | AH165: -36.35 | AM165: -599.8613251 | AN165: -571.2182704 | AO165: 4 | AP165: 2 | AQ165: 1.555555556 | AR165: 0.4444444444 | AS165: 2.444444444 | AU165: 0.2137965209 | AV165: -168.5
B166: AGUA DE PAU Azores C 2990 BC (?) 5 | C166: -2990 | D166: 2 | E166: 2 | F166: 0 | K166: 1042.340508 | L166: 1045.523069 | M166: 0 | N166: 0.6666666667 | O166: 0.8888888889 | P166: -0.2222222222 | Q166: -0.8888888889 | S166: -0.9964098357 | T166: 15.14 | Y166: -6786.761139 | Z166: -6777.213454 | AA166: 0 | AB166: 0.6666666667 | AC166: 0.4444444444 | AD166: 0.2222222222 | AE166: -0.4444444444 | AG166: 0.9977364231 | AH166: -36.35 | AM166: -542.5752158 | AN166: -513.9321611 | AO166: 2 | AP166: 2 | AQ166: 1.333333333 | AR166: 0.6666666667 | AS166: 0.6666666667 | AU166: 0.7917028498 | AV166: -168.5
B167: SAKURA-JIMA Kyushu (Japan) C 2900 BC (?) 4 | C167: -2900 | D167: 1 | E167: 0 | F167: 0 | K167: 1048.705631 | L167: 1051.888193 | M167: 1 | N167: 0.3333333333 | O167: 1.333333333 | P167: -1 | Q167: -0.3333333333 | S167: -0.8177130862 | T167: 15.14 | Y167: -6767.665769 | Z167: -6758.118084 | AA167: 0 | AB167: 0 | AC167: 0.4444444444 | AD167: -0.4444444444 | AE167: -0.4444444444 | AG167: 0.7210855209 | AH167: -36.35 | AM167: -485.2891064 | AN167: -456.6460517 | AO167: 0 | AP167: 1.333333333 | AQ167: 2 | AR167: -0.6666666667 | AS167: -2 | AU167: 0.9991626165 | AV167: -168.5
B168: TAUPO New Zealand G 2900 BC (?) 4 | C168: -2900 | D168: 1 | E168: 0 | F168: 0 | K168: 1055.070754 | L168: 1058.253316 | M168: 0 | N168: 0.3333333333 | O168: 1.333333333 | P168: -1 | Q168: -1.333333333 | S168: -0.2563992958 | T168: 15.14 | Y168: -6748.570399 | Z168: -6739.022714 | AA168: 0 | AB168: 0 | AC168: 0.4444444444 | AD168: -0.4444444444 | AE168: -0.4444444444 | AG168: 0.1070306894 | AH168: -36.35 | AM168: -428.002997 | AN168: -399.3599423 | AO168: 2 | AP168: 1.333333333 | AQ168: 2 | AR168: -0.6666666667 | AS168: 0 | AU168: 0.7391030905 | AV168: -168.5
B169: MIYAKE-JIMA Izu Islands (Japan) T 2900 BC ± 500 years 4 | C169: -2900 | D169: 1 | E169: 0 | F169: 0 | K169: 1061.435878 | L169: 1064.618439 | M169: 0 | N169: 0 | O169: 0.7777777778 | P169: -0.7777777778 | Q169: -0.7777777778 | S169: 0.4248865747 | T169: 15.14 | Y169: -6729.475029 | Z169: -6719.927344 | AA169: 0 | AB169: 0.6666666667 | AC169: 0.8888888889 | AD169: -0.2222222222 | AE169: -0.8888888889 | AG169: -0.5571049911 | AH169: -36.35 | AM169: -370.7168876 | AN169: -342.0738329 | AO169: 2 | AP169: 1.333333333 | AQ169: 2.666666667 | AR169: -1.333333333 | AS169: -0.6666666667 | AU169: 0.1332090142 | AV169: -168.5
B170: ILYINSKY Kamchatka Peninsula (Russia) C 2850 BC (?) 5 | C170: -2850 | D170: 2 | E170: 2 | F170: 0 | K170: 1067.801001 | L170: 1070.983562 | M170: 0 | N170: 1.666666667 | O170: 0.6666666667 | P170: 1 | Q170: -0.6666666667 | S170: 0.9073632948 | T170: 15.14 | Y170: -6710.379659 | Z170: -6700.831975 | AA170: 2 | AB170: 0.6666666667 | AC170: 0.6666666667 | AD170: 0 | AE170: 1.333333333 | AG170: -0.9605650548 | AH170: -36.35 | AM170: -313.4307782 | AN170: -284.7877235 | AO170: 0 | AP170: 2.666666667 | AQ170: 2.666666667 | AR170: 0 | AS170: -2.666666667 | AU170: -0.5350150403 | AV170: -168.5
B171: ARENAL Costa Rica T 2800 BC (?) 4 | C171: -2800 | D171: 1 | E171: 0 | F171: 0 | K171: 1074.166124 | L171: 1077.348686 | M171: 5 | N171: 1.666666667 | O171: 1 | P171: 0.6666666667 | Q171: 4 | S171: 0.965274645 | T171: 15.14 | Y171: -6691.28429 | Z171: -6681.736605 | AA171: 0 | AB171: 0.6666666667 | AC171: 1.111111111 | AD171: -0.4444444444 | AE171: -1.111111111 | AG171: -0.9145660538 | AH171: -36.35 | AM171: -256.1446688 | AN171: -227.5016141 | AO171: 6 | AP171: 2.666666667 | AQ171: 2.444444444 | AR171: 0.2222222222 | AS171: 3.555555556 | AU171: -0.9528996114 | AV171: -168.5
B172: KIKHPINYCH Kamchatka Peninsula (Russia) G 2780 BC ± 25 years 4 | C172: -2780 | D172: 1 | E172: 0 | F172: 0 | K172: 1080.531247 | L172: 1083.713809 | M172: 0 | N172: 1.666666667 | O172: 1.111111111 | P172: 0.5555555556 | Q172: -1.111111111 | S172: 0.571523261 | T172: 15.14 | Y172: -6672.18892 | Z172: -6662.641235 | AA172: 0 | AB172: 1.333333333 | AC172: 1.111111111 | AD172: 0.2222222222 | AE172: -1.111111111 | AG172: -0.440631432 | AH172: -36.35 | AM172: -198.8585594 | AN172: -170.2155048 | AO172: 2 | AP172: 4.666666667 | AQ172: 3.777777778 | AR172: 0.8888888889 | AS172: -1.777777778 | AU172: -0.924911864 | AV172: -168.5
B173: MYOKO Honshu (Japan) G 2750 BC ± 100 years 4 | C173: -2750 | D173: 1 | E173: 0 | F173: 0 | K173: 1086.896371 | L173: 1090.078932 | M173: 0 | N173: 0 | O173: 1.111111111 | P173: -1.111111111 | Q173: -1.111111111 | S173: -0.08965020859 | T173: 15.14 | Y173: -6653.09355 | Z173: -6643.545865 | AA173: 4 | AB173: 1.333333333 | AC173: 1.111111111 | AD173: 0.2222222222 | AE173: 2.888888889 | AG173: 0.2394795339 | AH173: -36.35 | AM173: -141.5724501 | AN173: -112.9293954 | AO173: 6 | AP173: 4 | AQ173: 3.555555556 | AR173: 0.4444444444 | AS173: 2.444444444 | AU173: -0.4641475762 | AV173: -168.5
B174: FOURNAISE, PITON DE LA Western Indian Ocean G 2700 BC (?) 5? | C174: -2700 | D174: 2 | E174: 2 | F174: 0 | K174: 1093.261494 | L174: 1096.444056 | M174: 0 | N174: 1 | O174: 1.111111111 | P174: -0.1111111111 | Q174: -1.111111111 | S174: -0.7088753493 | T174: 15.14 | Y174: -6633.99818 | Z174: -6624.450495 | AA174: 0 | AB174: 2.666666667 | AC174: 1.111111111 | AD174: 1.555555556 | AE174: -1.111111111 | AG174: 0.8075353644 | AH174: -36.35 | AM174: -84.28634068 | AN174: -55.64328599 | AO174: 4 | AP174: 3.333333333 | AQ174: 3.555555556 | AR174: -0.2222222222 | AS174: 0.4444444444 | AU174: 0.2137965209 | AV174: -168.5
B175: IBUSUKI VOLC FIELD Kyushu (Japan) C 2690 BC ± 75 years 5 | C175: -2690 | D175: 2 | E175: 2 | F175: 0 | G175: -2691 | H175: ** | K175: 1099.626617 | L175: 1102.809179 | M175: 3 | N175: 1.666666667 | O175: 1.333333333 | P175: 0.3333333333 | Q175: 1.666666667 | S175: -0.9964098357 | T175: 15.14 | Y175: -6614.90281 | Z175: -6605.355126 | AA175: 4 | AB175: 1.333333333 | AC175: 0.8888888889 | AD175: 0.4444444444 | AE175: 3.111111111 | AG175: 0.9977364231 | AH175: -36.35 | AM175: -27.0002313 | AN175: 1.642823394 | AO175: 0 | AP175: 5.333333333 | AQ175: 4.444444444 | AR175: 0.8888888889 | AS175: -4.444444444 | AU175: 0.7917028498 | AV175: -168.5
B176: PELEE West Indies G 2660 BC ± 200 years 4? | C176: -2660 | D176: 1 | E176: 0 | F176: 0 | K176: 1105.99174 | L176: 1109.174302 | M176: 2 | N176: 1.666666667 | O176: 0.7777777778 | P176: 0.8888888889 | Q176: 1.222222222 | S176: -0.8177130862 | T176: 15.14 | Y176: -6595.807441 | Z176: -6586.259756 | AA176: 0 | AB176: 1.333333333 | AC176: 0.8888888889 | AD176: 0.4444444444 | AE176: -0.8888888889 | AG176: 0.7210855209 | AH176: -36.35 | AM176: 30.28587809 | AN176: 58.92893278 | AO176: 12 | AP176: 4 | AQ176: 4 | AR176: 0 | AS176: 8 | AU176: 0.9991626165 | AV176: -168.5
B177: TOLMACHEV DOL Kamchatka Peninsula (Russia) C 2650 BC (?) 4+ | C177: -2650 | D177: 1 | E177: 0 | F177: 0 | K177: 1112.356864 | L177: 1115.539425 | M177: 0 | N177: 0.6666666667 | O177: 0.7777777778 | P177: -0.1111111111 | Q177: -0.7777777778 | S177: -0.2563992958 | T177: 15.14 | Y177: -6576.712071 | Z177: -6567.164386 | AA177: 0 | AB177: 0 | AC177: 0.8888888889 | AD177: -0.8888888889 | AE177: -0.8888888889 | AG177: 0.1070306894 | AH177: -36.35 | AM177: 87.57198747 | AN177: 116.2150422 | AO177: 0 | AP177: 4.666666667 | AQ177: 4 | AR177: 0.6666666667 | AS177: -4 | AU177: 0.7391030905 | AV177: -168.5
B178: KIRISHIMA Kyushu (Japan) C 2650 BC (?) 4 | C178: -2650 | D178: 1 | E178: 0 | F178: 0 | K178: 1118.721987 | L178: 1121.904549 | M178: 0 | N178: 0.6666666667 | O178: 0.7777777778 | P178: -0.1111111111 | Q178: -0.7777777778 | S178: 0.4248865747 | T178: 15.14 | Y178: -6557.616701 | Z178: -6548.069016 | AA178: 0 | AB178: 0 | AC178: 0.4444444444 | AD178: -0.4444444444 | AE178: -0.4444444444 | AG178: -0.5571049911 | AH178: -36.35 | AM178: 144.8580969 | AN178: 173.5011515 | AO178: 2 | AP178: 3.333333333 | AQ178: 3.333333333 | AR178: 0 | AS178: -1.333333333 | AU178: 0.1332090142 | AV178: -168.5
B179: COTOPAXI Ecuador C 2640 BC ± 200 years 5 | C179: -2640 | D179: 2 | E179: 2 | F179: 0 | K179: 1125.08711 | L179: 1128.269672 | M179: 2 | N179: 0.6666666667 | O179: 0.7777777778 | P179: -0.1111111111 | Q179: 1.222222222 | S179: 0.9073632948 | T179: 15.14 | Y179: -6538.521331 | Z179: -6528.973646 | AA179: 0 | AB179: 0 | AC179: 0.4444444444 | AD179: -0.4444444444 | AE179: -0.4444444444 | AG179: -0.9605650548 | AH179: -36.35 | AM179: 202.1442062 | AN179: 230.7872609 | AO179: 8 | AP179: 4 | AQ179: 3.555555556 | AR179: 0.4444444444 | AS179: 4.444444444 | AU179: -0.5350150403 | AV179: -168.5
B180: SHIVELUCH Kamchatka Peninsula (Russia) G 2620 BC ± 300 years 5 | C180: -2620 | D180: 2 | E180: 2 | F180: 0 | K180: 1131.452234 | L180: 1134.634795 | M180: 0 | N180: 0.6666666667 | O180: 0.5555555556 | P180: 0.1111111111 | Q180: -0.5555555556 | S180: 0.965274645 | T180: 15.14 | Y180: -6519.425961 | Z180: -6509.878277 | AA180: 0 | AB180: 0 | AC180: 0.8888888889 | AD180: -0.8888888889 | AE180: -0.8888888889 | AG180: -0.9145660538 | AH180: -36.35 | AM180: 259.4303156 | AN180: 288.0733703 | AO180: 2 | AP180: 4 | AQ180: 4 | AR180: 0 | AS180: -2 | AU180: -0.9528996114 | AV180: -168.5
B181: TAUPO New Zealand G 2600 BC (?) 4 | C181: -2600 | D181: 1 | E181: 0 | F181: 0 | K181: 1137.817357 | L181: 1140.999918 | M181: 0 | N181: 0 | O181: 0.3333333333 | P181: -0.3333333333 | Q181: -0.3333333333 | S181: 0.571523261 | T181: 15.14 | Y181: -6500.330592 | Z181: -6490.782907 | AA181: 0 | AB181: 0 | AC181: 0.8888888889 | AD181: -0.8888888889 | AE181: -0.8888888889 | AG181: -0.440631432 | AH181: -36.35 | AM181: 316.716425 | AN181: 345.3594797 | AO181: 2 | AP181: 1.333333333 | AQ181: 3.111111111 | AR181: -1.777777778 | AS181: -1.111111111 | AU181: -0.924911864 | AV181: -168.5
B182: APOYEQUE Nicaragua T 2550 BC ± 1000 years 5 | C182: -2550 | D182: 2 | E182: 2 | F182: 0 | K182: 1144.18248 | L182: 1147.365042 | M182: 0 | N182: 0 | O182: 0.4444444444 | P182: -0.4444444444 | Q182: -0.4444444444 | S182: -0.08965020859 | T182: 15.14 | Y182: -6481.235222 | Z182: -6471.687537 | AA182: 0 | AB182: 0 | AC182: 1.111111111 | AD182: -1.111111111 | AE182: -1.111111111 | AG182: 0.2394795339 | AH182: -36.35 | AM182: 374.0025344 | AN182: 402.6455891 | AO182: 0 | AP182: 2.666666667 | AQ182: 3.555555556 | AR182: -0.8888888889 | AS182: -3.555555556 | AU182: -0.4641475762 | AV182: -168.5
B183: ASAMA Honshu (Japan) A 2550 BC ± 500 years 4 | C183: -2550 | D183: 1 | E183: 0 | F183: 0 | K183: 1150.547603 | L183: 1153.730165 | M183: 0 | N183: 0.3333333333 | O183: 0.4444444444 | P183: -0.1111111111 | Q183: -0.4444444444 | S183: -0.7088753493 | T183: 15.14 | Y183: -6462.139852 | Z183: -6452.592167 | AA183: 0 | AB183: 2.666666667 | AC183: 1.111111111 | AD183: 1.555555556 | AE183: -1.111111111 | AG183: 0.8075353644 | AH183: -36.35 | AM183: 431.2886438 | AN183: 459.9316985 | AO183: 6 | AP183: 3.333333333 | AQ183: 4.444444444 | AR183: -1.111111111 | AS183: 1.555555556 | AU183: 0.2137965209 | AV183: -168.5
B184: DONA JUANA Colombia C 2550 BC ± 150 years C | C184: -2550 | D184: 1 | E184: 0 | F184: 0 | K184: 1156.912727 | L184: 1160.095288 | M184: 1 | N184: 0.3333333333 | O184: 0.3333333333 | P184: 0 | Q184: 0.6666666667 | S184: -0.9964098357 | T184: 15.14 | Y184: -6443.044482 | Z184: -6433.496797 | AA184: 8 | AB184: 2.666666667 | AC184: 1.111111111 | AD184: 1.555555556 | AE184: 6.888888889 | AG184: 0.9977364231 | AH184: -36.35 | AM184: 488.5747532 | AN184: 517.2178078 | AO184: 4 | AP184: 4.666666667 | AQ184: 3.555555556 | AR184: 1.111111111 | AS184: 0.4444444444 | AU184: 0.7917028498 | AV184: -168.5
B185: AVACHINSKY Kamchatka Peninsula (Russia) G 2530 BC ± 300 years 4 | C185: -2530 | D185: 1 | E185: 0 | F185: 0 | K185: 1163.27785 | L185: 1166.460411 | M185: 0 | N185: 0.6666666667 | O185: 0.4444444444 | P185: 0.2222222222 | Q185: -0.4444444444 | S185: -0.8177130862 | T185: 15.14 | Y185: -6423.949112 | Z185: -6414.401428 | AA185: 0 | AB185: 3.333333333 | AC185: 1.111111111 | AD185: 2.222222222 | AE185: -1.111111111 | AG185: 0.7210855209 | AH185: -36.35 | AM185: 545.8608625 | AN185: 574.5039172 | AO185: 4 | AP185: 4 | AQ185: 4 | AR185: 0 | AS185: 0 | AU185: 0.9991626165 | AV185: -168.5
B186: CAMPI FLEGREI Italy T 2500 BC (?) 4 | C186: -2500 | D186: 1 | E186: 0 | F186: 0 | K186: 1169.642973 | L186: 1172.825535 | M186: 1 | N186: 0.3333333333 | O186: 0.5555555556 | P186: -0.2222222222 | Q186: 0.4444444444 | S186: -0.2563992958 | T186: 15.14 | Y186: -6404.853743 | Z186: -6395.306058 | AA186: 2 | AB186: 0.6666666667 | AC186: 1.111111111 | AD186: -0.4444444444 | AE186: 0.8888888889 | AG186: 0.1070306894 | AH186: -36.35 | AM186: 603.1469719 | AN186: 631.7900266 | AO186: 4 | AP186: 6 | AQ186: 4 | AR186: 2 | AS186: 0 | AU186: 0.7391030905 | AV186: -168.5
B187: ATACAZO Ecuador C 2490 BC ± 40 years 5 | C187: -2490 | D187: 2 | E187: 2 | F187: 0 | K187: 1176.008096 | L187: 1179.190658 | M187: 0 | N187: 0.6666666667 | O187: 0.5555555556 | P187: 0.1111111111 | Q187: -0.5555555556 | S187: 0.4248865747 | T187: 15.14 | Y187: -6385.758373 | Z187: -6376.210688 | AA187: 0 | AB187: 0.6666666667 | AC187: 1.111111111 | AD187: -0.4444444444 | AE187: -1.111111111 | AG187: -0.5571049911 | AH187: -36.35 | AM187: 660.4330813 | AN187: 689.076136 | AO187: 10 | AP187: 4.666666667 | AQ187: 4.666666667 | AR187: 0 | AS187: 5.333333333 | AU187: 0.1332090142 | AV187: -168.5
B188: HACHIJO-JIMA Izu Islands (Japan) T 2450 BC ± 500 years 4 | C188: -2450 | D188: 1 | E188: 0 | F188: 0 | K188: 1182.37322 | L188: 1185.555781 | M188: 1 | N188: 0.6666666667 | O188: 0.7777777778 | P188: -0.1111111111 | Q188: 0.2222222222 | S188: 0.9073632948 | T188: 15.14 | Y188: -6366.663003 | Z188: -6357.115318 | AA188: 0 | AB188: 0 | AC188: 1.111111111 | AD188: -1.111111111 | AE188: -1.111111111 | AG188: -0.9605650548 | AH188: -36.35 | AM188: 717.7191907 | AN188: 746.3622454 | AO188: 0 | AP188: 5.333333333 | AQ188: 4.888888889 | AR188: 0.4444444444 | AS188: -4.888888889 | AU188: -0.5350150403 | AV188: -168.5
B189: KUJU Kyushu (Japan) G 2440 BC ± 300 years 4 | C189: -2440 | D189: 1 | E189: 0 | F189: 0 | K189: 1188.738343 | L189: 1191.920905 | M189: 1 | N189: 1 | O189: 0.6666666667 | P189: 0.3333333333 | Q189: 0.3333333333 | S189: 0.965274645 | T189: 15.14 | Y189: -6347.567633 | Z189: -6338.019948 | AA189: 0 | AB189: 0 | AC189: 0.2222222222 | AD189: -0.2222222222 | AE189: -0.2222222222 | AG189: -0.9145660538 | AH189: -36.35 | AM189: 775.0053001 | AN189: 803.6483548 | AO189: 6 | AP189: 2.666666667 | AQ189: 4.888888889 | AR189: -2.222222222 | AS189: 1.111111111 | AU189: -0.9528996114 | AV189: -168.5
B190: PELEE West Indies C 2430 BC (?) P | C190: -2430 | D190: 1 | E190: 0 | F190: 0 | K190: 1195.103466 | L190: 1198.286028 | M190: 1 | N190: 0.6666666667 | O190: 0.7777777778 | P190: -0.1111111111 | Q190: 0.2222222222 | S190: 0.571523261 | T190: 15.14 | Y190: -6328.472264 | Z190: -6318.924579 | AA190: 0 | AB190: 0 | AC190: 0.2222222222 | AD190: -0.2222222222 | AE190: -0.2222222222 | AG190: -0.440631432 | AH190: -36.35 | AM190: 832.2914095 | AN190: 860.9344642 | AO190: 2 | AP190: 4.666666667 | AQ190: 5.333333333 | AR190: -0.6666666667 | AS190: -3.333333333 | AU190: -0.924911864 | AV190: -168.5
B191: VESUVIUS Italy G 2420 BC ± 40 years 5 | C191: -2420 | D191: 2 | E191: 2 | F191: 0 | K191: 1201.468589 | L191: 1204.651151 | M191: 0 | N191: 1 | O191: 0.6666666667 | P191: 0.3333333333 | Q191: -0.6666666667 | S191: -0.08965020859 | T191: 15.14 | Y191: -6309.376894 | Z191: -6299.829209 | AA191: 0 | AB191: 0 | AC191: 0 | AD191: 0 | AE191: 0 | AG191: 0.2394795339 | AH191: -36.35 | AM191: 889.5775188 | AN191: 918.2205735 | AO191: 6 | AP191: 5.333333333 | AQ191: 5.111111111 | AR191: 0.2222222222 | AS191: 0.8888888889 | AU191: -0.4641475762 | AV191: -168.5
B192: RUNGWE Eastern Africa G 2400 BC (?) P | C192: -2400 | D192: 1 | E192: 0 | F192: 0 | K192: 1207.833713 | L192: 1211.016274 | M192: 2 | N192: 0.6666666667 | O192: 0.7777777778 | P192: -0.1111111111 | Q192: 1.222222222 | S192: -0.7088753493 | T192: 15.14 | Y192: -6290.281524 | Z192: -6280.733839 | AA192: 0 | AB192: 0 | AC192: 0.4444444444 | AD192: -0.4444444444 | AE192: -0.4444444444 | AG192: 0.8075353644 | AH192: -36.35 | AM192: 946.8636282 | AN192: 975.5066829 | AO192: 8 | AP192: 6 | AQ192: 4 | AR192: 2 | AS192: 4 | AU192: 0.2137965209 | AV192: -168.5
B193: COLIMA México C 2370 BC ± 150 years 4? | C193: -2370 | D193: 1 | E193: 0 | F193: 0 | K193: 1214.198836 | L193: 1217.381398 | M193: 0 | N193: 1 | O193: 0.7777777778 | P193: 0.2222222222 | Q193: -0.7777777778 | S193: -0.9964098357 | T193: 15.14 | Y193: -6271.186154 | Z193: -6261.638469 | AA193: 0 | AB193: 0 | AC193: 0.4444444444 | AD193: -0.4444444444 | AE193: -0.4444444444 | AG193: 0.9977364231 | AH193: -36.35 | AM193: 1004.149738 | AN193: 1032.792792 | AO193: 4 | AP193: 6.666666667 | AQ193: 4.666666667 | AR193: 2 | AS193: -0.6666666667 | AU193: 0.7917028498 | AV193: -168.5
B194: ST. HELENS Washington (USA) G 2340 BC (?) 5 | C194: -2340 | D194: 2 | E194: 2 | F194: 0 | K194: 1220.563959 | L194: 1223.746521 | M194: =SUMIFS(MagAll,Age,">"&K194,Age,"<="&K195) -> 1 | N194: 0.3333333333 | O194: 0.6666666667 | P194: -0.3333333333 | Q194: 0.3333333333 | S194: -0.8177130862 | T194: 15.14 | Y194: -6252.090784 | Z194: -6242.543099 | AA194: =SUMIFS(Mag_5,Age,">"&Y194,Age,"<="&Y195) -> 0 | AB194: 0 | AC194: 0.4444444444 | AD194: -0.4444444444 | AE194: -0.4444444444 | AG194: 0.7210855209 | AH194: -36.35 | AM194: 1061.435847 | AN194: 1090.078902 | AO194: =SUMIFS(Mag_5,Age,">"&AM194,Age,"<="&AM195) -> 8 | AP194: 4.666666667 | AQ194: 4.222222222 | AR194: 0.4444444444 | AS194: 3.777777778 | AU194: 0.9991626165 | AV194: -168.5
B195: BURNEY, MONTE Southern Chile G 2320 BC ± 100 years 5 | C195: -2320 | D195: 2 | E195: =IF(D195>1, D195,"0") -> 2 | F195: 0 | K195: 1226.929082 | L195: 1230.111644 | M195: 0 | N195: 0.6666666667 | O195: 0.5555555556 | P195: 0.1111111111 | Q195: -0.5555555556 | S195: -0.2563992958 | T195: 15.14 | Y195: -6232.995415 | Z195: -6223.44773 | AA195: 0 | AB195: 1.333333333 | AC195: 0.4444444444 | AD195: 0.8888888889 | AE195: -0.4444444444 | AG195: 0.1070306894 | AH195: -36.35 | AM195: 1118.721956 | AN195: 1147.365011 | AO195: 2 | AP195: 3.333333333 | AQ195: 4.222222222 | AR195: -0.8888888889 | AS195: -2.222222222 | AU195: 0.7391030905 | AV195: -168.5
B196: HEKLA Southern Iceland G 2310 BC ± 20 years 5 | C196: -2310 | D196: 2 | E196: 2 | F196: 0 | K196: 1233.294206 | L196: 1236.476767 | M196: 1 | N196: 0.6666666667 | O196: 0.7777777778 | P196: -0.1111111111 | Q196: 0.2222222222 | S196: 0.4248865747 | T196: =T195 -> 15.14 | Y196: -6213.900045 | Z196: -6204.35236 | AA196: 4 | AB196: 1.333333333 | AC196: 0.4444444444 | AD196: 0.8888888889 | AE196: 3.555555556 | AG196: -0.5571049911 | AH196: -36.35 | AM196: 1176.008066 | AN196: 1204.65112 | AO196: 0 | AP196: 2.666666667 | AQ196: 3.777777778 | AR196: -1.111111111 | AS196: -3.777777778 | AU196: 0.1332090142 | AV196: -168.5
B197: ORIZABA, PICO DE México C 2300 BC ± 75 years 4 | C197: -2300 | D197: 1 | E197: 0 | F197: 0 | K197: 1239.659329 | L197: 1242.841891 | M197: 1 | N197: 0.6666666667 | O197: 0.5555555556 | P197: 0.1111111111 | Q197: 0.4444444444 | S197: 0.9073632948 | T197: 15.14 | Y197: -6194.804675 | Z197: -6185.25699 | AA197: 0 | AB197: 1.333333333 | AC197: 0.6666666667 | AD197: 0.6666666667 | AE197: -0.6666666667 | AG197: -0.9605650548 | AH197: -36.35 | AM197: 1233.294175 | AN197: 1261.93723 | AO197: 6 | AP197: 2.666666667 | AQ197: 4 | AR197: -1.333333333 | AS197: 2 | AU197: -0.5350150403 | AV197: -168.5
B198: ARENAL Costa Rica T 2250 BC (?) 4 | C198: -2250 | D198: 1 | E198: 0 | F198: 0 | K198: 1246.024452 | L198: 1249.207014 | M198: 0 | N198: 0.3333333333 | O198: 0.5555555556 | P198: -0.2222222222 | Q198: -0.5555555556 | S198: 0.965274645 | T198: 15.14 | Y198: -6175.709305 | Z198: -6166.16162 | AA198: 0 | AB198: 0 | AC198: 0.6666666667 | AD198: -0.6666666667 | AE198: -0.6666666667 | AG198: -0.9145660538 | AH198: -36.35 | AM198: 1290.580285 | AN198: 1319.223339 | AO198: 2 | AP198: 3.333333333 | AQ198: 3.777777778 | AR198: -0.4444444444 | AS198: -1.777777778 | AU198: -0.9528996114 | AV198: -168.5
B199: GALUNGGUNG Java (Indonesia) C 2250 BC ± 150 years 5? | C199: -2250 | D199: 2 | E199: 2 | F199: 0 | K199: 1252.389576 | L199: 1255.572137 | M199: 0 | N199: 0.6666666667 | O199: 0.8888888889 | P199: -0.2222222222 | Q199: -0.8888888889 | S199: 0.571523261 | T199: 15.14 | Y199: -6156.613935 | Z199: -6147.06625 | AA199: 0 | AB199: 0 | AC199: 0.6666666667 | AD199: -0.6666666667 | AE199: -0.6666666667 | AG199: -0.440631432 | AH199: -36.35 | AM199: 1347.866394 | AN199: 1376.509449 | AO199: 2 | AP199: 2 | AQ199: 4.888888889 | AR199: -2.888888889 | AS199: -2.888888889 | AU199: -0.924911864 | AV199: -168.5
B200: KARYMSKY Kamchatka Peninsula (Russia) G 2250 BC (?) 4 | C200: -2250 | D200: 1 | E200: 0 | F200: 0 | K200: 1258.754699 | L200: 1261.93726 | M200: 2 | N200: 0.6666666667 | O200: 1 | P200: -0.3333333333 | Q200: 1 | S200: -0.08965020859 | T200: 15.14 | Y200: -6137.518566 | Z200: -6127.970881 | AA200: 0 | AB200: 0.6666666667 | AC200: 1.555555556 | AD200: -0.8888888889 | AE200: -1.555555556 | AG200: 0.2394795339 | AH200: -36.35 | AM200: 1405.152503 | AN200: 1433.795558 | AO200: 2 | AP200: 4.666666667 | AQ200: 6.444444444 | AR200: -1.777777778 | AS200: -4.444444444 | AU200: -0.4641475762 | AV200: -168.5
... 515 more rows

Sheet Documentation
A2: http://www.volcano.si.edu/world/largeeruptions.cfm
A4: Smithsonian Institute.
A5: Global Volcanism Program.
A6: Large Holocene Eruptions

Sheet Statistics
A3: Table E33.1.1 – Information about the Volcanic Explosivity Time-Series.
A4: Description | B4: Details for this Time-Series
A6: Data Source
A7: Brief description of the data | B7: Volcanic Explosivity Index from the Smithsonian Institute.
A8: Abbreviated references | B8: Smithsonian: VEI, 2010
A9: Details about the data source | B9: http://www.volcano.si.edu/world/largeeruptions.cfm
A11: Original Time-Series
A12: Beginning time | B12: 9650 BC
A13: Ending time | B13: Present
A14: No. of samples (observations) | B14: 714
A15: Estimated ages: Mean error | B15: 25 years
A16: Estimated ages: Minimum error | B16: No error
A17: Estimated ages: Maximum error | B17: 1000 years
B20: Table E33.2.1 – Volcanic Explosivity Index: Data Preparation.
B21: Preparation Summary | C21: Test # 1 | D21: Test # 2 | E21: Test # 3
B23: Data Preparation Steps | C23: 57.3-yr | D23: 172-yr | E23: 516-yr
B25: Bin Sizes for Histogram | C25: 6.37-yr | D25: 516-yr | E25: 516-yr
B26: Detrending Method | C26: BP filter | D26: BP filter | E26: BP filter
B27: Band-Pass Filter Used | C27: 3/9 cell | D27: 3/9 cell | E27: 3/9 cell
B28: Moving Avr. Indentation | C28: 4 cell | D28: 4 cell | E28: 4 cell
B29: Empty Bins Interpolated | C29: 0 | D29: 0 | E29: 0
B30: Beginning Time of Test | C30: 1319 | D30: 6873 BC | E30: 6873 BC
B31: Ending Time of Test | C31: 1981 | D31: 1930 | E31: 1778
B33: Basic Time-Series Stats | C33: 57.3-yr | D33: 172-yr | E33: 516-yr
B35: Number of observations | C35: 109 | D35: 466 | E35: 156
B36: Approximate # of cycles | C36: 12 | D36: 52 | E36: 17
B38: Minimum | C38: -2.111 | D38: -2.889 | E38: -2.889
B39: 1st Quartile | C39: -0.556 | D39: -0.444 | E39: -0.889
B40: 2nd Quartile (Median) | C40: -0.111 | D40: -0.222 | E40: 0
B41: 3rd Quartile | C41: 0.444 | D41: 0.444 | E41: 0.889
B42: Maximum | C42: 3.333 | D42: 2.889 | E42: 3.778
B43: Average (Mean) | C43: -0.006 | D43: 0.002 | E43: 0.004
B45: Standard Error of Mean | C45: 0.0904 | D45: 0.0413 | E45: 0.10582
B46: Lower C.L. of the Mean | C46: -0.18477 | D46: -0.07876 | E46: -0.20534
B47: Upper C.L. of the Mean | C47: 0.17362 | D47: 0.08357 | E47: 0.21271
B48: Variance | C48: 0.89084 | D48: 0.79499 | E48: 1.74675
B49: Standard Deviation | C49: 0.94384 | D49: 0.89162 | E49: 1.32165
B51: Skewness | C51: 0.53 | D51: 0.4 | E51: 0.35
B52: Kurtosis | C52: 0.74 | D52: 0.71 | E52: 0
B55: Table E33.3.1 – Results from Volcanic Explosivity Tests.
B56: Preparation Summary | C56: Test # 1 | D56: Test # 2 | E56: Test # 3
B58: Least Squares Tests TestPreparation Steps | C58: 57.3-yr | D58: 172-yr | E58: 516-yr
B60: Stat. Signif. from p-value | C60: 0.9999 | D60: 0.999 | E60: 0.999
B61: Practical Signif. (Adj. R2) | C61: 0.125 | D61: 0.018 | E61: 0.055
B63: Lomb-Scargle Period’gm
B65: Estimated Wavelength | C65: 56.61-yr | D65: 152.24-yr | E65: 420.98-yr
B66: p-value | C66: 0.00043 | D66: 0 | E66: 0
B67: Secondary Wavelength | C67: --- | D67: 171.12-yr | E67: 512.89-yr
B69: Smoothed Periodogram
B71: Estimated Wavelength | C71: 54.64-yr | D71: 133.48-yr | E71: 433.37-yr
B72: Confidence Level | C72: 0.99 | D72: 0.99 | E72: 0.99
B73: Secondary Wavelength | C73: --- | D73: --- | E73: ---
B75: Correlation & Lag Tests | C75: 57.3-yr | D75: 172-yr | E75: 516-yr
B77: Correlation with lag | C77: 0.441 | D77: 0.222 | E77: 0.371
B78: Confidence Level | C78: 0.95 | D78: 0.95 | E78: 0.95
B79: Offset used with Model | C79: 15.14-yr | D79: -36.35-yr | E79: -168.5-yr

Sheet Input_Data
A1: File Name | B1: Volcanos_a_57-yr.txt | C1: Volcanos_b_172-yr.txt | D1: Volcanos_c_516-yr.txt
A2: Input data | B2: 0.111 | C2: -0.222 | D2: 0.889
A3: used in | B3: -0.667 | C3: 0.222 | D3: -0.889
A4: periodogram | B4: -0.444 | C4: -0.444 | D4: -0.667
A5: scripts. | B5: -0.667 | C5: 0.222 | D5: 0
B6: 0.444 | C6: 0.222 | D6: 0.667
B7: 0.778 | C7: 0.222 | D7: 0.222
B8: 1.222 | C8: -0.444 | D8: -0.889
B9: 0.333 | C9: -0.444 | D9: 1.111
B10: -0.222 | C10: -0.222 | D10: 0.889
B11: -0.333 | C11: 0 | D11: 1.111
B12: -0.222 | C12: -0.444 | D12: -2.667
B13: -0.111 | C13: 0.222 | D13: -1.333
B14: -0.333 | C14: 0.222 | D14: -0.889
B15: -0.333 | C15: 1.556 | D15: 2.444
B16: 0 | C16: 0.444 | D16: 0.889
B17: -0.111 | C17: 0.444 | D17: 0.889
B18: 0.111 | C18: -0.889 | D18: -0.889
B19: -0.444 | C19: -0.444 | D19: -0.667
B20: 0.333 | C20: -0.444 | D20: -1.111
B21: 0.333 | C21: -0.889 | D21: -1.111
B22: 0.889 | C22: -0.889 | D22: 0.667
B23: -0.667 | C23: -1.111 | D23: 0.889
B24: -1.111 | C24: 1.556 | D24: 2.444
B25: -1.111 | C25: 1.556 | D25: 0.667
B26: 1.111 | C26: 2.222 | D26: 0.222
B27: 1.889 | C27: -0.444 | D27: -1.556
B28: 1.333 | C28: -0.444 | D28: -1.778
B29: -0.333 | C29: -1.111 | D29: -0.667
B30: -1 | C30: -0.222 | D30: 0
B31: -0.667 | C31: -0.222 | D31: 1.556
B32: -0.444 | C32: 0 | D32: 0.667
B33: -0.333 | C33: -0.444 | D33: 0.889
B34: -0.333 | C34: -0.444 | D34: -0.444
B35: 0.111 | C35: -0.444 | D35: -0.222
B36: 0.111 | C36: 0.889 | D36: -1.111
B37: 0.444 | C37: 0.889 | D37: -0.889
B38: 0.111 | C38: 0.667 | D38: -0.889
B39: 0 | C39: -0.667 | D39: 0.667
B40: -0.778 | C40: -0.667 | D40: 1.333
B41: -1 | C41: -0.889 | D41: 1.333
B42: -0.222 | C42: -0.444 | D42: -1.556
B43: 0.444 | C43: -0.444 | D43: -2.222
B44: 1.333 | C44: 1.556 | D44: -2
B45: 1.333 | C45: 1.333 | D45: 2.889
B46: 1.111 | C46: 1.333 | D46: 3.111
B47: -0.111 | C47: -1.111 | D47: 2.222
B48: -1.778 | C48: -0.444 | D48: -2.222
B49: -1.889 | C49: -0.889 | D49: -2.222
B50: -0.556 | C50: 0 | D50: -0.889
B51: 1.333 | C51: -0.667 | D51: 1.111
B52: 1.111 | C52: 0.667 | D52: 1.111
B53: 0.333 | C53: 0.444 | D53: 0.444
B54: -0.889 | C54: 0.667 | D54: -0.222
B55: 0.556 | C55: -0.667 | D55: -0.889
B56: 0.667 | C56: 0 | D56: -1.556
B57: 1.111 | C57: 0 | D57: -1.333
B58: -0.444 | C58: 0.444 | D58: 0.444
B59: -0.667 | C59: -0.667 | D59: 1.778
B60: -0.556 | C60: -0.667 | D60: 2
B61: -0.778 | C61: -1.556 | D61: 0.444
B62: -0.333 | C62: 0 | D62: -0.444
B63: -0.111 | C63: 0 | D63: -1.111
B64: 1 | C64: 2.667 | D64: -0.444
B65: 0.667 | C65: 1.333 | D65: -0.222
B66: -0.556 | C66: 1.333 | D66: 0.444
B67: -0.778 | C67: -2.222 | D67: 0
B68: -1 | C68: -1.778 | D68: 0
B69: 0.778 | C69: -1.778 | D69: 0
B70: 0.333 | C70: 1.556 | D70: 0.222
B71: 1 | C71: 1.556 | D71: 0
B72: -0.333 | C72: 1.556 | D72: -0.889
B73: 0 | C73: -0.444 | D73: -1.111
B74: -0.222 | C74: -0.444 | D74: -0.222
B75: 0.444 | C75: -0.667 | D75: 1.111
B76: -1 | C76: -0.444 | D76: 1.556
B77: -1.333 | C77: -0.444 | D77: 0
B78: -1.889 | C78: 0.222 | D78: -0.889
B79: 1.778 | C79: 0.444 | D79: -1.111
B80: 2.556 | C80: 0.444 | D80: 0.444
B81: 3.333 | C81: -0.222 | D81: 0.667
B82: -0.444 | C82: -0.222 | D82: 0
B83: -1.667 | C83: -0.667 | D83: -1.333
B84: -2.111 | C84: -0.444 | D84: -1.111
B85: -0.333 | C85: -0.444 | D85: 0
B86: 0.444 | C86: 0.667 | D86: 1.111
B87: -0.889 | C87: 0.667 | D87: 0
B88: -1 | C88: 0.222 | D88: 0.667
B89: -0.889 | C89: -0.444 | D89: 0.444
B90: 1.667 | C90: -0.444 | D90: 1.778
B91: 0.778 | C91: 0.889 | D91: -0.222
B92: 0.111 | C92: 0.444 | D92: -1.111
B93: -0.556 | C93: 0.222 | D93: -0.444
B94: 0.111 | C94: -1.111 | D94: -0.222
B95: 1.333 | C95: -0.222 | D95: 1.556
B96: 0.111 | C96: 0.444 | D96: -0.667
B97: 1.222 | C97: 0.889 | D97: 1.556
B98: -0.333 | C98: 0.222 | D98: -0.222
B99: 0.111 | C99: -0.444 | D99: 1.111
B100: -1.444 | C100: -0.444 | D100: -2
B101: -0.333 | C101: -0.444 | D101: -1.556
B102: -0.333 | C102: -0.222 | D102: -2.222
B103: -0.222 | C103: -0.222 | D103: 0.667
B104: -1.111 | C104: 0.444 | D104: 1.333
B105: 0.111 | C105: 0.444 | D105: 2.889
B106: 0.222 | C106: 0.444 | D106: 0.667
B107: 1.708 | C107: -0.222 | D107: 0.222
B108: -0.048 | C108: -0.222 | D108: -2
B109: 0.5 | C109: -0.444 | D109: -0.889
B110: -1.1 | C110: -0.222 | D110: -1.111
C111: -0.222 | D111: 0.667
C112: 0 | D112: 0.444
C113: 0 | D113: 0.667
C114: -0.222 | D114: -0.667
C115: 0.444 | D115: -0.667
C116: 0.444 | D116: -1.333
C117: 0.889 | D117: 0
C118: -0.222 | D118: 0.222
C119: -0.222 | D119: 0.889
C120: -0.222 | D120: 0.444
C121: 0.222 | D121: -0.222
C122: 0.222 | D122: 0.889
C123: -0.222 | D123: 0
C124: -0.222 | D124: 0.667
C125: -0.222 | D125: 0
C126: 0 | D126: 0.444
C127: -0.222 | D127: 0
C128: -0.222 | D128: -1.778
C129: -0.222 | D129: -0.889
C130: -0.889 | D130: -1.111
C131: -1.111 | D131: 1.111
C132: -1.111 | D132: 0
C133: 2.222 | D133: 2
C134: 2.889 | D134: 0
C135: 2.889 | D135: 0.444
C136: -0.889 | D136: -2.222
C137: -1.556 | D137: -0.667
C138: -1.556 | D138: 0.222
C139: -0.222 | D139: 2
C140: -0.222 | D140: 2
C141: -0.222 | D141: 0.444
C142: -0.222 | D142: -0.889
C143: 0.444 | D143: -1.111
C144: 0.444 | D144: -1.333
C145: 0.444 | D145: -0.444
C146: -0.667 | D146: -2.889
C147: -0.667 | D147: -1.778
C148: -1.111 | D148: -2.444
C149: 0.444 | D149: 3.111
C150: 0.444 | D150: 3.778
C151: 1.778 | D151: 3.778
C152: 0.444 | D152: -1.556
C153: 0.444 | D153: -2.222
C154: -0.889 | D154: -0.583
C155: -0.667 | D155: 1.714
C156: -0.889 | D156: 1.333
C157: -0.444 | D157: -1
C158: 0.222
C159: 0.889
C160: 0.889
C161: 0.222
C162: -0.444
C163: -0.444
C164: -0.222
C165: 0
C166: 0
C167: -0.222
C168: -0.222
C169: -0.222
C170: -0.222
C171: -0.222
C172: -0.667
C173: 0.667
C174: 0.667
C175: 1.778
C176: 0
C177: 0
C178: -0.889
C179: -0.222
C180: -0.444
C181: 0
C182: 0
C183: 0.667
C184: 0.222
C185: 0.222
C186: -0.667
C187: -0.444
C188: -0.444
C189: 0.444
C190: 0.222
C191: 0.222
C192: -0.667
C193: 0
C194: 0
C195: 0.889
C196: 0.222
C197: 0.222
C198: -0.667
C199: -0.444
C200: -0.444
... 267 more rows

Sheet Periodograms
B1: Periodogram for 57.3-year test.
B52: Periodogram for 172-year test.
B103: Periodogram for 516-year test.
